{"text_format":"1","workbook":"xlsx","n_sheets":12,"sheets":["ControlPage","ward one","Audit comments","Outcomes","Over time dashboard","Snapshot dashboard","Charts","Charts for dashboard","DataSummary","Template","Audit results by week","Lists"],"not_rendered":{"charts":75,"images":0,"macros":1,"external_links":0,"defined_names":21,"comments":0,"pivot_tables":50},"unopened":[],"bounds":{"document_bytes":16777216,"sheet_cells":100000,"rows_first":2000,"rows_last":500,"rows_between":2000,"halvings":0,"cell_chars":16384,"cell_head_chars":4096},"cells_cut":0,"cells_raw":0,"read":"whole","date_system":"1900"}

{"sheet":"ControlPage","index":0,"n_rows":81,"n_cols":2,"rows_kept":81,"cut":false,"hidden":false,"merged":[[49,0,49,6],[44,0,44,6],[70,0,70,6],[72,0,72,6],[80,0,80,6],[67,0,67,6],[62,0,62,6],[61,0,61,6],[60,0,60,6],[51,0,51,6],[74,0,74,6],[68,0,68,6],[69,0,69,6],[66,0,66,6],[19,0,19,6],[40,0,40,6],[73,0,73,6],[29,0,29,6],[41,0,41,6],[30,0,30,6],[35,0,35,6],[36,0,36,6],[65,0,65,6],[54,0,54,6],[55,0,55,6],[56,0,56,6],[59,0,59,6],[58,0,58,6],[42,0,42,6],[57,0,57,6],[21,0,21,6],[22,0,22,6],[23,0,23,6],[24,0,24,6],[25,0,25,6],[28,0,28,6],[34,0,34,6],[52,0,52,6],[53,0,53,6],[32,0,32,6],[31,0,31,6],[37,0,37,6],[38,0,38,6],[39,0,39,6],[50,0,50,6],[46,0,46,6],[33,0,33,6],[43,0,43,6],[45,0,45,6],[47,0,47,6],[48,0,48,6]]}
["National paediatric early warning system data collection tool"]
["Version 2 | November 2022"]
[]
["Hospital name","Please"]
["Start date for audits (affects all sheets)","2022-11-01"]
[]
[]
[]
[]
[]
[]
["Navigate to:"]
["Outcomes"]
["Charts"]
["Over time dashboard"]
["Snapshot dashboard"]
[]
["Instructions to use this tool"]
["A Setting up the tool"]
["1. Select 'Enable Content' before you start.  This will be a message generated by your Excel programme and will be displayed in a yellow bar at the top of the spreadsheet."]
["On the 'ControlPage' tab:"]
["2. Enter your hospital name in the yellow highlighted field."]
["3. Enter the start date for audits in the yellow highlighted field. This will affect all worksheets in this tool automatically."]
["4. To add a new ward for data collection, click the 'add a new ward' button. You can rename the tab with the ward name. Please note that this spreadsheet has been limited to 15 wards."]
["5. To add a new week to the end of all ward data collection sheets, click 'add week to end' button."]
["6. Save the file, ensure you have the name of your organisation in the file name."]
[]
["B Entering audit data"]
["1. Collate paper audit form(s) for the ward(s). "]
["2. Select the ward sheet by clicking the appropriate tab."]
["3. Enter the name of the ward in the yellow highlighted field.  This will then be replicated in the dashboards and charts automatically."]
["4. Enter the data collated on the audit form into the appropriate week by either selecting from the drop down or typing directly into the box. Please note:\n"]
["a. The ethnicity abbreviations used are: M = Māori, P= Pacific peoples, A = Asian, E= European,  O= Other, R = Residual Categories.  This is the prioritised ethnicity and should be found in the patient record.  \nNote that Residual Categories includes \"Don't know\", \"Refused to answer\", \"Response unidentifiable\" and \"Not stated\" as stated by the Ministry of Health ethnicity coding guidelines: https://www.health.govt.nz/nz-health-statistics/data-references/code-tables/common-code-tables/ethnicity-code-tables"]
["b. For the age of the patient: use the  whole number of the age and include year (y) or month (m).  \nFor example a three-month-old patient = 3m, a fifteen-year-old patient = 15y,  a 3-and-half-year-old patient is = 3y and a 11-month-and- three-week-old patient =11m."]
["c. The type of chart used is 1 = 0-11 month; 2 = 1-4 years; 3 = 5-11 years; 4 = 12+ years."]
["d. The audit questions use 'y' or 'n'. Only Q1.2 has another option of 'n/a'."]
["e. An orange shaded field means that data is missing. Red font means that the data has been entered in error eg, if Q2.1=n then Q3¹y. You will need to fix these errors to ensure your dashboards and charts are correct."]
["5. To add a new week to the sheet, click 'add another week to end' button."]
["6. To move to the latest week on the sheet, click 'jump to latest week' button."]
["7. Repeat data entry for each ward."]
["8. Save the spreadsheet.  Remember to do this every time you enter data."]
["9. Be careful! If you delete a ward sheet, the data will be deleted and can not be recovered. Click 'repair DataSummary' button to ensure the dashboards and charts are not affected.  "]
["10. Any comments that you want to retain electronically from the audit form can be entered into the 'Audit comments' tab."]
[]
["C Entering outcomes data"]
["1. Collate the monthly data for outcomes from your sources. "]
["2.  Select the outcome sheet by clicking the 'outcomes' tab."]
["3. Enter the starting month and subsequent months for your outcome measures."]
["4. Enter the data collated by ethnicity for each month.  As the data is entered, the totals will calculate automatically."]
["5. The charts will automatically update once the data has been entered."]
[]
["D Over time dashboard"]
["1. Select the 'over time dashboard' tab to see the results of the audits over time.  Each of the questions has a chart that you can use to measure the improvement to your system over time. "]
["2. Before using the charts, update these by clicking the 'refresh' button."]
["3. If you have more than one ward, you can choose to see just the results from one or more of your wards. Use the box to the right of the charts. You can then copy the charts as pictures into other documents to share the results."]
[]
["E Snapshot dashboard"]
["1. Select the 'snapshot dashboard' tab to see results for particular week(s) or ward(s).  There are:"]
["a. Summary and completed core vital signs charts: these are radar diagrams.  These show the results at a glance and help you identify the areas that need focused improvement activity following the identified week(s) audit.  Ideally, you want the line(s) to be close to 100% (the outermost line).  "]
["b. Escalation and modifications charts: these are bar charts.  These expand on the results for escalation and modification."]
["2. Before using the charts, update these by clicking the 'refresh' button."]
["3.  If you have more than one ward, you can choose to see the results from one or more of your wards.  Use the box to the right of the charts."]
["4. You can see the results for one or more weeks by selecting the weeks in the box to the right of the charts. You can then copy the charts as pictures into other documents to share the results."]
[]
["F Charts"]
["1. Select the 'charts' tab if you want to do further analysis with the data."]
["2. Before using these pivot tables, update these by clicking the 'refesh' button."]
["3. You can analyse each audit question by ward, week, ethnicity, age and type of chart. It will generate the percentages and populate a chart.  Please note that:"]
["a. if a pivot table has no data showing (is blank) then there is no data for that question. \nb. if a pivot table shows a 0% then zero percent of the responses were 'yes' for that question.  \nc. There are questions that are percentages of a related question, these are denoted by an a,b,c etc. Ideally you want these to be close to 100%:\n      - Q2.1a-g are a percentage of the number of vital signs correctly recorded (Q2.1).\n      - Q2.2a is a percentage of the number of PEWS marked with * (Q2.2)\n      - Q2.3a is a percentage of the number of whānau and staff concern recorded (Q2.3)\n      - Q4a and Q4b  are a percentage of the number of modifications (Q4). \n      - Q5a-d are a percentage of the number of patients who triggered an escalation (Q5). "]
["4. You can copy the charts as pictures into other documents to share the results. When reporting, consider the ward acuity and staffing levels to provide context to the results and suggesting improvements. "]
["5. Once you have a few months data, if you can not see the data in the pivot tables, select the chart and move it down. Be careful not to delete it accidentally."]
[]
["G Audit results by week"]
["1. Select the 'audit results by week' tab to access the total numbers for each question by week and ethnicity."]
["2. Before using these pivot tables, update these by clicking the 'refesh' button."]
[]
["H DataSummary"]
["1. The 'datasummary' sheet has been locked.  Do not edit this sheet as it stores all of the data to enable the analysis."]
[]
["I Help"]
["1. Please contact PEWS@hqsc.govt if you have questions on using this tool, would like to expand the number of wards, amend the outcome measures or need some help. "]

{"sheet":"ward one","index":1,"n_rows":36,"n_cols":123,"rows_kept":36,"cut":false,"hidden":false,"merged":[[3,53,3,62],[3,3,3,12],[3,13,3,22],[3,23,3,32],[3,33,3,42],[3,43,3,52],[3,113,3,122],[3,63,3,72],[3,73,3,82],[3,83,3,92],[3,93,3,102],[3,103,3,112]]}
[null,"National paediatric vital sign chart audit tool"]
[null,"Ward:"]
[]
[1,null,"Week starting",{"$f":"ControlPage!$B$5","v":"2022-11-01"},null,null,null,null,null,null,null,null,null,{"$f":"D4+7","v":"2022-11-08"},null,null,null,null,null,null,null,null,null,{"$f":"N4+7","v":"2022-11-15"},null,null,null,null,null,null,null,null,null,{"$f":"X4+7","v":"2022-11-22"},null,null,null,null,null,null,null,null,null,{"$f":"AH4+7","v":"2022-11-29"},null,null,null,null,null,null,null,null,null,{"$f":"AR4+7","v":"2022-12-06"},null,null,null,null,null,null,null,null,null,{"$f":"BB4+7","v":"2022-12-13"},null,null,null,null,null,null,null,null,null,{"$f":"BL4+7","v":"2022-12-20"},null,null,null,null,null,null,null,null,null,{"$f":"BV4+7","v":"2022-12-27"},null,null,null,null,null,null,null,null,null,{"$f":"CF4+7","v":"2023-01-03"},null,null,null,null,null,null,null,null,null,{"$f":"CP4+7","v":"2023-01-10"},null,null,null,null,null,null,null,null,null,{"$f":"CZ4+7","v":"2023-01-17"}]
[2,null,"Week",{"$f":"D4","v":"2022-11-01"},{"$f":"D5","v":"2022-11-01"},{"$f":"E5","v":"2022-11-01"},"2022-11-01","2022-11-01","2022-11-01","2022-11-01","2022-11-01","2022-11-01","2022-11-01",{"$f":"N4","v":"2022-11-08"},{"$f":"N5","v":"2022-11-08"},{"$f":"O5","v":"2022-11-08"},"2022-11-08","2022-11-08","2022-11-08","2022-11-08","2022-11-08","2022-11-08","2022-11-08",{"$f":"X4","v":"2022-11-15"},{"$f":"X5","v":"2022-11-15"},{"$f":"Y5","v":"2022-11-15"},"2022-11-15","2022-11-15","2022-11-15","2022-11-15","2022-11-15","2022-11-15","2022-11-15",{"$f":"AH4","v":"2022-11-22"},{"$f":"AH5","v":"2022-11-22"},"2022-11-22","2022-11-22","2022-11-22","2022-11-22","2022-11-22","2022-11-22","2022-11-22","2022-11-22",{"$f":"AR4","v":"2022-11-29"},{"$f":"AR5","v":"2022-11-29"},"2022-11-29","2022-11-29","2022-11-29","2022-11-29","2022-11-29","2022-11-29","2022-11-29","2022-11-29",{"$f":"BB4","v":"2022-12-06"},{"$f":"BB5","v":"2022-12-06"},{"$f":"BC5","v":"2022-12-06"},"2022-12-06","2022-12-06","2022-12-06","2022-12-06","2022-12-06","2022-12-06","2022-12-06",{"$f":"BL4","v":"2022-12-13"},{"$f":"BL5","v":"2022-12-13"},{"$f":"BM5","v":"2022-12-13"},"2022-12-13","2022-12-13","2022-12-13","2022-12-13","2022-12-13","2022-12-13","2022-12-13",{"$f":"BV4","v":"2022-12-20"},{"$f":"BV5","v":"2022-12-20"},{"$f":"BW5","v":"2022-12-20"},"2022-12-20","2022-12-20","2022-12-20","2022-12-20","2022-12-20","2022-12-20","2022-12-20",{"$f":"CF4","v":"2022-12-27"},{"$f":"CF5","v":"2022-12-27"},{"$f":"CG5","v":"2022-12-27"},"2022-12-27","2022-12-27","2022-12-27","2022-12-27","2022-12-27","2022-12-27","2022-12-27",{"$f":"CP4","v":"2023-01-03"},{"$f":"CP5","v":"2023-01-03"},{"$f":"CQ5","v":"2023-01-03"},"2023-01-03","2023-01-03","2023-01-03","2023-01-03","2023-01-03","2023-01-03","2023-01-03",{"$f":"CZ4","v":"2023-01-10"},{"$f":"CZ5","v":"2023-01-10"},{"$f":"DA5","v":"2023-01-10"},"2023-01-10","2023-01-10","2023-01-10","2023-01-10","2023-01-10","2023-01-10","2023-01-10",{"$f":"DJ4","v":"2023-01-17"},{"$f":"DJ5","v":"2023-01-17"},{"$f":"DK5","v":"2023-01-17"},"2023-01-17","2023-01-17","2023-01-17","2023-01-17","2023-01-17","2023-01-17","2023-01-17"]
[3,null,"Ward",{"$f":"$C$2","v":0},{"$f":"$C$2","v":0},0,0,0,0,0,0,0,0,0,0,0,0,0,0,0,0,0,0,0,0,0,0,0,0,0,0,0,0,0,0,0,0,0,0,0,0,0,0,0,0,0,0,0,0,0,0,0,0,0,0,0,0,0,0,0,0,0,0,0,0,0,0,0,{"$f":"$C$2","v":0},0,0,0,0,0,0,0,0,0,0,0,0,0,0,0,0,0,0,0,0,0,0,0,0,0,0,0,0,0,0,0,0,0,0,0,0,0,0,0,0,0,0,0,0,0,0,0,0,0,0,0,0,0,0]
[4,null,"Case number",1,2,3,4,5,6,7,8,9,10,1,2,3,4,5,6,7,8,9,10,1,2,3,4,5,6,7,8,9,10,1,2,3,4,5,6,7,8,9,10,1,2,3,4,5,6,7,8,9,10,1,2,3,4,5,6,7,8,9,10,1,2,3,4,5,6,7,8,9,10,1,2,3,4,5,6,7,8,9,10,1,2,3,4,5,6,7,8,9,10,1,2,3,4,5,6,7,8,9,10,1,2,3,4,5,6,7,8,9,10,1,2,3,4,5,6,7,8,9,10]
[5,null,"Ethnicity"]
[null,null,"Age\nInclude month (m) or year (y)) eg. 4m = 4 month"]
[null,null,"Type of chart\nUse this key: 1 = 0-11m, 2 = 1-4y, 3 = 5-11y, 4 = 12+y"]
[6,null,"Recognition"]
[7,1.1000000000000001,"Was the frequency of vital sign monitoring appropriate for the patient?"]
[null,1.2,"Was the use of partial sets of vital signs appropriate for the patient?"]
[8,2.1,"For the most recent set of vital signs, was the core vital sign set completed?\n(If yes, mark question 2.2 as 'n' then go to question 2.3;  If no, complete question 2.1a-g: mark present vital signs as 'y' and absent vital signs as 'n')"]
[null,"2.1a","Respiratory rate"]
[null,"2.1b","Respiratory distress"]
[null,"2.1c","Oxygen"]
[null,"2.1d","Oxygen saturation"]
[null,"2.1e","Heart rate"]
[null,"2.1f","Central capillary refill"]
[null,"2.1g","Systolic blood pressure"]
[null,2.2000000000000002,"For this most recent set of vital signs, was the paediatric early warning score (PEWS) total marked with a plus sign?\n(If yes, complete question 2.2a; if no, go to 2.3)"]
[null,"2.2a","Was the reason for a partial recording documented in the patient’s clinical record?"]
[null,2.2999999999999998,"Was whānau and/or staff concern recorded for this patient?\n(If yes, complete question 2.3a; if no, go to 2.4)"]
[null,"2.3a","Was this concern acted on and documented in the clinical record?"]
[null,2.4,"Was the patient marked as ‘unresponsive’ in level of consciousness?"]
[9,3,"Was the PEWS total calculated correctly for the most recent set of vital signs?"]
[10,4,"Were any modifications made to the PEWS triggers? \n(if yes, complete questions 4a and 4b; if no, go to question 5)"]
[11,"4a","Was a rationale and duration for the modification documented? (clinical requirements)"]
[12,"4b","Did the person making the modification legibly date and sign it, and record contact details? (documentation requirements)"]
[13,null,"Escalation and response"]
[14,5,"Did the child reach any of the defined triggers for escalation in, or up to, the 24-hour audit period?  (If yes, complete questions 5a-d; if no, audit is complete)"]
[15,"5a","Did escalation occur according to the pathway?"]
[16,"5b","Did the response occur according to the pathway?"]
[17,"5c","Did the responder complete documentation requirements (according to local policy)?"]
[null,"5d","Did the recogniser complete documentation requirements (according to local policy)?"]

{"sheet":"Audit comments","index":2,"n_rows":4,"n_cols":13,"rows_kept":4,"cut":false,"hidden":false,"merged":[]}
["Comments arising from the audit"]
["This is space to enter any comments that are noted on the audit form that you would like to retain electronically. You will need to enter all fields manually"]
[]
["Week beginning","Ward","Case 1","Case 2","Case 3","Case 4","Case 5","Case 6","Case 7","Case 8","Case 9","Case 10","Other"]

{"sheet":"Outcomes","index":3,"n_rows":42,"n_cols":22,"rows_kept":42,"cut":false,"hidden":false,"merged":[[26,0,32,0],[26,1,32,1],[34,0,40,0],[34,1,40,1],[2,1,8,1],[2,0,8,0],[10,0,16,0],[10,1,16,1],[18,0,24,0],[18,1,24,1]]}
["Outcomes measures (hospital-wide)"]
[null,null,"Month","Mar","Apr","May","Jun","Jul","Aug","Sep","Oct","Nov","Dec","Jan","Feb","Mar","Apr","May","Jun","Jul","Aug","Sep"]
["Measure one: \nNumber of escalations to rapid response team (or equivalent) ","Definition: Number of calls to the hospitals paediatric rapid response team (or equivalent). These escalations could be triggered by any vital sign in the blue zone, or by clinical or whānau concern. \n\nThis information may be collected through a review of switchboard call records or directly collected by the rapid respone team (or equivalent). ","Māori"]
[null,null,"Pacific"]
[null,null,"Asian"]
[null,null,"European"]
[null,null,"Other"]
[null,null,"Residual"]
[null,null,"Total",{"$f":"SUM(D3:D8)","v":0},{"$f":"SUM(E3:E8)","v":0},{"$f":"SUM(F3:F8)","v":0},0,{"$f":"SUM(H3:H8)","v":0},0,0,0,0,0,0,0,0,0,{"$f":"SUM(R3:R8)","v":0},{"$f":"SUM(S3:S8)","v":0},{"$f":"SUM(T3:T8)","v":0},{"$f":"SUM(U3:U8)","v":0},{"$f":"SUM(V3:V8)","v":0}]
[null,null,"Total",{"$f":"IF(D9=0,NA(),D9)","v":{"$error":"#N/A"}},{"$f":"IF(E9=0,NA(),E9)","v":{"$error":"#N/A"}},{"$error":"#N/A"},{"$error":"#N/A"},{"$error":"#N/A"},{"$error":"#N/A"},{"$error":"#N/A"},{"$error":"#N/A"},{"$error":"#N/A"},{"$error":"#N/A"},{"$error":"#N/A"},{"$error":"#N/A"},{"$error":"#N/A"},{"$error":"#N/A"},{"$error":"#N/A"},{"$error":"#N/A"},{"$error":"#N/A"},{"$error":"#N/A"},{"$error":"#N/A"}]
["Measure two: \nNumber of unplanned admissions to higher level of care (intensive care) ","Definition: Unplanned means when not anticipated as part of the provision of care. For this measure, higher level of care means the intensive care unit. \n\nDefine  how this data will be collected.  ","Māori"]
[null,null,"Pacific"]
[null,null,"Asian"]
[null,null,"European"]
[null,null,"Other"]
[null,null,"Residual"]
[null,null,"Total",{"$f":"SUM(D11:D16)","v":0},0,0,0,0,0,0,0,0,0,0,0,0,0,0,0,0,0,0]
[null,null,"Total",{"$f":"IF(D17=0,NA(),D17)","v":{"$error":"#N/A"}},{"$error":"#N/A"},{"$error":"#N/A"},{"$error":"#N/A"},{"$error":"#N/A"},{"$error":"#N/A"},{"$error":"#N/A"},{"$error":"#N/A"},{"$error":"#N/A"},{"$error":"#N/A"},{"$error":"#N/A"},{"$error":"#N/A"},{"$error":"#N/A"},{"$error":"#N/A"},{"$error":"#N/A"},{"$error":"#N/A"},{"$error":"#N/A"},{"$error":"#N/A"},{"$error":"#N/A"}]
["Measure three: \nNumber of unplanned admissions to higher level of care (high dependency unit)","Definition: Unplanned means when not anticipated as part of the provision of care. For this measure, higher level of care means the  high dependency unit. \n\nDefine  how this data will be collected.  ","Māori"]
[null,null,"Pacific"]
[null,null,"Asian"]
[null,null,"European"]
[null,null,"Other"]
[null,null,"Residual"]
[null,null,"Total",{"$f":"SUM(D19:D24)","v":0},0,0,0,0,0,0,0,0,0,0,0,0,0,0,0,0,0,0]
[null,null,"Total",{"$f":"IF(D25=0,NA(),D25)","v":{"$error":"#N/A"}},{"$error":"#N/A"},{"$error":"#N/A"},{"$error":"#N/A"},{"$error":"#N/A"},{"$error":"#N/A"},{"$error":"#N/A"},{"$error":"#N/A"},{"$error":"#N/A"},{"$error":"#N/A"},{"$error":"#N/A"},{"$error":"#N/A"},{"$error":"#N/A"},{"$error":"#N/A"},{"$error":"#N/A"},{"$error":"#N/A"},{"$error":"#N/A"},{"$error":"#N/A"},{"$error":"#N/A"}]
["Measure four: \nNumber of unplanned admissions to higher level of care (transfer to higher acuity hospital)","Definition: Unplanned means when not anticipated as part of the provision of care. For this measure, higher level of care means the  transfer to a higher acuity hospital . \n\nDefine  how this data will be collected.  ","Māori"]
[null,null,"Pacific"]
[null,null,"Asian"]
[null,null,"European"]
[null,null,"Other"]
[null,null,"Residual"]
[null,null,"Total",{"$f":"SUM(D27:D32)","v":0},0,0,0,0,0,0,0,0,0,0,0,0,0,0,0,0,0,0]
[null,null,"Total",{"$f":"IF(D33=0,NA(),D33)","v":{"$error":"#N/A"}},{"$error":"#N/A"},{"$error":"#N/A"},{"$error":"#N/A"},{"$error":"#N/A"},{"$error":"#N/A"},{"$error":"#N/A"},{"$error":"#N/A"},{"$error":"#N/A"},{"$error":"#N/A"},{"$error":"#N/A"},{"$error":"#N/A"},{"$error":"#N/A"},{"$error":"#N/A"},{"$error":"#N/A"},{"$error":"#N/A"},{"$error":"#N/A"},{"$error":"#N/A"},{"$error":"#N/A"}]
["Measure five: \nNumber of unplanned admissions to higher level of care (increased 1:1 care)","Definition: Unplanned means when not anticipated as part of the provision of care. For this measure, higher level of care means an increase in 1:1 care provided on the ward. \n\nDefine  how this data will be collected.  ","Māori"]
[null,null,"Pacific"]
[null,null,"Asian"]
[null,null,"European"]
[null,null,"Other"]
[null,null,"Residual"]
[null,null,"Total",{"$f":"SUM(D35:D40)","v":0},0,0,0,0,0,0,0,0,0,0,0,0,0,0,0,0,0,0]
[null,null,"Total",{"$f":"IF(D41=0,NA(),D41)","v":{"$error":"#N/A"}},{"$error":"#N/A"},{"$error":"#N/A"},{"$error":"#N/A"},{"$error":"#N/A"},{"$error":"#N/A"},{"$error":"#N/A"},{"$error":"#N/A"},{"$error":"#N/A"},{"$error":"#N/A"},{"$error":"#N/A"},{"$error":"#N/A"},{"$error":"#N/A"},{"$error":"#N/A"},{"$error":"#N/A"},{"$error":"#N/A"},{"$error":"#N/A"},{"$error":"#N/A"},{"$error":"#N/A"}]

{"sheet":"Over time dashboard","index":4,"n_rows":1,"n_cols":1,"rows_kept":1,"cut":false,"hidden":false,"merged":[]}
["PEWS Dashboard - Over Time"]

{"sheet":"Snapshot dashboard","index":5,"n_rows":24,"n_cols":16,"rows_kept":24,"cut":false,"hidden":false,"merged":[]}
["PEWS Dashboard - Snapshot",null,null,null,null,null,null,null,null,null,null,null,"Date Range","Date range"]
[null,null,null,null,null,null,null,null,null,null,null,null,null,"Values"]
[null,null,null,null,null,null,null,null,null,null,null,null,"Week starting","Min of Week starting","2022-02-04","to"]
[null,null,null,null,null,null,null,null,null,null,null,null,"Week starting","Max of Week starting2","2022-04-22"]
[]
[]
[]
[]
[]
[]
[]
[]
[]
[]
[]
[]
[]
[]
[]
[]
[]
[]
[]
[null,null,null,null,null,{"$f":" \"n = \" & GETPIVOTDATA(\"Q5\",'Charts for dashboard'!$LC$34)","v":"n = 0"},null,null,null,null,null,null,{"$f":"\"n = \"&GETPIVOTDATA(\"Q4\",'Charts for dashboard'!$II$33)","v":"n = 0"}]

{"sheet":"Charts","index":6,"n_rows":56,"n_cols":389,"rows_kept":56,"cut":false,"hidden":false,"merged":[]}
[null,null,null,null,null,null,null,null,null,"Important note: Before using this page, click 'refresh' button"]
[]
["Legend",null,null,null,null,null,null,null,"Summary diagram",null,null,null,null,null,null,null,null,null,null,null,null,null,null,null,null,null,"Q1.1: Appropriate frequency of monitoring",null,null,null,null,null,null,null,null,null,null,null,null,null,null,null,null,null,"Q1.2: Appropriate use of partial sets of vital signs",null,null,null,null,null,null,null,null,null,null,null,null,null,null,null,null,null,"Q2.1: Completed core vital sign set for the most recent set of vital signs",null,null,null,null,null,null,null,null,null,null,null,null,null,null,null,null,null,"Q2.1 & Q2.1a-g: % of completed core vital signs",null,null,null,null,null,null,null,null,null,null,null,null,null,null,null,null,null,"Q2.2: PEWS total marked with asterisk sign for most recent set of vital signs",null,null,null,null,null,null,null,null,null,null,null,null,null,null,null,null,null,"Q2.2a: Reason for partial recording documented",null,null,null,null,null,null,null,null,null,null,null,null,null,null,null,null,null,"Q2.3: Whānau and/or staff concern recorded for the patient",null,null,null,null,null,null,null,null,null,null,null,null,null,null,null,null,null,"Q2.3a: Whānau and/or staff concern acted on and documented",null,null,null,null,null,null,null,null,null,null,null,null,null,null,null,null,null,"Q2.4: Patient marked as 'unresponsive' in level of consciousness",null,null,null,null,null,null,null,null,null,null,null,null,null,null,null,null,null,"Q3: Most recent PEWS calculated correctly for complete vital sign set",null,null,null,null,null,null,null,null,null,null,null,null,null,null,null,null,null,"Q3: Most recent PEWS calculated correctly for partial vital sign set",null,null,null,null,null,null,null,null,null,null,null,null,null,null,null,null,null,"Q4: Modifications made to PEWS triggers",null,null,null,null,null,null,null,null,null,null,null,null,null,null,null,null,null,"Q4a-b: Modifications summary",null,null,null,null,null,null,null,null,null,null,null,null,null,null,null,null,null,"Q4a: Modifications with clinical requirements recorded",null,null,null,null,null,null,null,null,null,null,null,null,null,null,null,null,null,"Q4b: Modifications with documentation requirements recorded",null,null,null,null,null,null,null,null,null,null,null,null,null,null,null,null,null,"Q5: Triggers for escalation reached in, or up to, the 24-hour audit period",null,null,null,null,null,null,null,null,null,null,null,null,null,null,null,null,null,"Q5a-d: Escalation summary",null,null,null,null,null,null,null,null,null,null,null,null,null,null,null,null,null,"Q5a: Escalation as per pathway",null,null,null,null,null,null,null,null,null,null,null,null,null,null,null,null,null,"Q5b: Response as per pathway",null,null,null,null,null,null,null,null,null,null,null,null,null,null,null,null,null,"Q5c: Responder - Documentation as per local policy",null,null,null,null,null,null,null,null,null,null,null,null,null,null,null,null,null,"Q5d: Recogniser - Documentation as per local policy"]
[null,null,null,null,null,null,null,null,"Week starting","(All)",null,null,null,null,null,null,null,null,null,null,null,null,null,null,null,null,null,null,null,null,null,null,null,null,null,null,null,null,null,null,null,null,null,null,null,null,null,null,null,null,null,null,null,null,null,null,null,null,null,null,null,null,null,null,null,null,null,null,null,null,null,null,null,null,null,null,null,null,null,null,"Ethnicity","(All)",null,null,null,null,null,null,null,null,null,null,null,null,null,null,null,null,null,null,null,null,null,null,null,null,null,null,null,null,null,null,null,null,null,null,"NOTE: Percentages below are shown as a % of marked partials",null,null,null,null,null,null,null,null,null,null,null,null,null,null,null,null,null,null,null,null,null,null,null,null,null,null,null,null,null,null,null,null,null,null,null,"NOTE: Percentages below are shown as a % of whānau and or staff concern recorded",null,null,null,null,null,null,null,null,null,null,null,null,null,null,null,null,null,null,null,null,null,null,null,null,null,null,null,null,null,null,null,null,null,null,null,null,null,null,null,null,null,null,null,null,null,null,null,null,null,null,null,null,null,null,null,null,null,null,null,null,null,null,null,null,null,null,null,null,null,null,null,"NOTE: There may not be any modifications made to the PEWS score triggers. Ideally, there should be few modifications made.",null,null,null,null,null,null,null,null,null,null,null,null,null,null,null,null,null,"NOTE: responses to Q4a and Q4b are subsets of responses to Q4",null,null,null,null,null,null,null,null,null,null,null,null,null,null,null,null,null,"NOTE: Percentages below are shown as a % of number of modifications",null,null,null,null,null,null,null,null,null,null,null,null,null,null,null,null,null,"NOTE: Percentages below are shown as a % of number of modifications",null,null,null,null,null,null,null,null,null,null,null,null,null,null,null,null,null,"NOTE: there may not be any patients who trigger an escalation of PEWS 4 or above and single parameter blue trigger ",null,null,null,null,null,null,null,null,null,null,null,null,null,null,null,null,null,"NOTE: Percentages below are shown as a % of number of patients who triggered an escalation. ",null,null,null,null,null,null,null,null,null,null,null,null,null,null,null,null,null,"NOTE: Percentages below are shown as a % of number of patients who triggered an escalation",null,null,null,null,null,null,null,null,null,null,null,null,null,null,null,null,null,"NOTE: Percentages below are shown as a % of number of patients who triggered an escalation",null,null,null,null,null,null,null,null,null,null,null,null,null,null,null,null,null,"NOTE: Percentages below are shown as a % of number of patients who triggered an escalation",null,null,null,null,null,null,null,null,null,null,null,null,null,null,null,null,null,"NOTE: Percentages below are shown as a % of number of patients who triggered an escalation"]
[null,null,null,null,null,null,null,null,"Ethnicity","(All)",null,null,null,null,null,null,null,null,null,null,null,null,null,null,null,null,"Ethnicity","(All)",null,null,null,null,null,null,null,null,null,null,null,null,null,null,null,null,"Ethnicity","(All)",null,null,null,null,null,null,null,null,null,null,null,null,null,null,null,null,"Ethnicity","(All)",null,null,null,null,null,null,null,null,null,null,null,null,null,null,null,null,"Week starting","(All)",null,null,null,null,null,null,null,null,null,null,null,null,null,null,null,null,"Ethnicity","(All)",null,null,null,null,null,null,null,null,null,null,null,null,null,null,null,null,"Ethnicity","(All)",null,null,null,null,null,null,null,null,null,null,null,null,null,null,null,null,"Ethnicity","(All)",null,null,null,null,null,null,null,null,null,null,null,null,null,null,null,null,"Ethnicity","(All)",null,null,null,null,null,null,null,null,null,null,null,null,null,null,null,null,"Ethnicity","(All)",null,null,null,null,null,null,null,null,null,null,null,null,null,null,null,null,"Ethnicity","(All)",null,null,null,null,null,null,null,null,null,null,null,null,null,null,null,null,"Ethnicity","(All)",null,null,null,null,null,null,null,null,null,null,null,null,null,null,null,null,"Ethnicity","(All)",null,null,null,null,null,null,null,null,null,null,null,null,null,null,null,null,"Ethnicity","(All)",null,null,null,null,null,null,null,null,null,null,null,null,null,null,null,null,"Ethnicity","(All)",null,null,null,null,null,null,null,null,null,null,null,null,null,null,null,null,"Ethnicity","(All)",null,null,null,null,null,null,null,null,null,null,null,null,null,null,null,null,"Ethnicity","(All)",null,null,null,null,null,null,null,null,null,null,null,null,null,null,null,null,"Ethnicity","(All)",null,null,null,null,null,null,null,null,null,null,null,null,null,null,null,null,"Ethnicity","(All)",null,null,null,null,null,null,null,null,null,null,null,null,null,null,null,null,"Ethnicity","(All)",null,null,null,null,null,null,null,null,null,null,null,null,null,null,null,null,"Ethnicity","(All)",null,null,null,null,null,null,null,null,null,null,null,null,null,null,null,null,"Ethnicity","(All)"]
["Ward",null,null,null,null,null,null,null,"Age","(All)",null,null,null,null,null,null,null,null,null,null,null,null,null,null,null,null,"Age","(All)",null,null,null,null,null,null,null,null,null,null,null,null,null,null,null,null,"Age","(All)",null,null,null,null,null,null,null,null,null,null,null,null,null,null,null,null,"Age","(All)",null,null,null,null,null,null,null,null,null,null,null,null,null,null,null,null,"Age","(All)",null,null,null,null,null,null,null,null,null,null,null,null,null,null,null,null,"Age","(All)",null,null,null,null,null,null,null,null,null,null,null,null,null,null,null,null,"Age","(All)",null,null,null,null,null,null,null,null,null,null,null,null,null,null,null,null,"Age","(All)",null,null,null,null,null,null,null,null,null,null,null,null,null,null,null,null,"Age","(All)",null,null,null,null,null,null,null,null,null,null,null,null,null,null,null,null,"Age","(All)",null,null,null,null,null,null,null,null,null,null,null,null,null,null,null,null,"Age","(All)",null,null,null,null,null,null,null,null,null,null,null,null,null,null,null,null,"Age","(All)",null,null,null,null,null,null,null,null,null,null,null,null,null,null,null,null,"Age","(All)",null,null,null,null,null,null,null,null,null,null,null,null,null,null,null,null,"Age","(All)",null,null,null,null,null,null,null,null,null,null,null,null,null,null,null,null,"Age","(All)",null,null,null,null,null,null,null,null,null,null,null,null,null,null,null,null,"Age","(All)",null,null,null,null,null,null,null,null,null,null,null,null,null,null,null,null,"Age","(All)",null,null,null,null,null,null,null,null,null,null,null,null,null,null,null,null,"Week starting","(All)",null,null,null,null,null,null,null,null,null,null,null,null,null,null,null,null,"Age","(All)",null,null,null,null,null,null,null,null,null,null,null,null,null,null,null,null,"Age","(All)",null,null,null,null,null,null,null,null,null,null,null,null,null,null,null,null,"Age","(All)",null,null,null,null,null,null,null,null,null,null,null,null,null,null,null,null,"Age","(All)"]
[0,"Grand Total",null,null,null,null,null,null,"Type of chart","(All)",null,null,null,null,null,null,null,null,null,null,null,null,null,null,null,null,"Type of chart","(All)",null,null,null,null,null,null,null,null,null,null,null,null,null,null,null,null,"Type of chart","(All)",null,null,null,null,null,null,null,null,null,null,null,null,null,null,null,null,"Type of chart","(All)",null,null,null,null,null,null,null,null,null,null,null,null,null,null,null,null,"Type of chart","(All)",null,null,null,null,null,null,null,null,null,null,null,null,null,null,null,null,"Type of chart","(All)",null,null,null,null,null,null,null,null,null,null,null,null,null,null,null,null,"Type of chart","(All)",null,null,null,null,null,null,null,null,null,null,null,null,null,null,null,null,"Type of chart","(All)",null,null,null,null,null,null,null,null,null,null,null,null,null,null,null,null,"Type of chart","(All)",null,null,null,null,null,null,null,null,null,null,null,null,null,null,null,null,"Type of chart","(All)",null,null,null,null,null,null,null,null,null,null,null,null,null,null,null,null,"Type of chart","(All)",null,null,null,null,null,null,null,null,null,null,null,null,null,null,null,null,"Type of chart","(All)",null,null,null,null,null,null,null,null,null,null,null,null,null,null,null,null,"Type of chart","(All)",null,null,null,null,null,null,null,null,null,null,null,null,null,null,null,null,"Type of chart","(All)",null,null,null,null,null,null,null,null,null,null,null,null,null,null,null,null,"Type of chart","(All)",null,null,null,null,null,null,null,null,null,null,null,null,null,null,null,null,"Type of chart","(All)",null,null,null,null,null,null,null,null,null,null,null,null,null,null,null,null,"Type of chart","(All)",null,null,null,null,null,null,null,null,null,null,null,null,null,null,null,null,"Age","(All)",null,null,null,null,null,null,null,null,null,null,null,null,null,null,null,null,"Type of chart","(All)",null,null,null,null,null,null,null,null,null,null,null,null,null,null,null,null,"Type of chart","(All)",null,null,null,null,null,null,null,null,null,null,null,null,null,null,null,null,"Type of chart","(All)",null,null,null,null,null,null,null,null,null,null,null,null,null,null,null,null,"Type of chart","(All)"]
[null,null,null,null,null,null,null,null,null,null,null,null,null,null,null,null,null,null,null,null,null,null,null,null,null,null,null,null,null,null,null,null,null,null,null,null,null,null,null,null,null,null,null,null,null,null,null,null,null,null,null,null,null,null,null,null,null,null,null,null,null,null,null,null,null,null,null,null,null,null,null,null,null,null,null,null,null,null,null,null,null,null,null,null,null,null,null,null,null,null,null,null,null,null,null,null,null,null,null,null,null,null,null,null,null,null,null,null,null,null,null,null,null,null,null,null,null,null,null,null,null,null,null,null,null,null,null,null,null,null,null,null,null,null,null,null,null,null,null,null,null,null,null,null,null,null,null,null,null,null,null,null,null,null,null,null,null,null,null,null,null,null,null,null,null,null,null,null,null,null,null,null,null,null,null,null,null,null,null,null,null,null,null,null,null,null,null,null,null,null,null,null,null,null,null,null,null,null,null,null,null,null,null,null,null,null,null,null,null,null,null,null,null,null,null,null,null,null,null,null,null,null,null,null,null,null,null,null,null,null,null,null,null,null,null,null,null,null,null,null,null,null,null,null,null,null,null,null,null,null,null,null,null,null,null,null,null,null,null,null,null,null,null,null,null,null,null,null,null,null,null,null,null,null,null,null,null,null,null,null,null,null,null,null,null,null,null,null,null,null,null,null,null,null,null,null,null,null,null,null,null,null,null,null,null,null,null,null,null,null,null,null,null,null,"Type of chart","(All)"]
[null,null,null,null,null,null,null,null,null,"Ward",null,null,null,null,null,null,null,null,null,null,null,null,null,null,null,null,"% Y on Q1.1","Ward",null,null,null,null,null,null,null,null,null,null,null,null,null,null,null,null,"% Y on Q1.2","Ward",null,null,null,null,null,null,null,null,null,null,null,null,null,null,null,null,"% Y on Q2.1","Ward",null,null,null,null,null,null,null,null,null,null,null,null,null,null,null,null,null,"Ward",null,null,null,null,null,null,null,null,null,null,null,null,null,null,null,null,"% Y on Q2.2","Ward",null,null,null,null,null,null,null,null,null,null,null,null,null,null,null,null,"% Y on Q2.2a","Ward",null,null,null,null,null,null,null,null,null,null,null,null,null,null,null,null,"% Y on Q2.3","Ward",null,null,null,null,null,null,null,null,null,null,null,null,null,null,null,null,"% Y on Q2.3a","Ward",null,null,null,null,null,null,null,null,null,null,null,null,null,null,null,null,"% Y on Q2.4","Ward",null,null,null,null,null,null,null,null,null,null,null,null,null,null,null,null,"Sum of % complete correct ","Ward",null,null,null,null,null,null,null,null,null,null,null,null,null,null,null,null,"Sum of % partial correct","Ward",null,null,null,null,null,null,null,null,null,null,null,null,null,null,null,null,"% Y on Q4","Ward",null,null,null,null,null,null,null,null,null,null,null,null,null,null,null,null,null,"Ward",null,null,null,null,null,null,null,null,null,null,null,null,null,null,null,null,"Rationale & duration documented","Ward",null,null,null,null,null,null,null,null,null,null,null,null,null,null,null,null,"Dated, signed, contact details","Ward",null,null,null,null,null,null,null,null,null,null,null,null,null,null,null,null,"% Y on Q5","Ward",null,null,null,null,null,null,null,null,null,null,null,null,null,null,null,null,null,null,null,null,null,null,null,null,null,null,null,null,null,null,null,null,null,null,"% Y on Q5a","Ward",null,null,null,null,null,null,null,null,null,null,null,null,null,null,null,null,"% Y on Q5b","Ward",null,null,null,null,null,null,null,null,null,null,null,null,null,null,null,null,"% Y on Q5c","Ward",null,null,null,null,null,null,null,null,null,null,null,null,null,null,null,null,"% Y on Q5d","Ward"]
[null,null,null,null,null,null,null,null,"Values",0,"Grand Total",null,null,null,null,null,null,null,null,null,null,null,null,null,null,null,"Week starting",0,"Grand Total",null,null,null,null,null,null,null,null,null,null,null,null,null,null,null,"Week starting",0,"Grand Total",null,null,null,null,null,null,null,null,null,null,null,null,null,null,null,"Week starting",0,"Grand Total",null,null,null,null,null,null,null,null,null,null,null,null,null,null,null,"Values",0,"Grand Total",null,null,null,null,null,null,null,null,null,null,null,null,null,null,null,"Week starting",0,"Grand Total",null,null,null,null,null,null,null,null,null,null,null,null,null,null,null,"Week starting",0,"Grand Total",null,null,null,null,null,null,null,null,null,null,null,null,null,null,null,"Week starting",0,"Grand Total",null,null,null,null,null,null,null,null,null,null,null,null,null,null,null,"Week starting",0,"Grand Total",null,null,null,null,null,null,null,null,null,null,null,null,null,null,null,"Week starting",0,"Grand Total",null,null,null,null,null,null,null,null,null,null,null,null,null,null,null,"Week starting",0,"Grand Total",null,null,null,null,null,null,null,null,null,null,null,null,null,null,null,"Week starting",0,"Grand Total",null,null,null,null,null,null,null,null,null,null,null,null,null,null,null,"Week starting",0,"Grand Total",null,null,null,null,null,null,null,null,null,null,null,null,null,null,null,"Values",0,"Grand Total",null,null,null,null,null,null,null,null,null,null,null,null,null,null,null,"Week starting",0,"Grand Total",null,null,null,null,null,null,null,null,null,null,null,null,null,null,null,"Week starting",0,"Grand Total",null,null,null,null,null,null,null,null,null,null,null,null,null,null,null,"Week starting",0,"Grand Total",null,null,null,null,null,null,null,null,null,null,null,null,null,null,null,null,"Ward",null,null,null,null,null,null,null,null,null,null,null,null,null,null,null,null,"Week starting",0,"Grand Total",null,null,null,null,null,null,null,null,null,null,null,null,null,null,null,"Week starting",0,"Grand Total",null,null,null,null,null,null,null,null,null,null,null,null,null,null,null,"Week starting",0,"Grand Total",null,null,null,null,null,null,null,null,null,null,null,null,null,null,null,"Week starting",0,"Grand Total"]
[null,null,null,null,null,null,null,null,"Appropriate frequency of monitoring",0,0,null,null,null,null,null,null,null,null,null,null,null,null,null,null,null,"2022-02-04",0,0,null,null,null,null,null,null,null,null,null,null,null,null,null,null,null,"2022-02-04",0,0,null,null,null,null,null,null,null,null,null,null,null,null,null,null,null,"2022-02-04",0,0,null,null,null,null,null,null,null,null,null,null,null,null,null,null,null,"Respiratory rate",0,0,null,null,null,null,null,null,null,null,null,null,null,null,null,null,null,"2022-02-04",0,0,null,null,null,null,null,null,null,null,null,null,null,null,null,null,null,"2022-02-04",null,null,null,null,null,null,null,null,null,null,null,null,null,null,null,null,null,"2022-02-04",0,0,null,null,null,null,null,null,null,null,null,null,null,null,null,null,null,"2022-02-04",null,null,null,null,null,null,null,null,null,null,null,null,null,null,null,null,null,"2022-02-04",0,0,null,null,null,null,null,null,null,null,null,null,null,null,null,null,null,"2022-02-04",null,null,null,null,null,null,null,null,null,null,null,null,null,null,null,null,null,"2022-02-04",null,null,null,null,null,null,null,null,null,null,null,null,null,null,null,null,null,"2022-02-04",0,0,null,null,null,null,null,null,null,null,null,null,null,null,null,null,null,"Rationale & duration documented",null,null,null,null,null,null,null,null,null,null,null,null,null,null,null,null,null,"2022-02-04",null,null,null,null,null,null,null,null,null,null,null,null,null,null,null,null,null,"2022-02-04",null,null,null,null,null,null,null,null,null,null,null,null,null,null,null,null,null,"2022-02-04",0,0,null,null,null,null,null,null,null,null,null,null,null,null,null,null,null,"Values",0,"Grand Total",null,null,null,null,null,null,null,null,null,null,null,null,null,null,null,"2022-02-04",null,null,null,null,null,null,null,null,null,null,null,null,null,null,null,null,null,"2022-02-04",null,null,null,null,null,null,null,null,null,null,null,null,null,null,null,null,null,"2022-02-04",null,null,null,null,null,null,null,null,null,null,null,null,null,null,null,null,null,"2022-02-04"]
[null,null,null,null,null,null,null,null,"Appropriate use of partial sets of vital signs",0,0,null,null,null,null,null,null,null,null,null,null,null,null,null,null,null,"2022-02-11",null,null,null,null,null,null,null,null,null,null,null,null,null,null,null,null,null,"2022-02-11",null,null,null,null,null,null,null,null,null,null,null,null,null,null,null,null,null,"2022-02-11",null,null,null,null,null,null,null,null,null,null,null,null,null,null,null,null,null,"Respiratory distress",0,0,null,null,null,null,null,null,null,null,null,null,null,null,null,null,null,"2022-02-11",null,null,null,null,null,null,null,null,null,null,null,null,null,null,null,null,null,"2022-02-11",null,null,null,null,null,null,null,null,null,null,null,null,null,null,null,null,null,"2022-02-11",null,null,null,null,null,null,null,null,null,null,null,null,null,null,null,null,null,"2022-02-11",null,null,null,null,null,null,null,null,null,null,null,null,null,null,null,null,null,"2022-02-11",null,null,null,null,null,null,null,null,null,null,null,null,null,null,null,null,null,"2022-02-11",null,null,null,null,null,null,null,null,null,null,null,null,null,null,null,null,null,"2022-02-11",null,null,null,null,null,null,null,null,null,null,null,null,null,null,null,null,null,"2022-02-11",null,null,null,null,null,null,null,null,null,null,null,null,null,null,null,null,null,"Dated, signed, contact details",null,null,null,null,null,null,null,null,null,null,null,null,null,null,null,null,null,"2022-02-11",null,null,null,null,null,null,null,null,null,null,null,null,null,null,null,null,null,"2022-02-11",null,null,null,null,null,null,null,null,null,null,null,null,null,null,null,null,null,"2022-02-11",null,null,null,null,null,null,null,null,null,null,null,null,null,null,null,null,null,"Escalation as per pathway",null,null,null,null,null,null,null,null,null,null,null,null,null,null,null,null,null,"2022-02-11",null,null,null,null,null,null,null,null,null,null,null,null,null,null,null,null,null,"2022-02-11",null,null,null,null,null,null,null,null,null,null,null,null,null,null,null,null,null,"2022-02-11",null,null,null,null,null,null,null,null,null,null,null,null,null,null,null,null,null,"2022-02-11"]
[null,null,null,null,null,null,null,null,"Completed core vital sign set",0,0,null,null,null,null,null,null,null,null,null,null,null,null,null,null,null,"2022-02-18",null,null,null,null,null,null,null,null,null,null,null,null,null,null,null,null,null,"2022-02-18",null,null,null,null,null,null,null,null,null,null,null,null,null,null,null,null,null,"2022-02-18",null,null,null,null,null,null,null,null,null,null,null,null,null,null,null,null,null,"Oxygen",0,0,null,null,null,null,null,null,null,null,null,null,null,null,null,null,null,"2022-02-18",null,null,null,null,null,null,null,null,null,null,null,null,null,null,null,null,null,"2022-02-18",null,null,null,null,null,null,null,null,null,null,null,null,null,null,null,null,null,"2022-02-18",null,null,null,null,null,null,null,null,null,null,null,null,null,null,null,null,null,"2022-02-18",null,null,null,null,null,null,null,null,null,null,null,null,null,null,null,null,null,"2022-02-18",null,null,null,null,null,null,null,null,null,null,null,null,null,null,null,null,null,"2022-02-18",null,null,null,null,null,null,null,null,null,null,null,null,null,null,null,null,null,"2022-02-18",null,null,null,null,null,null,null,null,null,null,null,null,null,null,null,null,null,"2022-02-18",null,null,null,null,null,null,null,null,null,null,null,null,null,null,null,null,null,null,null,null,null,null,null,null,null,null,null,null,null,null,null,null,null,null,null,"2022-02-18",null,null,null,null,null,null,null,null,null,null,null,null,null,null,null,null,null,"2022-02-18",null,null,null,null,null,null,null,null,null,null,null,null,null,null,null,null,null,"2022-02-18",null,null,null,null,null,null,null,null,null,null,null,null,null,null,null,null,null,"Response as per pathway",null,null,null,null,null,null,null,null,null,null,null,null,null,null,null,null,null,"2022-02-18",null,null,null,null,null,null,null,null,null,null,null,null,null,null,null,null,null,"2022-02-18",null,null,null,null,null,null,null,null,null,null,null,null,null,null,null,null,null,"2022-02-18",null,null,null,null,null,null,null,null,null,null,null,null,null,null,null,null,null,"2022-02-18"]
[null,null,null,null,null,null,null,null,"PEWS correctly calculated (partials and  complete)",0,0,null,null,null,null,null,null,null,null,null,null,null,null,null,null,null,"2022-02-25",null,null,null,null,null,null,null,null,null,null,null,null,null,null,null,null,null,"2022-02-25",null,null,null,null,null,null,null,null,null,null,null,null,null,null,null,null,null,"2022-02-25",null,null,null,null,null,null,null,null,null,null,null,null,null,null,null,null,null,"Oxygen saturation",0,0,null,null,null,null,null,null,null,null,null,null,null,null,null,null,null,"2022-02-25",null,null,null,null,null,null,null,null,null,null,null,null,null,null,null,null,null,"2022-02-25",null,null,null,null,null,null,null,null,null,null,null,null,null,null,null,null,null,"2022-02-25",null,null,null,null,null,null,null,null,null,null,null,null,null,null,null,null,null,"2022-02-25",null,null,null,null,null,null,null,null,null,null,null,null,null,null,null,null,null,"2022-02-25",null,null,null,null,null,null,null,null,null,null,null,null,null,null,null,null,null,"2022-02-25",null,null,null,null,null,null,null,null,null,null,null,null,null,null,null,null,null,"2022-02-25",null,null,null,null,null,null,null,null,null,null,null,null,null,null,null,null,null,"2022-02-25",null,null,null,null,null,null,null,null,null,null,null,null,null,null,null,null,null,null,null,null,null,null,null,null,null,null,null,null,null,null,null,null,null,null,null,"2022-02-25",null,null,null,null,null,null,null,null,null,null,null,null,null,null,null,null,null,"2022-02-25",null,null,null,null,null,null,null,null,null,null,null,null,null,null,null,null,null,"2022-02-25",null,null,null,null,null,null,null,null,null,null,null,null,null,null,null,null,null,"Responder - Documentation as per local policy",null,null,null,null,null,null,null,null,null,null,null,null,null,null,null,null,null,"2022-02-25",null,null,null,null,null,null,null,null,null,null,null,null,null,null,null,null,null,"2022-02-25",null,null,null,null,null,null,null,null,null,null,null,null,null,null,null,null,null,"2022-02-25",null,null,null,null,null,null,null,null,null,null,null,null,null,null,null,null,null,"2022-02-25"]
[null,null,null,null,null,null,null,null,null,null,null,null,null,null,null,null,null,null,null,null,null,null,null,null,null,null,"2022-03-04",null,null,null,null,null,null,null,null,null,null,null,null,null,null,null,null,null,"2022-03-04",null,null,null,null,null,null,null,null,null,null,null,null,null,null,null,null,null,"2022-03-04",null,null,null,null,null,null,null,null,null,null,null,null,null,null,null,null,null,"Heart rate",0,0,null,null,null,null,null,null,null,null,null,null,null,null,null,null,null,"2022-03-04",null,null,null,null,null,null,null,null,null,null,null,null,null,null,null,null,null,"2022-03-04",null,null,null,null,null,null,null,null,null,null,null,null,null,null,null,null,null,"2022-03-04",null,null,null,null,null,null,null,null,null,null,null,null,null,null,null,null,null,"2022-03-04",null,null,null,null,null,null,null,null,null,null,null,null,null,null,null,null,null,"2022-03-04",null,null,null,null,null,null,null,null,null,null,null,null,null,null,null,null,null,"2022-03-04",null,null,null,null,null,null,null,null,null,null,null,null,null,null,null,null,null,"2022-03-04",null,null,null,null,null,null,null,null,null,null,null,null,null,null,null,null,null,"2022-03-04",null,null,null,null,null,null,null,null,null,null,null,null,null,null,null,null,null,null,null,null,null,null,null,null,null,null,null,null,null,null,null,null,null,null,null,"2022-03-04",null,null,null,null,null,null,null,null,null,null,null,null,null,null,null,null,null,"2022-03-04",null,null,null,null,null,null,null,null,null,null,null,null,null,null,null,null,null,"2022-03-04",null,null,null,null,null,null,null,null,null,null,null,null,null,null,null,null,null,"Recogniser - Documentation as per local policy",null,null,null,null,null,null,null,null,null,null,null,null,null,null,null,null,null,"2022-03-04",null,null,null,null,null,null,null,null,null,null,null,null,null,null,null,null,null,"2022-03-04",null,null,null,null,null,null,null,null,null,null,null,null,null,null,null,null,null,"2022-03-04",null,null,null,null,null,null,null,null,null,null,null,null,null,null,null,null,null,"2022-03-04"]
[null,null,null,null,null,null,null,null,null,null,null,null,null,null,null,null,null,null,null,null,null,null,null,null,null,null,"2022-03-11",null,null,null,null,null,null,null,null,null,null,null,null,null,null,null,null,null,"2022-03-11",null,null,null,null,null,null,null,null,null,null,null,null,null,null,null,null,null,"2022-03-11",null,null,null,null,null,null,null,null,null,null,null,null,null,null,null,null,null,"Central capillary refill",0,0,null,null,null,null,null,null,null,null,null,null,null,null,null,null,null,"2022-03-11",null,null,null,null,null,null,null,null,null,null,null,null,null,null,null,null,null,"2022-03-11",null,null,null,null,null,null,null,null,null,null,null,null,null,null,null,null,null,"2022-03-11",null,null,null,null,null,null,null,null,null,null,null,null,null,null,null,null,null,"2022-03-11",null,null,null,null,null,null,null,null,null,null,null,null,null,null,null,null,null,"2022-03-11",null,null,null,null,null,null,null,null,null,null,null,null,null,null,null,null,null,"2022-03-11",null,null,null,null,null,null,null,null,null,null,null,null,null,null,null,null,null,"2022-03-11",null,null,null,null,null,null,null,null,null,null,null,null,null,null,null,null,null,"2022-03-11",null,null,null,null,null,null,null,null,null,null,null,null,null,null,null,null,null,null,null,null,null,null,null,null,null,null,null,null,null,null,null,null,null,null,null,"2022-03-11",null,null,null,null,null,null,null,null,null,null,null,null,null,null,null,null,null,"2022-03-11",null,null,null,null,null,null,null,null,null,null,null,null,null,null,null,null,null,"2022-03-11",null,null,null,null,null,null,null,null,null,null,null,null,null,null,null,null,null,null,null,null,null,null,null,null,null,null,null,null,null,null,null,null,null,null,null,"2022-03-11",null,null,null,null,null,null,null,null,null,null,null,null,null,null,null,null,null,"2022-03-11",null,null,null,null,null,null,null,null,null,null,null,null,null,null,null,null,null,"2022-03-11",null,null,null,null,null,null,null,null,null,null,null,null,null,null,null,null,null,"2022-03-11"]
[null,null,null,null,null,null,null,null,null,null,null,null,null,null,null,null,null,null,null,null,null,null,null,null,null,null,"2022-03-18",null,null,null,null,null,null,null,null,null,null,null,null,null,null,null,null,null,"2022-03-18",null,null,null,null,null,null,null,null,null,null,null,null,null,null,null,null,null,"2022-03-18",null,null,null,null,null,null,null,null,null,null,null,null,null,null,null,null,null,"Systolic blood pressure",0,0,null,null,null,null,null,null,null,null,null,null,null,null,null,null,null,"2022-03-18",null,null,null,null,null,null,null,null,null,null,null,null,null,null,null,null,null,"2022-03-18",null,null,null,null,null,null,null,null,null,null,null,null,null,null,null,null,null,"2022-03-18",null,null,null,null,null,null,null,null,null,null,null,null,null,null,null,null,null,"2022-03-18",null,null,null,null,null,null,null,null,null,null,null,null,null,null,null,null,null,"2022-03-18",null,null,null,null,null,null,null,null,null,null,null,null,null,null,null,null,null,"2022-03-18",null,null,null,null,null,null,null,null,null,null,null,null,null,null,null,null,null,"2022-03-18",null,null,null,null,null,null,null,null,null,null,null,null,null,null,null,null,null,"2022-03-18",null,null,null,null,null,null,null,null,null,null,null,null,null,null,null,null,null,null,null,null,null,null,null,null,null,null,null,null,null,null,null,null,null,null,null,"2022-03-18",null,null,null,null,null,null,null,null,null,null,null,null,null,null,null,null,null,"2022-03-18",null,null,null,null,null,null,null,null,null,null,null,null,null,null,null,null,null,"2022-03-18",null,null,null,null,null,null,null,null,null,null,null,null,null,null,null,null,null,"NOTE: A blank data field means there were no 'yes' responses for the question and/or no patients triggered as escalation.",null,null,null,null,null,null,null,null,null,null,null,null,null,null,null,null,null,"2022-03-18",null,null,null,null,null,null,null,null,null,null,null,null,null,null,null,null,null,"2022-03-18",null,null,null,null,null,null,null,null,null,null,null,null,null,null,null,null,null,"2022-03-18",null,null,null,null,null,null,null,null,null,null,null,null,null,null,null,null,null,"2022-03-18"]
[null,null,null,null,null,null,null,null,null,null,null,null,null,null,null,null,null,null,null,null,null,null,null,null,null,null,"2022-03-25",null,null,null,null,null,null,null,null,null,null,null,null,null,null,null,null,null,"2022-03-25",null,null,null,null,null,null,null,null,null,null,null,null,null,null,null,null,null,"2022-03-25",null,null,null,null,null,null,null,null,null,null,null,null,null,null,null,null,null,null,null,null,null,null,null,null,null,null,null,null,null,null,null,null,null,null,null,"2022-03-25",null,null,null,null,null,null,null,null,null,null,null,null,null,null,null,null,null,"2022-03-25",null,null,null,null,null,null,null,null,null,null,null,null,null,null,null,null,null,"2022-03-25",null,null,null,null,null,null,null,null,null,null,null,null,null,null,null,null,null,"2022-03-25",null,null,null,null,null,null,null,null,null,null,null,null,null,null,null,null,null,"2022-03-25",null,null,null,null,null,null,null,null,null,null,null,null,null,null,null,null,null,"2022-03-25",null,null,null,null,null,null,null,null,null,null,null,null,null,null,null,null,null,"2022-03-25",null,null,null,null,null,null,null,null,null,null,null,null,null,null,null,null,null,"2022-03-25",null,null,null,null,null,null,null,null,null,null,null,null,null,null,null,null,null,null,null,null,null,null,null,null,null,null,null,null,null,null,null,null,null,null,null,"2022-03-25",null,null,null,null,null,null,null,null,null,null,null,null,null,null,null,null,null,"2022-03-25",null,null,null,null,null,null,null,null,null,null,null,null,null,null,null,null,null,"2022-03-25",null,null,null,null,null,null,null,null,null,null,null,null,null,null,null,null,null,null,null,null,null,null,null,null,null,null,null,null,null,null,null,null,null,null,null,"2022-03-25",null,null,null,null,null,null,null,null,null,null,null,null,null,null,null,null,null,"2022-03-25",null,null,null,null,null,null,null,null,null,null,null,null,null,null,null,null,null,"2022-03-25",null,null,null,null,null,null,null,null,null,null,null,null,null,null,null,null,null,"2022-03-25"]
[null,null,null,null,null,null,null,null,null,null,null,null,null,null,null,null,null,null,null,null,null,null,null,null,null,null,"2022-04-01",null,null,null,null,null,null,null,null,null,null,null,null,null,null,null,null,null,"2022-04-01",null,null,null,null,null,null,null,null,null,null,null,null,null,null,null,null,null,"2022-04-01",null,null,null,null,null,null,null,null,null,null,null,null,null,null,null,null,null,null,null,null,null,null,null,null,null,null,null,null,null,null,null,null,null,null,null,"2022-04-01",null,null,null,null,null,null,null,null,null,null,null,null,null,null,null,null,null,"2022-04-01",null,null,null,null,null,null,null,null,null,null,null,null,null,null,null,null,null,"2022-04-01",null,null,null,null,null,null,null,null,null,null,null,null,null,null,null,null,null,"2022-04-01",null,null,null,null,null,null,null,null,null,null,null,null,null,null,null,null,null,"2022-04-01",null,null,null,null,null,null,null,null,null,null,null,null,null,null,null,null,null,"2022-04-01",null,null,null,null,null,null,null,null,null,null,null,null,null,null,null,null,null,"2022-04-01",null,null,null,null,null,null,null,null,null,null,null,null,null,null,null,null,null,"2022-04-01",null,null,null,null,null,null,null,null,null,null,null,null,null,null,null,null,null,null,null,null,null,null,null,null,null,null,null,null,null,null,null,null,null,null,null,"2022-04-01",null,null,null,null,null,null,null,null,null,null,null,null,null,null,null,null,null,"2022-04-01",null,null,null,null,null,null,null,null,null,null,null,null,null,null,null,null,null,"2022-04-01",null,null,null,null,null,null,null,null,null,null,null,null,null,null,null,null,null,null,null,null,null,null,null,null,null,null,null,null,null,null,null,null,null,null,null,"2022-04-01",null,null,null,null,null,null,null,null,null,null,null,null,null,null,null,null,null,"2022-04-01",null,null,null,null,null,null,null,null,null,null,null,null,null,null,null,null,null,"2022-04-01",null,null,null,null,null,null,null,null,null,null,null,null,null,null,null,null,null,"2022-04-01"]
[null,null,null,null,null,null,null,null,null,null,null,null,null,null,null,null,null,null,null,null,null,null,null,null,null,null,"2022-04-08",null,null,null,null,null,null,null,null,null,null,null,null,null,null,null,null,null,"2022-04-08",null,null,null,null,null,null,null,null,null,null,null,null,null,null,null,null,null,"2022-04-08",null,null,null,null,null,null,null,null,null,null,null,null,null,null,null,null,null,null,null,null,null,null,null,null,null,null,null,null,null,null,null,null,null,null,null,"2022-04-08",null,null,null,null,null,null,null,null,null,null,null,null,null,null,null,null,null,"2022-04-08",null,null,null,null,null,null,null,null,null,null,null,null,null,null,null,null,null,"2022-04-08",null,null,null,null,null,null,null,null,null,null,null,null,null,null,null,null,null,"2022-04-08",null,null,null,null,null,null,null,null,null,null,null,null,null,null,null,null,null,"2022-04-08",null,null,null,null,null,null,null,null,null,null,null,null,null,null,null,null,null,"2022-04-08",null,null,null,null,null,null,null,null,null,null,null,null,null,null,null,null,null,"2022-04-08",null,null,null,null,null,null,null,null,null,null,null,null,null,null,null,null,null,"2022-04-08",null,null,null,null,null,null,null,null,null,null,null,null,null,null,null,null,null,null,null,null,null,null,null,null,null,null,null,null,null,null,null,null,null,null,null,"2022-04-08",null,null,null,null,null,null,null,null,null,null,null,null,null,null,null,null,null,"2022-04-08",null,null,null,null,null,null,null,null,null,null,null,null,null,null,null,null,null,"2022-04-08",null,null,null,null,null,null,null,null,null,null,null,null,null,null,null,null,null,null,null,null,null,null,null,null,null,null,null,null,null,null,null,null,null,null,null,"2022-04-08",null,null,null,null,null,null,null,null,null,null,null,null,null,null,null,null,null,"2022-04-08",null,null,null,null,null,null,null,null,null,null,null,null,null,null,null,null,null,"2022-04-08",null,null,null,null,null,null,null,null,null,null,null,null,null,null,null,null,null,"2022-04-08"]
[null,null,null,null,null,null,null,null,null,null,null,null,null,null,null,null,null,null,null,null,null,null,null,null,null,null,"2022-04-15",null,null,null,null,null,null,null,null,null,null,null,null,null,null,null,null,null,"2022-04-15",null,null,null,null,null,null,null,null,null,null,null,null,null,null,null,null,null,"2022-04-15",null,null,null,null,null,null,null,null,null,null,null,null,null,null,null,null,null,null,null,null,null,null,null,null,null,null,null,null,null,null,null,null,null,null,null,"2022-04-15",null,null,null,null,null,null,null,null,null,null,null,null,null,null,null,null,null,"2022-04-15",null,null,null,null,null,null,null,null,null,null,null,null,null,null,null,null,null,"2022-04-15",null,null,null,null,null,null,null,null,null,null,null,null,null,null,null,null,null,"2022-04-15",null,null,null,null,null,null,null,null,null,null,null,null,null,null,null,null,null,"2022-04-15",null,null,null,null,null,null,null,null,null,null,null,null,null,null,null,null,null,"2022-04-15",null,null,null,null,null,null,null,null,null,null,null,null,null,null,null,null,null,"2022-04-15",null,null,null,null,null,null,null,null,null,null,null,null,null,null,null,null,null,"2022-04-15",null,null,null,null,null,null,null,null,null,null,null,null,null,null,null,null,null,null,null,null,null,null,null,null,null,null,null,null,null,null,null,null,null,null,null,"2022-04-15",null,null,null,null,null,null,null,null,null,null,null,null,null,null,null,null,null,"2022-04-15",null,null,null,null,null,null,null,null,null,null,null,null,null,null,null,null,null,"2022-04-15",null,null,null,null,null,null,null,null,null,null,null,null,null,null,null,null,null,null,null,null,null,null,null,null,null,null,null,null,null,null,null,null,null,null,null,"2022-04-15",null,null,null,null,null,null,null,null,null,null,null,null,null,null,null,null,null,"2022-04-15",null,null,null,null,null,null,null,null,null,null,null,null,null,null,null,null,null,"2022-04-15",null,null,null,null,null,null,null,null,null,null,null,null,null,null,null,null,null,"2022-04-15"]
[null,null,null,null,null,null,null,null,null,null,null,null,null,null,null,null,null,null,null,null,null,null,null,null,null,null,"2022-04-22",null,null,null,null,null,null,null,null,null,null,null,null,null,null,null,null,null,"2022-04-22",null,null,null,null,null,null,null,null,null,null,null,null,null,null,null,null,null,"2022-04-22",null,null,null,null,null,null,null,null,null,null,null,null,null,null,null,null,null,null,null,null,null,null,null,null,null,null,null,null,null,null,null,null,null,null,null,"2022-04-22",null,null,null,null,null,null,null,null,null,null,null,null,null,null,null,null,null,"2022-04-22",null,null,null,null,null,null,null,null,null,null,null,null,null,null,null,null,null,"2022-04-22",null,null,null,null,null,null,null,null,null,null,null,null,null,null,null,null,null,"2022-04-22",null,null,null,null,null,null,null,null,null,null,null,null,null,null,null,null,null,"2022-04-22",null,null,null,null,null,null,null,null,null,null,null,null,null,null,null,null,null,"2022-04-22",null,null,null,null,null,null,null,null,null,null,null,null,null,null,null,null,null,"2022-04-22",null,null,null,null,null,null,null,null,null,null,null,null,null,null,null,null,null,"2022-04-22",null,null,null,null,null,null,null,null,null,null,null,null,null,null,null,null,null,null,null,null,null,null,null,null,null,null,null,null,null,null,null,null,null,null,null,"2022-04-22",null,null,null,null,null,null,null,null,null,null,null,null,null,null,null,null,null,"2022-04-22",null,null,null,null,null,null,null,null,null,null,null,null,null,null,null,null,null,"2022-04-22",null,null,null,null,null,null,null,null,null,null,null,null,null,null,null,null,null,null,null,null,null,null,null,null,null,null,null,null,null,null,null,null,null,null,null,"2022-04-22",null,null,null,null,null,null,null,null,null,null,null,null,null,null,null,null,null,"2022-04-22",null,null,null,null,null,null,null,null,null,null,null,null,null,null,null,null,null,"2022-04-22",null,null,null,null,null,null,null,null,null,null,null,null,null,null,null,null,null,"2022-04-22"]
[null,null,null,null,null,null,null,null,null,null,null,null,null,null,null,null,null,null,null,null,null,null,null,null,null,null,"Grand Total",0,null,null,null,null,null,null,null,null,null,null,null,null,null,null,null,null,"Grand Total",0,null,null,null,null,null,null,null,null,null,null,null,null,null,null,null,null,"Grand Total",0,null,null,null,null,null,null,null,null,null,null,null,null,null,null,null,null,null,null,null,null,null,null,null,null,null,null,null,null,null,null,null,null,null,null,"Grand Total",0,null,null,null,null,null,null,null,null,null,null,null,null,null,null,null,null,"Grand Total",null,null,null,null,null,null,null,null,null,null,null,null,null,null,null,null,null,"Grand Total",0,null,null,null,null,null,null,null,null,null,null,null,null,null,null,null,null,"Grand Total",null,null,null,null,null,null,null,null,null,null,null,null,null,null,null,null,null,"Grand Total",0,null,null,null,null,null,null,null,null,null,null,null,null,null,null,null,null,"Grand Total",null,null,null,null,null,null,null,null,null,null,null,null,null,null,null,null,null,"Grand Total",null,null,null,null,null,null,null,null,null,null,null,null,null,null,null,null,null,"Grand Total",0,null,null,null,null,null,null,null,null,null,null,null,null,null,null,null,null,null,null,null,null,null,null,null,null,null,null,null,null,null,null,null,null,null,null,"Grand Total",null,null,null,null,null,null,null,null,null,null,null,null,null,null,null,null,null,"Grand Total",null,null,null,null,null,null,null,null,null,null,null,null,null,null,null,null,null,"Grand Total",0,null,null,null,null,null,null,null,null,null,null,null,null,null,null,null,null,null,null,null,null,null,null,null,null,null,null,null,null,null,null,null,null,null,null,"Grand Total",null,null,null,null,null,null,null,null,null,null,null,null,null,null,null,null,null,"Grand Total",null,null,null,null,null,null,null,null,null,null,null,null,null,null,null,null,null,"Grand Total",null,null,null,null,null,null,null,null,null,null,null,null,null,null,null,null,null,"Grand Total"]
[]
[]
[]
[]
[]
[]
[]
[]
[]
[]
[]
[]
[]
[]
[]
[]
[]
[]
[]
[null,null,null,null,null,null,null,null,null,null,null,null,null,null,null,null,null,null,null,null,null,null,null,null,null,null,null,null,null,null,null,null,null,null,null,null,null,null,null,null,null,null,null,null,null,null,null,null,null,null,null,null,null,null,null,null,null,null,null,null,null,null,null,null,null,null,null,null,null,null,null,null,null,null,null,null,null,null,null,null,"These show the results at a glance and help you identify the areas that need focused improvement activity.   "]
[null,null,null,null,null,null,null,null,null,null,null,null,null,null,null,null,null,null,null,null,null,null,null,null,null,null,null,null,null,null,null,null,null,null,null,null,null,null,null,null,null,null,null,null,null,null,null,null,null,null,null,null,null,null,null,null,null,null,null,null,null,null,null,null,null,null,null,null,null,null,null,null,null,null,null,null,null,null,null,null,"Ideally, you want the line(s) to be close to 100% (the outermost line)."]
[]
[]
[]
[]
[]
[]
[]
[]
[]
[]
[null,null,null,null,null,null,null,null,"These show the results at a glance and help you identify the areas that need focused improvement activity.   "]
[null,null,null,null,null,null,null,null,"For the triangle graph, you want the line(s) to be close to 100% (the outermost line)."]

{"sheet":"Charts for dashboard","index":7,"n_rows":35,"n_cols":389,"rows_kept":35,"cut":false,"hidden":true,"merged":[]}
[null,null,null,null,null,null,null,null,null,"Important note: Before using this page, click 'refresh' button"]
[]
["Legend",null,null,null,null,null,null,null,"Summary diagram",null,null,null,null,null,null,null,null,null,null,null,null,null,null,null,null,null,"Q1.1: Appropriate frequency of monitoring",null,null,null,null,null,null,null,null,null,null,null,null,null,null,null,null,null,"Q1.2: Appropriate use of partial sets of vital signs",null,null,null,null,null,null,null,null,null,null,null,null,null,null,null,null,null,"Q2.1: Completed core vital sign set for the most recent set of vital signs",null,null,null,null,null,null,null,null,null,null,null,null,null,null,null,null,null,"Q2.1 & Q2.1a-g: % of completed core vital signs",null,null,null,null,null,null,null,null,null,null,null,null,null,null,null,null,null,"Q2.2: PEWS total marked with asterisk sign for most recent set of vital signs",null,null,null,null,null,null,null,null,null,null,null,null,null,null,null,null,null,"Q2.2a: Reason for partial recording documented",null,null,null,null,null,null,null,null,null,null,null,null,null,null,null,null,null,"Q2.3: Whānau and/or staff concern recorded for the patient",null,null,null,null,null,null,null,null,null,null,null,null,null,null,null,null,null,"Q2.3a: Whānau and/or staff concern acted on and documented",null,null,null,null,null,null,null,null,null,null,null,null,null,null,null,null,null,"Q2.4: Patient marked as 'unresponsive' in level of consciousness",null,null,null,null,null,null,null,null,null,null,null,null,null,null,null,null,null,"Q3 complete: Most recent PEWS calculated correctly",null,null,null,null,null,null,null,null,null,null,null,null,null,null,null,null,null,"Q3 partial: Most recent PEWS calculated correctly",null,null,null,null,null,null,null,null,null,null,null,null,null,null,null,null,null,"Q4: Modifications made to PEWS triggers",null,null,null,null,null,null,null,null,null,null,null,null,null,null,null,null,null,"Q4a-b: Modifications summary",null,null,null,null,null,null,null,null,null,null,null,null,null,null,null,null,null,"Q4a: Modifications with clinical requirements recorded",null,null,null,null,null,null,null,null,null,null,null,null,null,null,null,null,null,"Q4b: Modifications with documentation requirements recorded",null,null,null,null,null,null,null,null,null,null,null,null,null,null,null,null,null,"Q5: Triggers for escalation reached in, or up to, the 24-hour audit period",null,null,null,null,null,null,null,null,null,null,null,null,null,null,null,null,null,"Q5a-d: Escalation summary",null,null,null,null,null,null,null,null,null,null,null,null,null,null,null,null,null,"Q5a: Escalation as per pathway",null,null,null,null,null,null,null,null,null,null,null,null,null,null,null,null,null,"Q5b: Response as per pathway",null,null,null,null,null,null,null,null,null,null,null,null,null,null,null,null,null,"Q5c: Responder - Documentation as per local policy",null,null,null,null,null,null,null,null,null,null,null,null,null,null,null,null,null,"Q5d: Recogniser - Documentation as per local policy"]
[null,null,null,null,null,null,null,null,"Week starting","(All)",null,null,null,null,null,null,null,null,null,null,null,null,null,null,null,null,null,null,null,null,null,null,null,null,null,null,null,null,null,null,null,null,null,null,null,null,null,null,null,null,null,null,null,null,null,null,null,null,null,null,null,null,null,null,null,null,null,null,null,null,null,null,null,null,null,null,null,null,null,null,"Ethnicity","(All)",null,null,null,null,null,null,null,null,null,null,null,null,null,null,null,null,null,null,null,null,null,null,null,null,null,null,null,null,null,null,null,null,null,null,null,null,null,null,null,null,null,null,null,null,null,null,null,null,null,null,null,null,null,null,null,null,null,null,null,null,null,null,null,null,null,null,null,null,null,null,null,null,null,null,null,null,null,null,null,null,null,null,null,null,null,null,null,null,null,null,null,null,null,null,null,null,null,null,null,null,null,null,null,null,null,null,null,null,null,null,null,null,null,null,null,null,null,null,null,null,null,null,null,null,null,null,null,null,null,null,null,null,null,null,null,null,null,null,null,null,null,null,null,null,null,null,null,null,null,null,null,null,null,null,null,null,null,null,null,null,null,null,null,null,null,null,null,null,null,null,null,null,null,null,null,null,null,null,"NOTE: Percentages below are shown as a % of number of modifications",null,null,null,null,null,null,null,null,null,null,null,null,null,null,null,null,null,"NOTE: Percentages below are shown as a % of number of modifications",null,null,null,null,null,null,null,null,null,null,null,null,null,null,null,null,null,null,null,null,null,null,null,null,null,null,null,null,null,null,null,null,null,null,null,"NOTE: Percentages below are shown as a % of number of patients who triggered an escalation",null,null,null,null,null,null,null,null,null,null,null,null,null,null,null,null,null,"NOTE: Percentages below are shown as a % of number of patients who triggered an escalation",null,null,null,null,null,null,null,null,null,null,null,null,null,null,null,null,null,"NOTE: Percentages below are shown as a % of number of patients who triggered an escalation"]
[null,null,null,null,null,null,null,null,"Ethnicity","(All)",null,null,null,null,null,null,null,null,null,null,null,null,null,null,null,null,"Ethnicity","(All)",null,null,null,null,null,null,null,null,null,null,null,null,null,null,null,null,"Ethnicity","(All)",null,null,null,null,null,null,null,null,null,null,null,null,null,null,null,null,"Ethnicity","(All)",null,null,null,null,null,null,null,null,null,null,null,null,null,null,null,null,"Week starting","(All)",null,null,null,null,null,null,null,null,null,null,null,null,null,null,null,null,"Ethnicity","(All)",null,null,null,null,null,null,null,null,null,null,null,null,null,null,null,null,"Ethnicity","(All)",null,null,null,null,null,null,null,null,null,null,null,null,null,null,null,null,"Ethnicity","(All)",null,null,null,null,null,null,null,null,null,null,null,null,null,null,null,null,"Ethnicity","(All)",null,null,null,null,null,null,null,null,null,null,null,null,null,null,null,null,"Ethnicity","(All)",null,null,null,null,null,null,null,null,null,null,null,null,null,null,null,null,"Ethnicity","(All)",null,null,null,null,null,null,null,null,null,null,null,null,null,null,null,null,"Ethnicity","(All)",null,null,null,null,null,null,null,null,null,null,null,null,null,null,null,null,"Ethnicity","(All)",null,null,null,null,null,null,null,null,null,null,null,null,null,null,null,null,"Ethnicity","(All)",null,null,null,null,null,null,null,null,null,null,null,null,null,null,null,null,"Ethnicity","(All)",null,null,null,null,null,null,null,null,null,null,null,null,null,null,null,null,"Ethnicity","(All)",null,null,null,null,null,null,null,null,null,null,null,null,null,null,null,null,"Ethnicity","(All)",null,null,null,null,null,null,null,null,null,null,null,null,null,null,null,null,"Ethnicity","(All)",null,null,null,null,null,null,null,null,null,null,null,null,null,null,null,null,"Ethnicity","(All)",null,null,null,null,null,null,null,null,null,null,null,null,null,null,null,null,"Ethnicity","(All)",null,null,null,null,null,null,null,null,null,null,null,null,null,null,null,null,"Ethnicity","(All)",null,null,null,null,null,null,null,null,null,null,null,null,null,null,null,null,"Ethnicity","(All)"]
["Ward",null,null,null,null,null,null,null,"Age","(All)",null,null,null,null,null,null,null,null,null,null,null,null,null,null,null,null,"Age","(All)",null,null,null,null,null,null,null,null,null,null,null,null,null,null,null,null,"Age","(All)",null,null,null,null,null,null,null,null,null,null,null,null,null,null,null,null,"Age","(All)",null,null,null,null,null,null,null,null,null,null,null,null,null,null,null,null,"Age","(All)",null,null,null,null,null,null,null,null,null,null,null,null,null,null,null,null,"Age","(All)",null,null,null,null,null,null,null,null,null,null,null,null,null,null,null,null,"Age","(All)",null,null,null,null,null,null,null,null,null,null,null,null,null,null,null,null,"Age","(All)",null,null,null,null,null,null,null,null,null,null,null,null,null,null,null,null,"Age","(All)",null,null,null,null,null,null,null,null,null,null,null,null,null,null,null,null,"Age","(All)",null,null,null,null,null,null,null,null,null,null,null,null,null,null,null,null,"Age","(All)",null,null,null,null,null,null,null,null,null,null,null,null,null,null,null,null,"Age","(All)",null,null,null,null,null,null,null,null,null,null,null,null,null,null,null,null,"Age","(All)",null,null,null,null,null,null,null,null,null,null,null,null,null,null,null,null,"Age","(All)",null,null,null,null,null,null,null,null,null,null,null,null,null,null,null,null,"Age","(All)",null,null,null,null,null,null,null,null,null,null,null,null,null,null,null,null,"Age","(All)",null,null,null,null,null,null,null,null,null,null,null,null,null,null,null,null,"Age","(All)",null,null,null,null,null,null,null,null,null,null,null,null,null,null,null,null,"Week starting","(All)",null,null,null,null,null,null,null,null,null,null,null,null,null,null,null,null,"Age","(All)",null,null,null,null,null,null,null,null,null,null,null,null,null,null,null,null,"Age","(All)",null,null,null,null,null,null,null,null,null,null,null,null,null,null,null,null,"Age","(All)",null,null,null,null,null,null,null,null,null,null,null,null,null,null,null,null,"Age","(All)"]
[0,"Grand Total",null,null,null,null,null,null,"Type of chart","(All)",null,null,null,null,null,null,null,null,null,null,null,null,null,null,null,null,"Type of chart","(All)",null,null,null,null,null,null,null,null,null,null,null,null,null,null,null,null,"Type of chart","(All)",null,null,null,null,null,null,null,null,null,null,null,null,null,null,null,null,"Type of chart","(All)",null,null,null,null,null,null,null,null,null,null,null,null,null,null,null,null,"Type of chart","(All)",null,null,null,null,null,null,null,null,null,null,null,null,null,null,null,null,"Type of chart","(All)",null,null,null,null,null,null,null,null,null,null,null,null,null,null,null,null,"Type of chart","(All)",null,null,null,null,null,null,null,null,null,null,null,null,null,null,null,null,"Type of chart","(All)",null,null,null,null,null,null,null,null,null,null,null,null,null,null,null,null,"Type of chart","(All)",null,null,null,null,null,null,null,null,null,null,null,null,null,null,null,null,"Type of chart","(All)",null,null,null,null,null,null,null,null,null,null,null,null,null,null,null,null,"Type of chart","(All)",null,null,null,null,null,null,null,null,null,null,null,null,null,null,null,null,"Type of chart","(All)",null,null,null,null,null,null,null,null,null,null,null,null,null,null,null,null,"Type of chart","(All)",null,null,null,null,null,null,null,null,null,null,null,null,null,null,null,null,"Type of chart","(All)",null,null,null,null,null,null,null,null,null,null,null,null,null,null,null,null,"Type of chart","(All)",null,null,null,null,null,null,null,null,null,null,null,null,null,null,null,null,"Type of chart","(All)",null,null,null,null,null,null,null,null,null,null,null,null,null,null,null,null,"Type of chart","(All)",null,null,null,null,null,null,null,null,null,null,null,null,null,null,null,null,"Age","(All)",null,null,null,null,null,null,null,null,null,null,null,null,null,null,null,null,"Type of chart","(All)",null,null,null,null,null,null,null,null,null,null,null,null,null,null,null,null,"Type of chart","(All)",null,null,null,null,null,null,null,null,null,null,null,null,null,null,null,null,"Type of chart","(All)",null,null,null,null,null,null,null,null,null,null,null,null,null,null,null,null,"Type of chart","(All)"]
[null,null,null,null,null,null,null,null,null,null,null,null,null,null,null,null,null,null,null,null,null,null,null,null,null,null,null,null,null,null,null,null,null,null,null,null,null,null,null,null,null,null,null,null,null,null,null,null,null,null,null,null,null,null,null,null,null,null,null,null,null,null,null,null,null,null,null,null,null,null,null,null,null,null,null,null,null,null,null,null,null,null,null,null,null,null,null,null,null,null,null,null,null,null,null,null,null,null,null,null,null,null,null,null,null,null,null,null,null,null,null,null,null,null,null,null,null,null,null,null,null,null,null,null,null,null,null,null,null,null,null,null,null,null,null,null,null,null,null,null,null,null,null,null,null,null,null,null,null,null,null,null,null,null,null,null,null,null,null,null,null,null,null,null,null,null,null,null,null,null,null,null,null,null,null,null,null,null,null,null,null,null,null,null,null,null,null,null,null,null,null,null,null,null,null,null,null,null,null,null,null,null,null,null,null,null,null,null,null,null,null,null,null,null,null,null,null,null,null,null,null,null,null,null,null,null,null,null,null,null,null,null,null,null,null,null,null,null,null,null,null,null,null,null,null,null,null,null,null,null,null,null,null,null,null,null,null,null,null,null,null,null,null,null,null,null,null,null,null,null,null,null,null,null,null,null,null,null,null,null,null,null,null,null,null,null,null,null,null,null,null,null,null,null,null,null,null,null,null,null,null,null,null,null,null,null,null,null,null,null,null,null,null,null,"Type of chart","(All)"]
[null,null,null,null,null,null,null,null,null,"Ward",null,null,null,null,null,null,null,null,null,null,null,null,null,null,null,null,"% Y on Q1.1","Ward",null,null,null,null,null,null,null,null,null,null,null,null,null,null,null,null,"Sum of Q1.2 y as % of cases audited","Ward",null,null,null,null,null,null,null,null,null,null,null,null,null,null,null,null,"% Y on Q2.1","Ward",null,null,null,null,null,null,null,null,null,null,null,null,null,null,null,null,null,"Ward",null,null,null,null,null,null,null,null,null,null,null,null,null,null,null,null,"% Y on Q2.2","Ward",null,null,null,null,null,null,null,null,null,null,null,null,null,null,null,null,"% Y on Q2.2a","Ward",null,null,null,null,null,null,null,null,null,null,null,null,null,null,null,null,"% Y on Q2.3","Ward",null,null,null,null,null,null,null,null,null,null,null,null,null,null,null,null,"% Y on Q2.3a","Ward",null,null,null,null,null,null,null,null,null,null,null,null,null,null,null,null,"% Y on Q2.4","Ward",null,null,null,null,null,null,null,null,null,null,null,null,null,null,null,null,"Sum of % complete correct ","Ward",null,null,null,null,null,null,null,null,null,null,null,null,null,null,null,null,"Sum of % partial correct","Ward",null,null,null,null,null,null,null,null,null,null,null,null,null,null,null,null,"% Y on Q4","Ward",null,null,null,null,null,null,null,null,null,null,null,null,null,null,null,null,null,"Ward",null,null,null,null,null,null,null,null,null,null,null,null,null,null,null,null,"Rationale & duration documented","Ward",null,null,null,null,null,null,null,null,null,null,null,null,null,null,null,null,"Dated, signed, contact details","Ward",null,null,null,null,null,null,null,null,null,null,null,null,null,null,null,null,"% Y on Q5","Ward",null,null,null,null,null,null,null,null,null,null,null,null,null,null,null,null,null,null,null,null,null,null,null,null,null,null,null,null,null,null,null,null,null,null,"% Y on Q5a","Ward",null,null,null,null,null,null,null,null,null,null,null,null,null,null,null,null,"% Y on Q5b","Ward",null,null,null,null,null,null,null,null,null,null,null,null,null,null,null,null,"% Y on Q5c","Ward",null,null,null,null,null,null,null,null,null,null,null,null,null,null,null,null,"% Y on Q5d","Ward"]
[null,null,null,null,null,null,null,null,"Values",0,"Grand Total",null,null,null,null,null,null,null,null,null,null,null,null,null,null,null,"Week starting",0,"Grand Total",null,null,null,null,null,null,null,null,null,null,null,null,null,null,null,"Week starting",0,"Grand Total",null,null,null,null,null,null,null,null,null,null,null,null,null,null,null,"Week starting",0,"Grand Total",null,null,null,null,null,null,null,null,null,null,null,null,null,null,null,"Values",0,"Grand Total",null,null,null,null,null,null,null,null,null,null,null,null,null,null,null,"Week starting",0,"Grand Total",null,null,null,null,null,null,null,null,null,null,null,null,null,null,null,"Week starting",0,"Grand Total",null,null,null,null,null,null,null,null,null,null,null,null,null,null,null,"Week starting",0,"Grand Total",null,null,null,null,null,null,null,null,null,null,null,null,null,null,null,"Week starting",0,"Grand Total",null,null,null,null,null,null,null,null,null,null,null,null,null,null,null,"Week starting",0,"Grand Total",null,null,null,null,null,null,null,null,null,null,null,null,null,null,null,"Week starting",0,"Grand Total",null,null,null,null,null,null,null,null,null,null,null,null,null,null,null,"Week starting",0,"Grand Total",null,null,null,null,null,null,null,null,null,null,null,null,null,null,null,"Week starting",0,"Grand Total",null,null,null,null,null,null,null,null,null,null,null,null,null,null,null,"Values",0,"Grand Total",null,null,null,null,null,null,null,null,null,null,null,null,null,null,null,"Week starting",0,"Grand Total",null,null,null,null,null,null,null,null,null,null,null,null,null,null,null,"Week starting",0,"Grand Total",null,null,null,null,null,null,null,null,null,null,null,null,null,null,null,"Week starting",0,"Grand Total",null,null,null,null,null,null,null,null,null,null,null,null,null,null,null,null,"Ward",null,null,null,null,null,null,null,null,null,null,null,null,null,null,null,null,"Week starting",0,"Grand Total",null,null,null,null,null,null,null,null,null,null,null,null,null,null,null,"Week starting",0,"Grand Total",null,null,null,null,null,null,null,null,null,null,null,null,null,null,null,"Week starting",0,"Grand Total",null,null,null,null,null,null,null,null,null,null,null,null,null,null,null,"Week starting",0,"Grand Total"]
[null,null,null,null,null,null,null,null,"Appropriate frequency of monitoring",0,0,null,null,null,null,null,null,null,null,null,null,null,null,null,null,null,"2022-02-04",0,0,null,null,null,null,null,null,null,null,null,null,null,null,null,null,null,"2022-02-04",0,0,null,null,null,null,null,null,null,null,null,null,null,null,null,null,null,"2022-02-04",0,0,null,null,null,null,null,null,null,null,null,null,null,null,null,null,null,"Respiratory rate",0,0,null,null,null,null,null,null,null,null,null,null,null,null,null,null,null,"2022-02-04",0,0,null,null,null,null,null,null,null,null,null,null,null,null,null,null,null,"2022-02-04",{"$error":"#N/A"},{"$error":"#N/A"},null,null,null,null,null,null,null,null,null,null,null,null,null,null,null,"2022-02-04",0,0,null,null,null,null,null,null,null,null,null,null,null,null,null,null,null,"2022-02-04",{"$error":"#N/A"},{"$error":"#N/A"},null,null,null,null,null,null,null,null,null,null,null,null,null,null,null,"2022-02-04",0,0,null,null,null,null,null,null,null,null,null,null,null,null,null,null,null,"2022-02-04",null,null,null,null,null,null,null,null,null,null,null,null,null,null,null,null,null,"2022-02-04",null,null,null,null,null,null,null,null,null,null,null,null,null,null,null,null,null,"2022-02-04",0,0,null,null,null,null,null,null,null,null,null,null,null,null,null,null,null,"Rationale & duration documented",{"$error":"#N/A"},{"$error":"#N/A"},null,null,null,null,null,null,null,null,null,null,null,null,null,null,null,"2022-02-04",{"$error":"#N/A"},{"$error":"#N/A"},null,null,null,null,null,null,null,null,null,null,null,null,null,null,null,"2022-02-04",{"$error":"#N/A"},{"$error":"#N/A"},null,null,null,null,null,null,null,null,null,null,null,null,null,null,null,"2022-02-04",0,0,null,null,null,null,null,null,null,null,null,null,null,null,null,null,null,"Values",0,"Grand Total",null,null,null,null,null,null,null,null,null,null,null,null,null,null,null,"2022-02-04",{"$error":"#N/A"},{"$error":"#N/A"},null,null,null,null,null,null,null,null,null,null,null,null,null,null,null,"2022-02-04",{"$error":"#N/A"},{"$error":"#N/A"},null,null,null,null,null,null,null,null,null,null,null,null,null,null,null,"2022-02-04",{"$error":"#N/A"},{"$error":"#N/A"},null,null,null,null,null,null,null,null,null,null,null,null,null,null,null,"2022-02-04",{"$error":"#N/A"},{"$error":"#N/A"}]
[null,null,null,null,null,null,null,null,"Appropriate use of partial sets",0,0,null,null,null,null,null,null,null,null,null,null,null,null,null,null,null,"2022-02-11",{"$error":"#N/A"},{"$error":"#N/A"},null,null,null,null,null,null,null,null,null,null,null,null,null,null,null,"2022-02-11",{"$error":"#N/A"},{"$error":"#N/A"},null,null,null,null,null,null,null,null,null,null,null,null,null,null,null,"2022-02-11",{"$error":"#N/A"},{"$error":"#N/A"},null,null,null,null,null,null,null,null,null,null,null,null,null,null,null,"Respiratory distress",0,0,null,null,null,null,null,null,null,null,null,null,null,null,null,null,null,"2022-02-11",{"$error":"#N/A"},{"$error":"#N/A"},null,null,null,null,null,null,null,null,null,null,null,null,null,null,null,"2022-02-11",{"$error":"#N/A"},{"$error":"#N/A"},null,null,null,null,null,null,null,null,null,null,null,null,null,null,null,"2022-02-11",{"$error":"#N/A"},{"$error":"#N/A"},null,null,null,null,null,null,null,null,null,null,null,null,null,null,null,"2022-02-11",{"$error":"#N/A"},{"$error":"#N/A"},null,null,null,null,null,null,null,null,null,null,null,null,null,null,null,"2022-02-11",{"$error":"#N/A"},{"$error":"#N/A"},null,null,null,null,null,null,null,null,null,null,null,null,null,null,null,"2022-02-11",null,null,null,null,null,null,null,null,null,null,null,null,null,null,null,null,null,"2022-02-11",null,null,null,null,null,null,null,null,null,null,null,null,null,null,null,null,null,"2022-02-11",{"$error":"#N/A"},{"$error":"#N/A"},null,null,null,null,null,null,null,null,null,null,null,null,null,null,null,"Dated, signed, contact details",{"$error":"#N/A"},{"$error":"#N/A"},null,null,null,null,null,null,null,null,null,null,null,null,null,null,null,"2022-02-11",{"$error":"#N/A"},{"$error":"#N/A"},null,null,null,null,null,null,null,null,null,null,null,null,null,null,null,"2022-02-11",{"$error":"#N/A"},{"$error":"#N/A"},null,null,null,null,null,null,null,null,null,null,null,null,null,null,null,"2022-02-11",{"$error":"#N/A"},{"$error":"#N/A"},null,null,null,null,null,null,null,null,null,null,null,null,null,null,null,"Escalation as per pathway",{"$error":"#N/A"},{"$error":"#N/A"},null,null,null,null,null,null,null,null,null,null,null,null,null,null,null,"2022-02-11",{"$error":"#N/A"},{"$error":"#N/A"},null,null,null,null,null,null,null,null,null,null,null,null,null,null,null,"2022-02-11",{"$error":"#N/A"},{"$error":"#N/A"},null,null,null,null,null,null,null,null,null,null,null,null,null,null,null,"2022-02-11",{"$error":"#N/A"},{"$error":"#N/A"},null,null,null,null,null,null,null,null,null,null,null,null,null,null,null,"2022-02-11",{"$error":"#N/A"},{"$error":"#N/A"}]
[null,null,null,null,null,null,null,null,"Completed core vital signs sets",0,0,null,null,null,null,null,null,null,null,null,null,null,null,null,null,null,"2022-02-18",{"$error":"#N/A"},{"$error":"#N/A"},null,null,null,null,null,null,null,null,null,null,null,null,null,null,null,"2022-02-18",{"$error":"#N/A"},{"$error":"#N/A"},null,null,null,null,null,null,null,null,null,null,null,null,null,null,null,"2022-02-18",{"$error":"#N/A"},{"$error":"#N/A"},null,null,null,null,null,null,null,null,null,null,null,null,null,null,null,"Oxygen",0,0,null,null,null,null,null,null,null,null,null,null,null,null,null,null,null,"2022-02-18",{"$error":"#N/A"},{"$error":"#N/A"},null,null,null,null,null,null,null,null,null,null,null,null,null,null,null,"2022-02-18",{"$error":"#N/A"},{"$error":"#N/A"},null,null,null,null,null,null,null,null,null,null,null,null,null,null,null,"2022-02-18",{"$error":"#N/A"},{"$error":"#N/A"},null,null,null,null,null,null,null,null,null,null,null,null,null,null,null,"2022-02-18",{"$error":"#N/A"},{"$error":"#N/A"},null,null,null,null,null,null,null,null,null,null,null,null,null,null,null,"2022-02-18",{"$error":"#N/A"},{"$error":"#N/A"},null,null,null,null,null,null,null,null,null,null,null,null,null,null,null,"2022-02-18",null,null,null,null,null,null,null,null,null,null,null,null,null,null,null,null,null,"2022-02-18",null,null,null,null,null,null,null,null,null,null,null,null,null,null,null,null,null,"2022-02-18",{"$error":"#N/A"},{"$error":"#N/A"},null,null,null,null,null,null,null,null,null,null,null,null,null,null,null,null,null,null,null,null,null,null,null,null,null,null,null,null,null,null,null,null,null,"2022-02-18",{"$error":"#N/A"},{"$error":"#N/A"},null,null,null,null,null,null,null,null,null,null,null,null,null,null,null,"2022-02-18",{"$error":"#N/A"},{"$error":"#N/A"},null,null,null,null,null,null,null,null,null,null,null,null,null,null,null,"2022-02-18",{"$error":"#N/A"},{"$error":"#N/A"},null,null,null,null,null,null,null,null,null,null,null,null,null,null,null,"Response as per pathway",{"$error":"#N/A"},{"$error":"#N/A"},null,null,null,null,null,null,null,null,null,null,null,null,null,null,null,"2022-02-18",{"$error":"#N/A"},{"$error":"#N/A"},null,null,null,null,null,null,null,null,null,null,null,null,null,null,null,"2022-02-18",{"$error":"#N/A"},{"$error":"#N/A"},null,null,null,null,null,null,null,null,null,null,null,null,null,null,null,"2022-02-18",{"$error":"#N/A"},{"$error":"#N/A"},null,null,null,null,null,null,null,null,null,null,null,null,null,null,null,"2022-02-18",{"$error":"#N/A"},{"$error":"#N/A"}]
[null,null,null,null,null,null,null,null,"PEWS correctly calculated",0,0,null,null,null,null,null,null,null,null,null,null,null,null,null,null,null,"2022-02-25",{"$error":"#N/A"},{"$error":"#N/A"},null,null,null,null,null,null,null,null,null,null,null,null,null,null,null,"2022-02-25",{"$error":"#N/A"},{"$error":"#N/A"},null,null,null,null,null,null,null,null,null,null,null,null,null,null,null,"2022-02-25",{"$error":"#N/A"},{"$error":"#N/A"},null,null,null,null,null,null,null,null,null,null,null,null,null,null,null,"Oxygen saturation",0,0,null,null,null,null,null,null,null,null,null,null,null,null,null,null,null,"2022-02-25",{"$error":"#N/A"},{"$error":"#N/A"},null,null,null,null,null,null,null,null,null,null,null,null,null,null,null,"2022-02-25",{"$error":"#N/A"},{"$error":"#N/A"},null,null,null,null,null,null,null,null,null,null,null,null,null,null,null,"2022-02-25",{"$error":"#N/A"},{"$error":"#N/A"},null,null,null,null,null,null,null,null,null,null,null,null,null,null,null,"2022-02-25",{"$error":"#N/A"},{"$error":"#N/A"},null,null,null,null,null,null,null,null,null,null,null,null,null,null,null,"2022-02-25",{"$error":"#N/A"},{"$error":"#N/A"},null,null,null,null,null,null,null,null,null,null,null,null,null,null,null,"2022-02-25",null,null,null,null,null,null,null,null,null,null,null,null,null,null,null,null,null,"2022-02-25",null,null,null,null,null,null,null,null,null,null,null,null,null,null,null,null,null,"2022-02-25",{"$error":"#N/A"},{"$error":"#N/A"},null,null,null,null,null,null,null,null,null,null,null,null,null,null,null,null,null,null,null,null,null,null,null,null,null,null,null,null,null,null,null,null,null,"2022-02-25",{"$error":"#N/A"},{"$error":"#N/A"},null,null,null,null,null,null,null,null,null,null,null,null,null,null,null,"2022-02-25",{"$error":"#N/A"},{"$error":"#N/A"},null,null,null,null,null,null,null,null,null,null,null,null,null,null,null,"2022-02-25",{"$error":"#N/A"},{"$error":"#N/A"},null,null,null,null,null,null,null,null,null,null,null,null,null,null,null,"Responder - Documentation as per local policy",{"$error":"#N/A"},{"$error":"#N/A"},null,null,null,null,null,null,null,null,null,null,null,null,null,null,null,"2022-02-25",{"$error":"#N/A"},{"$error":"#N/A"},null,null,null,null,null,null,null,null,null,null,null,null,null,null,null,"2022-02-25",{"$error":"#N/A"},{"$error":"#N/A"},null,null,null,null,null,null,null,null,null,null,null,null,null,null,null,"2022-02-25",{"$error":"#N/A"},{"$error":"#N/A"},null,null,null,null,null,null,null,null,null,null,null,null,null,null,null,"2022-02-25",{"$error":"#N/A"},{"$error":"#N/A"}]
[null,null,null,null,null,null,null,null,null,null,null,null,null,null,null,null,null,null,null,null,null,null,null,null,null,null,"2022-03-04",{"$error":"#N/A"},{"$error":"#N/A"},null,null,null,null,null,null,null,null,null,null,null,null,null,null,null,"2022-03-04",{"$error":"#N/A"},{"$error":"#N/A"},null,null,null,null,null,null,null,null,null,null,null,null,null,null,null,"2022-03-04",{"$error":"#N/A"},{"$error":"#N/A"},null,null,null,null,null,null,null,null,null,null,null,null,null,null,null,"Heart rate",0,0,null,null,null,null,null,null,null,null,null,null,null,null,null,null,null,"2022-03-04",{"$error":"#N/A"},{"$error":"#N/A"},null,null,null,null,null,null,null,null,null,null,null,null,null,null,null,"2022-03-04",{"$error":"#N/A"},{"$error":"#N/A"},null,null,null,null,null,null,null,null,null,null,null,null,null,null,null,"2022-03-04",{"$error":"#N/A"},{"$error":"#N/A"},null,null,null,null,null,null,null,null,null,null,null,null,null,null,null,"2022-03-04",{"$error":"#N/A"},{"$error":"#N/A"},null,null,null,null,null,null,null,null,null,null,null,null,null,null,null,"2022-03-04",{"$error":"#N/A"},{"$error":"#N/A"},null,null,null,null,null,null,null,null,null,null,null,null,null,null,null,"2022-03-04",null,null,null,null,null,null,null,null,null,null,null,null,null,null,null,null,null,"2022-03-04",null,null,null,null,null,null,null,null,null,null,null,null,null,null,null,null,null,"2022-03-04",{"$error":"#N/A"},{"$error":"#N/A"},null,null,null,null,null,null,null,null,null,null,null,null,null,null,null,null,null,null,null,null,null,null,null,null,null,null,null,null,null,null,null,null,null,"2022-03-04",{"$error":"#N/A"},{"$error":"#N/A"},null,null,null,null,null,null,null,null,null,null,null,null,null,null,null,"2022-03-04",{"$error":"#N/A"},{"$error":"#N/A"},null,null,null,null,null,null,null,null,null,null,null,null,null,null,null,"2022-03-04",{"$error":"#N/A"},{"$error":"#N/A"},null,null,null,null,null,null,null,null,null,null,null,null,null,null,null,"Recogniser - Documentation as per local policy",{"$error":"#N/A"},{"$error":"#N/A"},null,null,null,null,null,null,null,null,null,null,null,null,null,null,null,"2022-03-04",{"$error":"#N/A"},{"$error":"#N/A"},null,null,null,null,null,null,null,null,null,null,null,null,null,null,null,"2022-03-04",{"$error":"#N/A"},{"$error":"#N/A"},null,null,null,null,null,null,null,null,null,null,null,null,null,null,null,"2022-03-04",{"$error":"#N/A"},{"$error":"#N/A"},null,null,null,null,null,null,null,null,null,null,null,null,null,null,null,"2022-03-04",{"$error":"#N/A"},{"$error":"#N/A"}]
[null,null,null,null,null,null,null,null,null,null,null,null,null,null,null,null,null,null,null,null,null,null,null,null,null,null,"2022-03-11",{"$error":"#N/A"},{"$error":"#N/A"},null,null,null,null,null,null,null,null,null,null,null,null,null,null,null,"2022-03-11",{"$error":"#N/A"},{"$error":"#N/A"},null,null,null,null,null,null,null,null,null,null,null,null,null,null,null,"2022-03-11",{"$error":"#N/A"},{"$error":"#N/A"},null,null,null,null,null,null,null,null,null,null,null,null,null,null,null,"Central capillary refill",0,0,null,null,null,null,null,null,null,null,null,null,null,null,null,null,null,"2022-03-11",{"$error":"#N/A"},{"$error":"#N/A"},null,null,null,null,null,null,null,null,null,null,null,null,null,null,null,"2022-03-11",{"$error":"#N/A"},{"$error":"#N/A"},null,null,null,null,null,null,null,null,null,null,null,null,null,null,null,"2022-03-11",{"$error":"#N/A"},{"$error":"#N/A"},null,null,null,null,null,null,null,null,null,null,null,null,null,null,null,"2022-03-11",{"$error":"#N/A"},{"$error":"#N/A"},null,null,null,null,null,null,null,null,null,null,null,null,null,null,null,"2022-03-11",{"$error":"#N/A"},{"$error":"#N/A"},null,null,null,null,null,null,null,null,null,null,null,null,null,null,null,"2022-03-11",null,null,null,null,null,null,null,null,null,null,null,null,null,null,null,null,null,"2022-03-11",null,null,null,null,null,null,null,null,null,null,null,null,null,null,null,null,null,"2022-03-11",{"$error":"#N/A"},{"$error":"#N/A"},null,null,null,null,null,null,null,null,null,null,null,null,null,null,null,null,null,null,null,null,null,null,null,null,null,null,null,null,null,null,null,null,null,"2022-03-11",{"$error":"#N/A"},{"$error":"#N/A"},null,null,null,null,null,null,null,null,null,null,null,null,null,null,null,"2022-03-11",{"$error":"#N/A"},{"$error":"#N/A"},null,null,null,null,null,null,null,null,null,null,null,null,null,null,null,"2022-03-11",{"$error":"#N/A"},{"$error":"#N/A"},null,null,null,null,null,null,null,null,null,null,null,null,null,null,null,null,null,null,null,null,null,null,null,null,null,null,null,null,null,null,null,null,null,"2022-03-11",{"$error":"#N/A"},{"$error":"#N/A"},null,null,null,null,null,null,null,null,null,null,null,null,null,null,null,"2022-03-11",{"$error":"#N/A"},{"$error":"#N/A"},null,null,null,null,null,null,null,null,null,null,null,null,null,null,null,"2022-03-11",{"$error":"#N/A"},{"$error":"#N/A"},null,null,null,null,null,null,null,null,null,null,null,null,null,null,null,"2022-03-11",{"$error":"#N/A"},{"$error":"#N/A"}]
[null,null,null,null,null,null,null,null,null,null,null,null,null,null,null,null,null,null,null,null,null,null,null,null,null,null,"2022-03-18",{"$error":"#N/A"},{"$error":"#N/A"},null,null,null,null,null,null,null,null,null,null,null,null,null,null,null,"2022-03-18",{"$error":"#N/A"},{"$error":"#N/A"},null,null,null,null,null,null,null,null,null,null,null,null,null,null,null,"2022-03-18",{"$error":"#N/A"},{"$error":"#N/A"},null,null,null,null,null,null,null,null,null,null,null,null,null,null,null,"Systolic blood pressure",0,0,null,null,null,null,null,null,null,null,null,null,null,null,null,null,null,"2022-03-18",{"$error":"#N/A"},{"$error":"#N/A"},null,null,null,null,null,null,null,null,null,null,null,null,null,null,null,"2022-03-18",{"$error":"#N/A"},{"$error":"#N/A"},null,null,null,null,null,null,null,null,null,null,null,null,null,null,null,"2022-03-18",{"$error":"#N/A"},{"$error":"#N/A"},null,null,null,null,null,null,null,null,null,null,null,null,null,null,null,"2022-03-18",{"$error":"#N/A"},{"$error":"#N/A"},null,null,null,null,null,null,null,null,null,null,null,null,null,null,null,"2022-03-18",{"$error":"#N/A"},{"$error":"#N/A"},null,null,null,null,null,null,null,null,null,null,null,null,null,null,null,"2022-03-18",null,null,null,null,null,null,null,null,null,null,null,null,null,null,null,null,null,"2022-03-18",null,null,null,null,null,null,null,null,null,null,null,null,null,null,null,null,null,"2022-03-18",{"$error":"#N/A"},{"$error":"#N/A"},null,null,null,null,null,null,null,null,null,null,null,null,null,null,null,null,null,null,null,null,null,null,null,null,null,null,null,null,null,null,null,null,null,"2022-03-18",{"$error":"#N/A"},{"$error":"#N/A"},null,null,null,null,null,null,null,null,null,null,null,null,null,null,null,"2022-03-18",{"$error":"#N/A"},{"$error":"#N/A"},null,null,null,null,null,null,null,null,null,null,null,null,null,null,null,"2022-03-18",{"$error":"#N/A"},{"$error":"#N/A"},null,null,null,null,null,null,null,null,null,null,null,null,null,null,null,null,null,null,null,null,null,null,null,null,null,null,null,null,null,null,null,null,null,"2022-03-18",{"$error":"#N/A"},{"$error":"#N/A"},null,null,null,null,null,null,null,null,null,null,null,null,null,null,null,"2022-03-18",{"$error":"#N/A"},{"$error":"#N/A"},null,null,null,null,null,null,null,null,null,null,null,null,null,null,null,"2022-03-18",{"$error":"#N/A"},{"$error":"#N/A"},null,null,null,null,null,null,null,null,null,null,null,null,null,null,null,"2022-03-18",{"$error":"#N/A"},{"$error":"#N/A"}]
[null,null,null,null,null,null,null,null,null,null,null,null,null,null,null,null,null,null,null,null,null,null,null,null,null,null,"2022-03-25",{"$error":"#N/A"},{"$error":"#N/A"},null,null,null,null,null,null,null,null,null,null,null,null,null,null,null,"2022-03-25",{"$error":"#N/A"},{"$error":"#N/A"},null,null,null,null,null,null,null,null,null,null,null,null,null,null,null,"2022-03-25",{"$error":"#N/A"},{"$error":"#N/A"},null,null,null,null,null,null,null,null,null,null,null,null,null,null,null,null,null,null,null,null,null,null,null,null,null,null,null,null,null,null,null,null,null,"2022-03-25",{"$error":"#N/A"},{"$error":"#N/A"},null,null,null,null,null,null,null,null,null,null,null,null,null,null,null,"2022-03-25",{"$error":"#N/A"},{"$error":"#N/A"},null,null,null,null,null,null,null,null,null,null,null,null,null,null,null,"2022-03-25",{"$error":"#N/A"},{"$error":"#N/A"},null,null,null,null,null,null,null,null,null,null,null,null,null,null,null,"2022-03-25",{"$error":"#N/A"},{"$error":"#N/A"},null,null,null,null,null,null,null,null,null,null,null,null,null,null,null,"2022-03-25",{"$error":"#N/A"},{"$error":"#N/A"},null,null,null,null,null,null,null,null,null,null,null,null,null,null,null,"2022-03-25",null,null,null,null,null,null,null,null,null,null,null,null,null,null,null,null,null,"2022-03-25",null,null,null,null,null,null,null,null,null,null,null,null,null,null,null,null,null,"2022-03-25",{"$error":"#N/A"},{"$error":"#N/A"},null,null,null,null,null,null,null,null,null,null,null,null,null,null,null,null,null,null,null,null,null,null,null,null,null,null,null,null,null,null,null,null,null,"2022-03-25",{"$error":"#N/A"},{"$error":"#N/A"},null,null,null,null,null,null,null,null,null,null,null,null,null,null,null,"2022-03-25",{"$error":"#N/A"},{"$error":"#N/A"},null,null,null,null,null,null,null,null,null,null,null,null,null,null,null,"2022-03-25",{"$error":"#N/A"},{"$error":"#N/A"},null,null,null,null,null,null,null,null,null,null,null,null,null,null,null,null,null,null,null,null,null,null,null,null,null,null,null,null,null,null,null,null,null,"2022-03-25",{"$error":"#N/A"},{"$error":"#N/A"},null,null,null,null,null,null,null,null,null,null,null,null,null,null,null,"2022-03-25",{"$error":"#N/A"},{"$error":"#N/A"},null,null,null,null,null,null,null,null,null,null,null,null,null,null,null,"2022-03-25",{"$error":"#N/A"},{"$error":"#N/A"},null,null,null,null,null,null,null,null,null,null,null,null,null,null,null,"2022-03-25",{"$error":"#N/A"},{"$error":"#N/A"}]
[null,null,null,null,null,null,null,null,null,null,null,null,null,null,null,null,null,null,null,null,null,null,null,null,null,null,"2022-04-01",{"$error":"#N/A"},{"$error":"#N/A"},null,null,null,null,null,null,null,null,null,null,null,null,null,null,null,"2022-04-01",{"$error":"#N/A"},{"$error":"#N/A"},null,null,null,null,null,null,null,null,null,null,null,null,null,null,null,"2022-04-01",{"$error":"#N/A"},{"$error":"#N/A"},null,null,null,null,null,null,null,null,null,null,null,null,null,null,null,null,null,null,null,null,null,null,null,null,null,null,null,null,null,null,null,null,null,"2022-04-01",{"$error":"#N/A"},{"$error":"#N/A"},null,null,null,null,null,null,null,null,null,null,null,null,null,null,null,"2022-04-01",{"$error":"#N/A"},{"$error":"#N/A"},null,null,null,null,null,null,null,null,null,null,null,null,null,null,null,"2022-04-01",{"$error":"#N/A"},{"$error":"#N/A"},null,null,null,null,null,null,null,null,null,null,null,null,null,null,null,"2022-04-01",{"$error":"#N/A"},{"$error":"#N/A"},null,null,null,null,null,null,null,null,null,null,null,null,null,null,null,"2022-04-01",{"$error":"#N/A"},{"$error":"#N/A"},null,null,null,null,null,null,null,null,null,null,null,null,null,null,null,"2022-04-01",null,null,null,null,null,null,null,null,null,null,null,null,null,null,null,null,null,"2022-04-01",null,null,null,null,null,null,null,null,null,null,null,null,null,null,null,null,null,"2022-04-01",{"$error":"#N/A"},{"$error":"#N/A"},null,null,null,null,null,null,null,null,null,null,null,null,null,null,null,null,null,null,null,null,null,null,null,null,null,null,null,null,null,null,null,null,null,"2022-04-01",{"$error":"#N/A"},{"$error":"#N/A"},null,null,null,null,null,null,null,null,null,null,null,null,null,null,null,"2022-04-01",{"$error":"#N/A"},{"$error":"#N/A"},null,null,null,null,null,null,null,null,null,null,null,null,null,null,null,"2022-04-01",{"$error":"#N/A"},{"$error":"#N/A"},null,null,null,null,null,null,null,null,null,null,null,null,null,null,null,null,null,null,null,null,null,null,null,null,null,null,null,null,null,null,null,null,null,"2022-04-01",{"$error":"#N/A"},{"$error":"#N/A"},null,null,null,null,null,null,null,null,null,null,null,null,null,null,null,"2022-04-01",{"$error":"#N/A"},{"$error":"#N/A"},null,null,null,null,null,null,null,null,null,null,null,null,null,null,null,"2022-04-01",{"$error":"#N/A"},{"$error":"#N/A"},null,null,null,null,null,null,null,null,null,null,null,null,null,null,null,"2022-04-01",{"$error":"#N/A"},{"$error":"#N/A"}]
[null,null,null,null,null,null,null,null,null,null,null,null,null,null,null,null,null,null,null,null,null,null,null,null,null,null,"2022-04-08",{"$error":"#N/A"},{"$error":"#N/A"},null,null,null,null,null,null,null,null,null,null,null,null,null,null,null,"2022-04-08",{"$error":"#N/A"},{"$error":"#N/A"},null,null,null,null,null,null,null,null,null,null,null,null,null,null,null,"2022-04-08",{"$error":"#N/A"},{"$error":"#N/A"},null,null,null,null,null,null,null,null,null,null,null,null,null,null,null,null,null,null,null,null,null,null,null,null,null,null,null,null,null,null,null,null,null,"2022-04-08",{"$error":"#N/A"},{"$error":"#N/A"},null,null,null,null,null,null,null,null,null,null,null,null,null,null,null,"2022-04-08",{"$error":"#N/A"},{"$error":"#N/A"},null,null,null,null,null,null,null,null,null,null,null,null,null,null,null,"2022-04-08",{"$error":"#N/A"},{"$error":"#N/A"},null,null,null,null,null,null,null,null,null,null,null,null,null,null,null,"2022-04-08",{"$error":"#N/A"},{"$error":"#N/A"},null,null,null,null,null,null,null,null,null,null,null,null,null,null,null,"2022-04-08",{"$error":"#N/A"},{"$error":"#N/A"},null,null,null,null,null,null,null,null,null,null,null,null,null,null,null,"2022-04-08",null,null,null,null,null,null,null,null,null,null,null,null,null,null,null,null,null,"2022-04-08",null,null,null,null,null,null,null,null,null,null,null,null,null,null,null,null,null,"2022-04-08",{"$error":"#N/A"},{"$error":"#N/A"},null,null,null,null,null,null,null,null,null,null,null,null,null,null,null,null,null,null,null,null,null,null,null,null,null,null,null,null,null,null,null,null,null,"2022-04-08",{"$error":"#N/A"},{"$error":"#N/A"},null,null,null,null,null,null,null,null,null,null,null,null,null,null,null,"2022-04-08",{"$error":"#N/A"},{"$error":"#N/A"},null,null,null,null,null,null,null,null,null,null,null,null,null,null,null,"2022-04-08",{"$error":"#N/A"},{"$error":"#N/A"},null,null,null,null,null,null,null,null,null,null,null,null,null,null,null,null,null,null,null,null,null,null,null,null,null,null,null,null,null,null,null,null,null,"2022-04-08",{"$error":"#N/A"},{"$error":"#N/A"},null,null,null,null,null,null,null,null,null,null,null,null,null,null,null,"2022-04-08",{"$error":"#N/A"},{"$error":"#N/A"},null,null,null,null,null,null,null,null,null,null,null,null,null,null,null,"2022-04-08",{"$error":"#N/A"},{"$error":"#N/A"},null,null,null,null,null,null,null,null,null,null,null,null,null,null,null,"2022-04-08",{"$error":"#N/A"},{"$error":"#N/A"}]
[null,null,null,null,null,null,null,null,null,null,null,null,null,null,null,null,null,null,null,null,null,null,null,null,null,null,"2022-04-15",{"$error":"#N/A"},{"$error":"#N/A"},null,null,null,null,null,null,null,null,null,null,null,null,null,null,null,"2022-04-15",{"$error":"#N/A"},{"$error":"#N/A"},null,null,null,null,null,null,null,null,null,null,null,null,null,null,null,"2022-04-15",{"$error":"#N/A"},{"$error":"#N/A"},null,null,null,null,null,null,null,null,null,null,null,null,null,null,null,null,null,null,null,null,null,null,null,null,null,null,null,null,null,null,null,null,null,"2022-04-15",{"$error":"#N/A"},{"$error":"#N/A"},null,null,null,null,null,null,null,null,null,null,null,null,null,null,null,"2022-04-15",{"$error":"#N/A"},{"$error":"#N/A"},null,null,null,null,null,null,null,null,null,null,null,null,null,null,null,"2022-04-15",{"$error":"#N/A"},{"$error":"#N/A"},null,null,null,null,null,null,null,null,null,null,null,null,null,null,null,"2022-04-15",{"$error":"#N/A"},{"$error":"#N/A"},null,null,null,null,null,null,null,null,null,null,null,null,null,null,null,"2022-04-15",{"$error":"#N/A"},{"$error":"#N/A"},null,null,null,null,null,null,null,null,null,null,null,null,null,null,null,"2022-04-15",null,null,null,null,null,null,null,null,null,null,null,null,null,null,null,null,null,"2022-04-15",null,null,null,null,null,null,null,null,null,null,null,null,null,null,null,null,null,"2022-04-15",{"$error":"#N/A"},{"$error":"#N/A"},null,null,null,null,null,null,null,null,null,null,null,null,null,null,null,null,null,null,null,null,null,null,null,null,null,null,null,null,null,null,null,null,null,"2022-04-15",{"$error":"#N/A"},{"$error":"#N/A"},null,null,null,null,null,null,null,null,null,null,null,null,null,null,null,"2022-04-15",{"$error":"#N/A"},{"$error":"#N/A"},null,null,null,null,null,null,null,null,null,null,null,null,null,null,null,"2022-04-15",{"$error":"#N/A"},{"$error":"#N/A"},null,null,null,null,null,null,null,null,null,null,null,null,null,null,null,null,null,null,null,null,null,null,null,null,null,null,null,null,null,null,null,null,null,"2022-04-15",{"$error":"#N/A"},{"$error":"#N/A"},null,null,null,null,null,null,null,null,null,null,null,null,null,null,null,"2022-04-15",{"$error":"#N/A"},{"$error":"#N/A"},null,null,null,null,null,null,null,null,null,null,null,null,null,null,null,"2022-04-15",{"$error":"#N/A"},{"$error":"#N/A"},null,null,null,null,null,null,null,null,null,null,null,null,null,null,null,"2022-04-15",{"$error":"#N/A"},{"$error":"#N/A"}]
[null,null,null,null,null,null,null,null,null,null,null,null,null,null,null,null,null,null,null,null,null,null,null,null,null,null,"2022-04-22",{"$error":"#N/A"},{"$error":"#N/A"},null,null,null,null,null,null,null,null,null,null,null,null,null,null,null,"2022-04-22",{"$error":"#N/A"},{"$error":"#N/A"},null,null,null,null,null,null,null,null,null,null,null,null,null,null,null,"2022-04-22",{"$error":"#N/A"},{"$error":"#N/A"},null,null,null,null,null,null,null,null,null,null,null,null,null,null,null,null,null,null,null,null,null,null,null,null,null,null,null,null,null,null,null,null,null,"2022-04-22",{"$error":"#N/A"},{"$error":"#N/A"},null,null,null,null,null,null,null,null,null,null,null,null,null,null,null,"2022-04-22",{"$error":"#N/A"},{"$error":"#N/A"},null,null,null,null,null,null,null,null,null,null,null,null,null,null,null,"2022-04-22",{"$error":"#N/A"},{"$error":"#N/A"},null,null,null,null,null,null,null,null,null,null,null,null,null,null,null,"2022-04-22",{"$error":"#N/A"},{"$error":"#N/A"},null,null,null,null,null,null,null,null,null,null,null,null,null,null,null,"2022-04-22",{"$error":"#N/A"},{"$error":"#N/A"},null,null,null,null,null,null,null,null,null,null,null,null,null,null,null,"2022-04-22",null,null,null,null,null,null,null,null,null,null,null,null,null,null,null,null,null,"2022-04-22",null,null,null,null,null,null,null,null,null,null,null,null,null,null,null,null,null,"2022-04-22",{"$error":"#N/A"},{"$error":"#N/A"},null,null,null,null,null,null,null,null,null,null,null,null,null,null,null,null,null,null,null,null,null,null,null,null,null,null,null,null,null,null,null,null,null,"2022-04-22",{"$error":"#N/A"},{"$error":"#N/A"},null,null,null,null,null,null,null,null,null,null,null,null,null,null,null,"2022-04-22",{"$error":"#N/A"},{"$error":"#N/A"},null,null,null,null,null,null,null,null,null,null,null,null,null,null,null,"2022-04-22",{"$error":"#N/A"},{"$error":"#N/A"},null,null,null,null,null,null,null,null,null,null,null,null,null,null,null,null,null,null,null,null,null,null,null,null,null,null,null,null,null,null,null,null,null,"2022-04-22",{"$error":"#N/A"},{"$error":"#N/A"},null,null,null,null,null,null,null,null,null,null,null,null,null,null,null,"2022-04-22",{"$error":"#N/A"},{"$error":"#N/A"},null,null,null,null,null,null,null,null,null,null,null,null,null,null,null,"2022-04-22",{"$error":"#N/A"},{"$error":"#N/A"},null,null,null,null,null,null,null,null,null,null,null,null,null,null,null,"2022-04-22",{"$error":"#N/A"},{"$error":"#N/A"}]
[null,null,null,null,null,null,null,null,null,null,null,null,null,null,null,null,null,null,null,null,null,null,null,null,null,null,"Grand Total",0,{"$error":"#N/A"},null,null,null,null,null,null,null,null,null,null,null,null,null,null,null,"Grand Total",0,{"$error":"#N/A"},null,null,null,null,null,null,null,null,null,null,null,null,null,null,null,"Grand Total",0,{"$error":"#N/A"},null,null,null,null,null,null,null,null,null,null,null,null,null,null,null,null,null,null,null,null,null,null,null,null,null,null,null,null,null,null,null,null,null,"Grand Total",0,{"$error":"#N/A"},null,null,null,null,null,null,null,null,null,null,null,null,null,null,null,"Grand Total",{"$error":"#N/A"},{"$error":"#N/A"},null,null,null,null,null,null,null,null,null,null,null,null,null,null,null,"Grand Total",0,{"$error":"#N/A"},null,null,null,null,null,null,null,null,null,null,null,null,null,null,null,"Grand Total",{"$error":"#N/A"},{"$error":"#N/A"},null,null,null,null,null,null,null,null,null,null,null,null,null,null,null,"Grand Total",0,{"$error":"#N/A"},null,null,null,null,null,null,null,null,null,null,null,null,null,null,null,"Grand Total",null,null,null,null,null,null,null,null,null,null,null,null,null,null,null,null,null,"Grand Total",null,null,null,null,null,null,null,null,null,null,null,null,null,null,null,null,null,"Grand Total",0,{"$error":"#N/A"},null,null,null,null,null,null,null,null,null,null,null,null,null,null,null,null,null,null,null,null,null,null,null,null,null,null,null,null,null,null,null,null,null,"Grand Total",{"$error":"#N/A"},{"$error":"#N/A"},null,null,null,null,null,null,null,null,null,null,null,null,null,null,null,"Grand Total",{"$error":"#N/A"},{"$error":"#N/A"},null,null,null,null,null,null,null,null,null,null,null,null,null,null,null,"Grand Total",0,{"$error":"#N/A"},null,null,null,null,null,null,null,null,null,null,null,null,null,null,null,null,null,null,null,null,null,null,null,null,null,null,null,null,null,null,null,null,null,"Grand Total",{"$error":"#N/A"},{"$error":"#N/A"},null,null,null,null,null,null,null,null,null,null,null,null,null,null,null,"Grand Total",{"$error":"#N/A"},{"$error":"#N/A"},null,null,null,null,null,null,null,null,null,null,null,null,null,null,null,"Grand Total",{"$error":"#N/A"},{"$error":"#N/A"},null,null,null,null,null,null,null,null,null,null,null,null,null,null,null,"Grand Total",{"$error":"#N/A"},{"$error":"#N/A"}]
[]
[]
[]
[null,null,null,null,null,null,null,null,null,null,null,null,null,null,null,null,null,null,null,null,null,null,null,null,null,null,null,null,null,null,null,null,null,null,null,null,null,null,null,null,null,null,null,null,null,null,null,null,null,null,null,null,null,null,null,null,null,null,null,null,null,null,null,null,null,null,null,null,null,null,null,null,null,null,null,null,null,null,null,null,null,null,null,null,null,null,null,null,null,null,null,null,null,null,null,null,null,null,null,null,null,null,null,null,null,null,null,null,null,null,null,null,null,null,null,null,null,null,null,null,null,null,null,null,null,null,null,null,null,null,null,null,null,null,null,null,null,null,null,null,null,null,null,null,null,null,null,null,null,null,null,null,null,null,null,null,null,null,null,null,null,null,null,null,null,null,null,null,null,null,null,null,null,null,null,null,null,null,null,null,null,null,null,null,null,null,null,null,null,null,null,null,null,null,null,null,null,null,null,null,null,null,null,null,null,null,null,null,null,null,null,null,null,null,null,null,null,null,null,null,null,null,null,null,null,null,null,null,null,null,null,null,null,null,null,null,null,null,null,null,null,null,"Ethnicity","(All)"]
[null,null,null,null,null,null,null,null,null,null,null,null,null,null,null,null,null,null,null,null,null,null,null,null,null,null,null,null,null,null,null,null,null,null,null,null,null,null,null,null,null,null,null,null,null,null,null,null,null,null,null,null,null,null,null,null,null,null,null,null,null,null,null,null,null,null,null,null,null,null,null,null,null,null,null,null,null,null,null,null,null,null,null,null,null,null,null,null,null,null,null,null,null,null,null,null,null,null,null,null,null,null,null,null,null,null,null,null,null,null,null,null,null,null,null,null,null,null,null,null,null,null,null,null,null,null,null,null,null,null,null,null,null,null,null,null,null,null,null,null,null,null,null,null,null,null,null,null,null,null,null,null,null,null,null,null,null,null,null,null,null,null,null,null,null,null,null,null,null,null,null,null,null,null,null,null,null,null,null,null,null,null,null,null,null,null,null,null,null,null,null,null,null,null,null,null,null,null,null,null,null,null,null,null,null,null,null,null,null,null,null,null,null,null,null,null,null,null,null,null,null,null,null,null,null,null,null,null,null,null,null,null,null,null,null,null,null,null,null,null,null,null,"Week starting","(All)",null,null,null,null,null,null,null,null,null,null,null,null,null,null,null,null,null,null,null,null,null,null,null,null,null,null,null,null,null,null,null,null,null,null,null,null,null,null,null,null,null,null,null,null,null,null,null,null,null,null,null,null,null,null,null,null,null,null,null,null,null,null,null,null,null,null,null,null,null,null,"Ethnicity","(All)"]
[null,null,null,null,null,null,null,null,null,null,null,null,null,null,null,null,null,null,null,null,null,null,null,null,null,null,null,null,null,null,null,null,null,null,null,null,null,null,null,null,null,null,null,null,null,null,null,null,null,null,null,null,null,null,null,null,null,null,null,null,null,null,null,null,null,null,null,null,null,null,null,null,null,null,null,null,null,null,null,null,null,null,null,null,null,null,null,null,null,null,null,null,null,null,null,null,null,null,null,null,null,null,null,null,null,null,null,null,null,null,null,null,null,null,null,null,null,null,null,null,null,null,null,null,null,null,null,null,null,null,null,null,null,null,null,null,null,null,null,null,null,null,null,null,null,null,null,null,null,null,null,null,null,null,null,null,null,null,null,null,null,null,null,null,null,null,null,null,null,null,null,null,null,null,null,null,null,null,null,null,null,null,null,null,null,null,null,null,null,null,null,null,null,null,null,null,null,null,null,null,null,null,null,null,null,null,null,null,null,null,null,null,null,null,null,null,null,null,null,null,null,null,null,null,null,null,null,null,null,null,null,null,null,null,null,null,null,null,null,null,null,null,"Ward",0,null,null,null,null,null,null,null,null,null,null,null,null,null,null,null,null,null,null,null,null,null,null,null,null,null,null,null,null,null,null,null,null,null,null,null,null,null,null,null,null,null,null,null,null,null,null,null,null,null,null,null,null,null,null,null,null,null,null,null,null,null,null,null,null,null,null,null,null,null,null,"Week starting","(All)"]
[null,null,null,null,null,null,null,null,null,null,null,null,null,null,null,null,null,null,null,null,null,null,null,null,null,null,null,null,null,null,null,null,null,null,null,null,null,null,null,null,null,null,null,null,null,null,null,null,null,null,null,null,null,null,null,null,null,null,null,null,null,null,null,null,null,null,null,null,null,null,null,null,null,null,null,null,null,null,null,null,null,null,null,null,null,null,null,null,null,null,null,null,null,null,null,null,null,null,null,null,null,null,null,null,null,null,null,null,null,null,null,null,null,null,null,null,null,null,null,null,null,null,null,null,null,null,null,null,null,null,null,null,null,null,null,null,null,null,null,null,null,null,null,null,null,null,null,null,null,null,null,null,null,null,null,null,null,null,null,null,null,null,null,null,null,null,null,null,null,null,null,null,null,null,null,null,null,null,null,null,null,null,null,null,null,null,null,null,null,null,null,null,null,null,null,null,null,null,null,null,null,null,null,null,null,null,null,null,null,null,null,null,null,null,null,null,null,null,null,null,null,null,null,null,null,null,null,null,null,null,null,null,null,null,null,null,null,null,null,null,null,null,"Age","(All)",null,null,null,null,null,null,null,null,null,null,null,null,null,null,null,null,null,null,null,null,null,null,null,null,null,null,null,null,null,null,null,null,null,null,null,null,null,null,null,null,null,null,null,null,null,null,null,null,null,null,null,null,null,null,null,null,null,null,null,null,null,null,null,null,null,null,null,null,null,null,"Ward",0]
[null,null,null,null,null,null,null,null,null,null,null,null,null,null,null,null,null,null,null,null,null,null,null,null,null,null,null,null,null,null,null,null,null,null,null,null,null,null,null,null,null,null,null,null,null,null,null,null,null,null,null,null,null,null,null,null,null,null,null,null,null,null,null,null,null,null,null,null,null,null,null,null,null,null,null,null,null,null,null,null,null,null,null,null,null,null,null,null,null,null,null,null,null,null,null,null,null,null,null,null,null,null,null,null,null,null,null,null,null,null,null,null,null,null,null,null,null,null,null,null,null,null,null,null,null,null,null,null,null,null,null,null,null,null,null,null,null,null,null,null,null,null,null,null,null,null,null,null,null,null,null,null,null,null,null,null,null,null,null,null,null,null,null,null,null,null,null,null,null,null,null,null,null,null,null,null,null,null,null,null,null,null,null,null,null,null,null,null,null,null,null,null,null,null,null,null,null,null,null,null,null,null,null,null,null,null,null,null,null,null,null,null,null,null,null,null,null,null,null,null,null,null,null,null,null,null,null,null,null,null,null,null,null,null,null,null,null,null,null,null,null,null,"Type of chart","(All)",null,null,null,null,null,null,null,null,null,null,null,null,null,null,null,null,null,null,null,null,null,null,null,null,null,null,null,null,null,null,null,null,null,null,null,null,null,null,null,null,null,null,null,null,null,null,null,null,null,null,null,null,null,null,null,null,null,null,null,null,null,null,null,null,null,null,null,null,null,null,"Age","(All)"]
[null,null,null,null,null,null,null,null,null,null,null,null,null,null,null,null,null,null,null,null,null,null,null,null,null,null,null,null,null,null,null,null,null,null,null,null,null,null,null,null,null,null,null,null,null,null,null,null,null,null,null,null,null,null,null,null,null,null,null,null,null,null,null,null,null,null,null,null,null,null,null,null,null,null,null,null,null,null,null,null,null,null,null,null,null,null,null,null,null,null,null,null,null,null,null,null,null,null,null,null,null,null,null,null,null,null,null,null,null,null,null,null,null,null,null,null,null,null,null,null,null,null,null,null,null,null,null,null,null,null,null,null,null,null,null,null,null,null,null,null,null,null,null,null,null,null,null,null,null,null,null,null,null,null,null,null,null,null,null,null,null,null,null,null,null,null,null,null,null,null,null,null,null,null,null,null,null,null,null,null,null,null,null,null,null,null,null,null,null,null,null,null,null,null,null,null,null,null,null,null,null,null,null,null,null,null,null,null,null,null,null,null,null,null,null,null,null,null,null,null,null,null,null,null,null,null,null,null,null,null,null,null,null,null,null,null,null,null,null,null,null,null,null,null,null,null,null,null,null,null,null,null,null,null,null,null,null,null,null,null,null,null,null,null,null,null,null,null,null,null,null,null,null,null,null,null,null,null,null,null,null,null,null,null,null,null,null,null,null,null,null,null,null,null,null,null,null,null,null,null,null,null,null,null,null,null,null,null,null,null,null,null,null,null,"Type of chart","(All)"]
[null,null,null,null,null,null,null,null,null,null,null,null,null,null,null,null,null,null,null,null,null,null,null,null,null,null,null,null,null,null,null,null,null,null,null,null,null,null,null,null,null,null,null,null,null,null,null,null,null,null,null,null,null,null,null,null,null,null,null,null,null,null,null,null,null,null,null,null,null,null,null,null,null,null,null,null,null,null,null,null,null,null,null,null,null,null,null,null,null,null,null,null,null,null,null,null,null,null,null,null,null,null,null,null,null,null,null,null,null,null,null,null,null,null,null,null,null,null,null,null,null,null,null,null,null,null,null,null,null,null,null,null,null,null,null,null,null,null,null,null,null,null,null,null,null,null,null,null,null,null,null,null,null,null,null,null,null,null,null,null,null,null,null,null,null,null,null,null,null,null,null,null,null,null,null,null,null,null,null,null,null,null,null,null,null,null,null,null,null,null,null,null,null,null,null,null,null,null,null,null,null,null,null,null,null,null,null,null,null,null,null,null,null,null,null,null,null,null,null,null,null,null,null,null,null,null,null,null,null,null,null,null,null,null,null,null,null,null,null,null,null,null,"Number of audits"]
[null,null,null,null,null,null,null,null,null,null,null,null,null,null,null,null,null,null,null,null,null,null,null,null,null,null,null,null,null,null,null,null,null,null,null,null,null,null,null,null,null,null,null,null,null,null,null,null,null,null,null,null,null,null,null,null,null,null,null,null,null,null,null,null,null,null,null,null,null,null,null,null,null,null,null,null,null,null,null,null,null,null,null,null,null,null,null,null,null,null,null,null,null,null,null,null,null,null,null,null,null,null,null,null,null,null,null,null,null,null,null,null,null,null,null,null,null,null,null,null,null,null,null,null,null,null,null,null,null,null,null,null,null,null,null,null,null,null,null,null,null,null,null,null,null,null,null,null,null,null,null,null,null,null,null,null,null,null,null,null,null,null,null,null,null,null,null,null,null,null,null,null,null,null,null,null,null,null,null,null,null,null,null,null,null,null,null,null,null,null,null,null,null,null,null,null,null,null,null,null,null,null,null,null,null,null,null,null,null,null,null,null,null,null,null,null,null,null,null,null,null,null,null,null,null,null,null,null,null,null,null,null,null,null,null,null,null,null,null,null,null,null,0,null,null,null,null,null,null,null,null,null,null,null,null,null,null,null,null,null,null,null,null,null,null,null,null,null,null,null,null,null,null,null,null,null,null,null,null,null,null,null,null,null,null,null,null,null,null,null,null,null,null,null,null,null,null,null,null,null,null,null,null,null,null,null,null,null,null,null,null,null,null,null,"Sum of Q5"]
[null,null,null,null,null,null,null,null,null,null,null,null,null,null,null,null,null,null,null,null,null,null,null,null,null,null,null,null,null,null,null,null,null,null,null,null,null,null,null,null,null,null,null,null,null,null,null,null,null,null,null,null,null,null,null,null,null,null,null,null,null,null,null,null,null,null,null,null,null,null,null,null,null,null,null,null,null,null,null,null,null,null,null,null,null,null,null,null,null,null,null,null,null,null,null,null,null,null,null,null,null,null,null,null,null,null,null,null,null,null,null,null,null,null,null,null,null,null,null,null,null,null,null,null,null,null,null,null,null,null,null,null,null,null,null,null,null,null,null,null,null,null,null,null,null,null,null,null,null,null,null,null,null,null,null,null,null,null,null,null,null,null,null,null,null,null,null,null,null,null,null,null,null,null,null,null,null,null,null,null,null,null,null,null,null,null,null,null,null,null,null,null,null,null,null,null,null,null,null,null,null,null,null,null,null,null,null,null,null,null,null,null,null,null,null,null,null,null,null,null,null,null,null,null,null,null,null,null,null,null,null,null,null,null,null,null,null,null,null,null,null,null,null,null,null,null,null,null,null,null,null,null,null,null,null,null,null,null,null,null,null,null,null,null,null,null,null,null,null,null,null,null,null,null,null,null,null,null,null,null,null,null,null,null,null,null,null,null,null,null,null,null,null,null,null,null,null,null,null,null,null,null,null,null,null,null,null,null,null,null,null,null,null,null,0]

{"sheet":"DataSummary","index":8,"n_rows":121,"n_cols":69,"rows_kept":121,"cut":false,"hidden":false,"merged":[]}
["Week starting","Ward","Case number","Ethnicity","Age","Type of chart","Recognition",1.1000000000000001,1.2,2.1,"2.1a","2.1b","2.1c","2.1d","2.1e","2.1f","2.1g",2.2000000000000002,"2.2a",2.2999999999999998,"2.3a",2.4,3,4,"4a","4b","Escalation&Response",5,"5a","5b","5c","5d","Week starting","Ward","Case number","Ethnicity","Age","Type of chart",{"$f":"\"Q\"&H1","v":"Q1.1"},"Q1.2","Q2.1","Q2.1a","Q2.1b","Q2.1c","Q2.1d","Q2.1e","Q2.1f","Q2.1g","Q2.2","Q2.2a","Q2.3","Q2.3a","Q2.4","Q3","Q4","Q4a","Q4b","Qescalation",{"$f":"\"Q\"&AB1","v":"Q5"},"Q5a","Q5b","Q5c","Q5d","CasesAudited","Q2.1_new_denom","Q2.2_new_denom","Q1.2_new_denom","Q3_complete_yn","Q3_partial_yn"]
[{"$f":"TRANSPOSE('ward one'!$D$5:$DS$36)","v":"2022-11-01"},0,1,0,0,0,0,0,0,0,0,0,0,0,0,0,0,0,0,0,0,0,0,0,0,0,0,0,0,0,0,0,{"$f":"A2","v":"2022-11-01"},{"$f":"B2","v":0},{"$f":"C2","v":1},{"$f":"D2","v":0},{"$f":"E2","v":0},0,{"$f":"IF(H2=\"y\",1,0)","v":0},{"$f":"IF(I2=\"y\",1,0)","v":0},0,0,0,0,0,0,0,0,0,0,0,0,0,{"$f":"IF(W2=\"y\",1,0)","v":0},{"$f":"IF(X2=\"y\",1,0)","v":0},{"$f":"IF(Y2=\"y\",1,0)","v":0},{"$f":"IF(Z2=\"y\",1,0)","v":0},{"$f":"IF(AA2=\"y\",1,0)","v":0},{"$f":"IF(AB2=\"y\",1,0)","v":0},{"$f":"IF(AC2=\"y\",1,0)","v":0},{"$f":"IF(AD2=\"y\",1,0)","v":0},{"$f":"IF(AE2=\"y\",1,0)","v":0},{"$f":"IF(AF2=\"y\",1,0)","v":0},{"$f":"IF(COUNTIF(D2:Z2,\"*\")>0,1,0)","v":0},{"$f":"IF(AO2=1, \"y\", \"n\")","v":"n"},{"$f":"IF(AW2=1,\"y\",\"n\")","v":"n"},{"$f":"IF(I2=\"n/a\",\"n\",\"y\")","v":"y"},{"$f":"IF(AND(BB2=1,BM2=\"y\"),1,0)","v":0},{"$f":"IF(AND(BB2=1,BN2=\"y\"),1,0)","v":0}]
["2022-11-01",0,2,0,0,0,0,0,0,0,0,0,0,0,0,0,0,0,0,0,0,0,0,0,0,0,0,0,0,0,0,0,{"$f":"A3","v":"2022-11-01"},{"$f":"B3","v":0},{"$f":"C3","v":2},{"$f":"D3","v":0},{"$f":"E3","v":0},{"$f":"F3","v":0},{"$f":"IF(H3=\"y\",1,0)","v":0},{"$f":"IF(I3=\"y\",1,0)","v":0},{"$f":"IF(J3=\"y\",1,0)","v":0},{"$f":"IF(K3=\"y\",1,0)","v":0},{"$f":"IF(L3=\"y\",1,0)","v":0},{"$f":"IF(M3=\"y\",1,0)","v":0},{"$f":"IF(N3=\"y\",1,0)","v":0},{"$f":"IF(O3=\"y\",1,0)","v":0},{"$f":"IF(P3=\"y\",1,0)","v":0},{"$f":"IF(Q3=\"y\",1,0)","v":0},{"$f":"IF(R3=\"y\",1,0)","v":0},{"$f":"IF(S3=\"y\",1,0)","v":0},{"$f":"IF(T3=\"y\",1,0)","v":0},{"$f":"IF(U3=\"y\",1,0)","v":0},{"$f":"IF(V3=\"y\",1,0)","v":0},{"$f":"IF(W3=\"y\",1,0)","v":0},{"$f":"IF(X3=\"y\",1,0)","v":0},{"$f":"IF(Y3=\"y\",1,0)","v":0},{"$f":"IF(Z3=\"y\",1,0)","v":0},{"$f":"IF(AA3=\"y\",1,0)","v":0},{"$f":"IF(AB3=\"y\",1,0)","v":0},{"$f":"IF(AC3=\"y\",1,0)","v":0},{"$f":"IF(AD3=\"y\",1,0)","v":0},{"$f":"IF(AE3=\"y\",1,0)","v":0},{"$f":"IF(AF3=\"y\",1,0)","v":0},{"$f":"IF(COUNTIF(D3:Z3,\"*\")>0,1,0)","v":0},{"$f":"IF(AO3=1, \"y\", \"n\")","v":"n"},{"$f":"IF(AW3=1,\"y\",\"n\")","v":"n"},{"$f":"IF(I3=\"n/a\",\"n\",\"y\")","v":"y"},{"$f":"IF(AND(BB3=1,BM3=\"y\"),1,0)","v":0},{"$f":"IF(AND(BB3=1,BN3=\"y\"),1,0)","v":0}]
["2022-11-01",0,3,0,0,0,0,0,0,0,0,0,0,0,0,0,0,0,0,0,0,0,0,0,0,0,0,0,0,0,0,0,"2022-11-01",0,3,0,0,0,0,0,0,0,0,0,0,0,0,0,0,0,0,0,0,0,0,0,0,0,0,0,0,0,0,0,"n","n","y",0,0]
["2022-11-01",0,4,0,0,0,0,0,0,0,0,0,0,0,0,0,0,0,0,0,0,0,0,0,0,0,0,0,0,0,0,0,"2022-11-01",0,4,0,0,0,0,0,0,0,0,0,0,0,0,0,0,0,0,0,0,0,0,0,0,0,0,0,0,0,0,0,"n","n","y",0,0]
["2022-11-01",0,5,0,0,0,0,0,0,0,0,0,0,0,0,0,0,0,0,0,0,0,0,0,0,0,0,0,0,0,0,0,"2022-11-01",0,5,0,0,0,0,0,0,0,0,0,0,0,0,0,0,0,0,0,0,0,0,0,0,0,0,0,0,0,0,0,"n","n","y",0,0]
["2022-11-01",0,6,0,0,0,0,0,0,0,0,0,0,0,0,0,0,0,0,0,0,0,0,0,0,0,0,0,0,0,0,0,"2022-11-01",0,6,0,0,0,0,0,0,0,0,0,0,0,0,0,0,0,0,0,0,0,0,0,0,0,0,0,0,0,0,0,"n","n","y",0,0]
["2022-11-01",0,7,0,0,0,0,0,0,0,0,0,0,0,0,0,0,0,0,0,0,0,0,0,0,0,0,0,0,0,0,0,"2022-11-01",0,7,0,0,0,0,0,0,0,0,0,0,0,0,0,0,0,0,0,0,0,0,0,0,0,0,0,0,0,0,0,"n","n","y",0,0]
["2022-11-01",0,8,0,0,0,0,0,0,0,0,0,0,0,0,0,0,0,0,0,0,0,0,0,0,0,0,0,0,0,0,0,"2022-11-01",0,8,0,0,0,0,0,0,0,0,0,0,0,0,0,0,0,0,0,0,0,0,0,0,0,0,0,0,0,0,0,"n","n","y",0,0]
["2022-11-01",0,9,0,0,0,0,0,0,0,0,0,0,0,0,0,0,0,0,0,0,0,0,0,0,0,0,0,0,0,0,0,"2022-11-01",0,9,0,0,0,0,0,0,0,0,0,0,0,0,0,0,0,0,0,0,0,0,0,0,0,0,0,0,0,0,0,"n","n","y",0,0]
["2022-11-01",0,10,0,0,0,0,0,0,0,0,0,0,0,0,0,0,0,0,0,0,0,0,0,0,0,0,0,0,0,0,0,"2022-11-01",0,10,0,0,0,0,0,0,0,0,0,0,0,0,0,0,0,0,0,0,0,0,0,0,0,0,0,0,0,0,0,"n","n","y",0,0]
["2022-11-08",0,1,0,0,0,0,0,0,0,0,0,0,0,0,0,0,0,0,0,0,0,0,0,0,0,0,0,0,0,0,0,"2022-11-08",0,1,0,0,0,0,0,0,0,0,0,0,0,0,0,0,0,0,0,0,0,0,0,0,0,0,0,0,0,0,0,"n","n","y",0,0]
["2022-11-08",0,2,0,0,0,0,0,0,0,0,0,0,0,0,0,0,0,0,0,0,0,0,0,0,0,0,0,0,0,0,0,"2022-11-08",0,2,0,0,0,0,0,0,0,0,0,0,0,0,0,0,0,0,0,0,0,0,0,0,0,0,0,0,0,0,0,"n","n","y",0,0]
["2022-11-08",0,3,0,0,0,0,0,0,0,0,0,0,0,0,0,0,0,0,0,0,0,0,0,0,0,0,0,0,0,0,0,"2022-11-08",0,3,0,0,0,0,0,0,0,0,0,0,0,0,0,0,0,0,0,0,0,0,0,0,0,0,0,0,0,0,0,"n","n","y",0,0]
["2022-11-08",0,4,0,0,0,0,0,0,0,0,0,0,0,0,0,0,0,0,0,0,0,0,0,0,0,0,0,0,0,0,0,"2022-11-08",0,4,0,0,0,0,0,0,0,0,0,0,0,0,0,0,0,0,0,0,0,0,0,0,0,0,0,0,0,0,0,"n","n","y",0,0]
["2022-11-08",0,5,0,0,0,0,0,0,0,0,0,0,0,0,0,0,0,0,0,0,0,0,0,0,0,0,0,0,0,0,0,"2022-11-08",0,5,0,0,0,0,0,0,0,0,0,0,0,0,0,0,0,0,0,0,0,0,0,0,0,0,0,0,0,0,0,"n","n","y",0,0]
["2022-11-08",0,6,0,0,0,0,0,0,0,0,0,0,0,0,0,0,0,0,0,0,0,0,0,0,0,0,0,0,0,0,0,"2022-11-08",0,6,0,0,0,0,0,0,0,0,0,0,0,0,0,0,0,0,0,0,0,0,0,0,0,0,0,0,0,0,0,"n","n","y",0,0]
["2022-11-08",0,7,0,0,0,0,0,0,0,0,0,0,0,0,0,0,0,0,0,0,0,0,0,0,0,0,0,0,0,0,0,"2022-11-08",0,7,0,0,0,0,0,0,0,0,0,0,0,0,0,0,0,0,0,0,0,0,0,0,0,0,0,0,0,0,0,"n","n","y",0,0]
["2022-11-08",0,8,0,0,0,0,0,0,0,0,0,0,0,0,0,0,0,0,0,0,0,0,0,0,0,0,0,0,0,0,0,"2022-11-08",0,8,0,0,0,0,0,0,0,0,0,0,0,0,0,0,0,0,0,0,0,0,0,0,0,0,0,0,0,0,0,"n","n","y",0,0]
["2022-11-08",0,9,0,0,0,0,0,0,0,0,0,0,0,0,0,0,0,0,0,0,0,0,0,0,0,0,0,0,0,0,0,"2022-11-08",0,9,0,0,0,0,0,0,0,0,0,0,0,0,0,0,0,0,0,0,0,0,0,0,0,0,0,0,0,0,0,"n","n","y",0,0]
["2022-11-08",0,10,0,0,0,0,0,0,0,0,0,0,0,0,0,0,0,0,0,0,0,0,0,0,0,0,0,0,0,0,0,"2022-11-08",0,10,0,0,0,0,0,0,0,0,0,0,0,0,0,0,0,0,0,0,0,0,0,0,0,0,0,0,0,0,0,"n","n","y",0,0]
["2022-11-15",0,1,0,0,0,0,0,0,0,0,0,0,0,0,0,0,0,0,0,0,0,0,0,0,0,0,0,0,0,0,0,"2022-11-15",0,1,0,0,0,0,0,0,0,0,0,0,0,0,0,0,0,0,0,0,0,0,0,0,0,0,0,0,0,0,0,"n","n","y",0,0]
["2022-11-15",0,2,0,0,0,0,0,0,0,0,0,0,0,0,0,0,0,0,0,0,0,0,0,0,0,0,0,0,0,0,0,"2022-11-15",0,2,0,0,0,0,0,0,0,0,0,0,0,0,0,0,0,0,0,0,0,0,0,0,0,0,0,0,0,0,0,"n","n","y",0,0]
["2022-11-15",0,3,0,0,0,0,0,0,0,0,0,0,0,0,0,0,0,0,0,0,0,0,0,0,0,0,0,0,0,0,0,"2022-11-15",0,3,0,0,0,0,0,0,0,0,0,0,0,0,0,0,0,0,0,0,0,0,0,0,0,0,0,0,0,0,0,"n","n","y",0,0]
["2022-11-15",0,4,0,0,0,0,0,0,0,0,0,0,0,0,0,0,0,0,0,0,0,0,0,0,0,0,0,0,0,0,0,"2022-11-15",0,4,0,0,0,0,0,0,0,0,0,0,0,0,0,0,0,0,0,0,0,0,0,0,0,0,0,0,0,0,0,"n","n","y",0,0]
["2022-11-15",0,5,0,0,0,0,0,0,0,0,0,0,0,0,0,0,0,0,0,0,0,0,0,0,0,0,0,0,0,0,0,"2022-11-15",0,5,0,0,0,0,0,0,0,0,0,0,0,0,0,0,0,0,0,0,0,0,0,0,0,0,0,0,0,0,0,"n","n","y",0,0]
["2022-11-15",0,6,0,0,0,0,0,0,0,0,0,0,0,0,0,0,0,0,0,0,0,0,0,0,0,0,0,0,0,0,0,"2022-11-15",0,6,0,0,0,0,0,0,0,0,0,0,0,0,0,0,0,0,0,0,0,0,0,0,0,0,0,0,0,0,0,"n","n","y",0,0]
["2022-11-15",0,7,0,0,0,0,0,0,0,0,0,0,0,0,0,0,0,0,0,0,0,0,0,0,0,0,0,0,0,0,0,"2022-11-15",0,7,0,0,0,0,0,0,0,0,0,0,0,0,0,0,0,0,0,0,0,0,0,0,0,0,0,0,0,0,0,"n","n","y",0,0]
["2022-11-15",0,8,0,0,0,0,0,0,0,0,0,0,0,0,0,0,0,0,0,0,0,0,0,0,0,0,0,0,0,0,0,"2022-11-15",0,8,0,0,0,0,0,0,0,0,0,0,0,0,0,0,0,0,0,0,0,0,0,0,0,0,0,0,0,0,0,"n","n","y",0,0]
["2022-11-15",0,9,0,0,0,0,0,0,0,0,0,0,0,0,0,0,0,0,0,0,0,0,0,0,0,0,0,0,0,0,0,"2022-11-15",0,9,0,0,0,0,0,0,0,0,0,0,0,0,0,0,0,0,0,0,0,0,0,0,0,0,0,0,0,0,0,"n","n","y",0,0]
["2022-11-15",0,10,0,0,0,0,0,0,0,0,0,0,0,0,0,0,0,0,0,0,0,0,0,0,0,0,0,0,0,0,0,"2022-11-15",0,10,0,0,0,0,0,0,0,0,0,0,0,0,0,0,0,0,0,0,0,0,0,0,0,0,0,0,0,0,0,"n","n","y",0,0]
["2022-11-22",0,1,0,0,0,0,0,0,0,0,0,0,0,0,0,0,0,0,0,0,0,0,0,0,0,0,0,0,0,0,0,"2022-11-22",0,1,0,0,0,0,0,0,0,0,0,0,0,0,0,0,0,0,0,0,0,0,0,0,0,0,0,0,0,0,0,"n","n","y",0,0]
["2022-11-22",0,2,0,0,0,0,0,0,0,0,0,0,0,0,0,0,0,0,0,0,0,0,0,0,0,0,0,0,0,0,0,"2022-11-22",0,2,0,0,0,0,0,0,0,0,0,0,0,0,0,0,0,0,0,0,0,0,0,0,0,0,0,0,0,0,0,"n","n","y",0,0]
["2022-11-22",0,3,0,0,0,0,0,0,0,0,0,0,0,0,0,0,0,0,0,0,0,0,0,0,0,0,0,0,0,0,0,"2022-11-22",0,3,0,0,0,0,0,0,0,0,0,0,0,0,0,0,0,0,0,0,0,0,0,0,0,0,0,0,0,0,0,"n","n","y",0,0]
["2022-11-22",0,4,0,0,0,0,0,0,0,0,0,0,0,0,0,0,0,0,0,0,0,0,0,0,0,0,0,0,0,0,0,"2022-11-22",0,4,0,0,0,0,0,0,0,0,0,0,0,0,0,0,0,0,0,0,0,0,0,0,0,0,0,0,0,0,0,"n","n","y",0,0]
["2022-11-22",0,5,0,0,0,0,0,0,0,0,0,0,0,0,0,0,0,0,0,0,0,0,0,0,0,0,0,0,0,0,0,"2022-11-22",0,5,0,0,0,0,0,0,0,0,0,0,0,0,0,0,0,0,0,0,0,0,0,0,0,0,0,0,0,0,0,"n","n","y",0,0]
["2022-11-22",0,6,0,0,0,0,0,0,0,0,0,0,0,0,0,0,0,0,0,0,0,0,0,0,0,0,0,0,0,0,0,"2022-11-22",0,6,0,0,0,0,0,0,0,0,0,0,0,0,0,0,0,0,0,0,0,0,0,0,0,0,0,0,0,0,0,"n","n","y",0,0]
["2022-11-22",0,7,0,0,0,0,0,0,0,0,0,0,0,0,0,0,0,0,0,0,0,0,0,0,0,0,0,0,0,0,0,"2022-11-22",0,7,0,0,0,0,0,0,0,0,0,0,0,0,0,0,0,0,0,0,0,0,0,0,0,0,0,0,0,0,0,"n","n","y",0,0]
["2022-11-22",0,8,0,0,0,0,0,0,0,0,0,0,0,0,0,0,0,0,0,0,0,0,0,0,0,0,0,0,0,0,0,"2022-11-22",0,8,0,0,0,0,0,0,0,0,0,0,0,0,0,0,0,0,0,0,0,0,0,0,0,0,0,0,0,0,0,"n","n","y",0,0]
["2022-11-22",0,9,0,0,0,0,0,0,0,0,0,0,0,0,0,0,0,0,0,0,0,0,0,0,0,0,0,0,0,0,0,"2022-11-22",0,9,0,0,0,0,0,0,0,0,0,0,0,0,0,0,0,0,0,0,0,0,0,0,0,0,0,0,0,0,0,"n","n","y",0,0]
["2022-11-22",0,10,0,0,0,0,0,0,0,0,0,0,0,0,0,0,0,0,0,0,0,0,0,0,0,0,0,0,0,0,0,"2022-11-22",0,10,0,0,0,0,0,0,0,0,0,0,0,0,0,0,0,0,0,0,0,0,0,0,0,0,0,0,0,0,0,"n","n","y",0,0]
["2022-11-29",0,1,0,0,0,0,0,0,0,0,0,0,0,0,0,0,0,0,0,0,0,0,0,0,0,0,0,0,0,0,0,"2022-11-29",0,1,0,0,0,0,0,0,0,0,0,0,0,0,0,0,0,0,0,0,0,0,0,0,0,0,0,0,0,0,0,"n","n","y",0,0]
["2022-11-29",0,2,0,0,0,0,0,0,0,0,0,0,0,0,0,0,0,0,0,0,0,0,0,0,0,0,0,0,0,0,0,"2022-11-29",0,2,0,0,0,0,0,0,0,0,0,0,0,0,0,0,0,0,0,0,0,0,0,0,0,0,0,0,0,0,0,"n","n","y",0,0]
["2022-11-29",0,3,0,0,0,0,0,0,0,0,0,0,0,0,0,0,0,0,0,0,0,0,0,0,0,0,0,0,0,0,0,"2022-11-29",0,3,0,0,0,0,0,0,0,0,0,0,0,0,0,0,0,0,0,0,0,0,0,0,0,0,0,0,0,0,0,"n","n","y",0,0]
["2022-11-29",0,4,0,0,0,0,0,0,0,0,0,0,0,0,0,0,0,0,0,0,0,0,0,0,0,0,0,0,0,0,0,"2022-11-29",0,4,0,0,0,0,0,0,0,0,0,0,0,0,0,0,0,0,0,0,0,0,0,0,0,0,0,0,0,0,0,"n","n","y",0,0]
["2022-11-29",0,5,0,0,0,0,0,0,0,0,0,0,0,0,0,0,0,0,0,0,0,0,0,0,0,0,0,0,0,0,0,"2022-11-29",0,5,0,0,0,0,0,0,0,0,0,0,0,0,0,0,0,0,0,0,0,0,0,0,0,0,0,0,0,0,0,"n","n","y",0,0]
["2022-11-29",0,6,0,0,0,0,0,0,0,0,0,0,0,0,0,0,0,0,0,0,0,0,0,0,0,0,0,0,0,0,0,"2022-11-29",0,6,0,0,0,0,0,0,0,0,0,0,0,0,0,0,0,0,0,0,0,0,0,0,0,0,0,0,0,0,0,"n","n","y",0,0]
["2022-11-29",0,7,0,0,0,0,0,0,0,0,0,0,0,0,0,0,0,0,0,0,0,0,0,0,0,0,0,0,0,0,0,"2022-11-29",0,7,0,0,0,0,0,0,0,0,0,0,0,0,0,0,0,0,0,0,0,0,0,0,0,0,0,0,0,0,0,"n","n","y",0,0]
["2022-11-29",0,8,0,0,0,0,0,0,0,0,0,0,0,0,0,0,0,0,0,0,0,0,0,0,0,0,0,0,0,0,0,"2022-11-29",0,8,0,0,0,0,0,0,0,0,0,0,0,0,0,0,0,0,0,0,0,0,0,0,0,0,0,0,0,0,0,"n","n","y",0,0]
["2022-11-29",0,9,0,0,0,0,0,0,0,0,0,0,0,0,0,0,0,0,0,0,0,0,0,0,0,0,0,0,0,0,0,"2022-11-29",0,9,0,0,0,0,0,0,0,0,0,0,0,0,0,0,0,0,0,0,0,0,0,0,0,0,0,0,0,0,0,"n","n","y",0,0]
["2022-11-29",0,10,0,0,0,0,0,0,0,0,0,0,0,0,0,0,0,0,0,0,0,0,0,0,0,0,0,0,0,0,0,"2022-11-29",0,10,0,0,0,0,0,0,0,0,0,0,0,0,0,0,0,0,0,0,0,0,0,0,0,0,0,0,0,0,0,"n","n","y",0,0]
["2022-12-06",0,1,0,0,0,0,0,0,0,0,0,0,0,0,0,0,0,0,0,0,0,0,0,0,0,0,0,0,0,0,0,"2022-12-06",0,1,0,0,0,0,0,0,0,0,0,0,0,0,0,0,0,0,0,0,0,0,0,0,0,0,0,0,0,0,0,"n","n","y",0,0]
["2022-12-06",0,2,0,0,0,0,0,0,0,0,0,0,0,0,0,0,0,0,0,0,0,0,0,0,0,0,0,0,0,0,0,"2022-12-06",0,2,0,0,0,0,0,0,0,0,0,0,0,0,0,0,0,0,0,0,0,0,0,0,0,0,0,0,0,0,0,"n","n","y",0,0]
["2022-12-06",0,3,0,0,0,0,0,0,0,0,0,0,0,0,0,0,0,0,0,0,0,0,0,0,0,0,0,0,0,0,0,"2022-12-06",0,3,0,0,0,0,0,0,0,0,0,0,0,0,0,0,0,0,0,0,0,0,0,0,0,0,0,0,0,0,0,"n","n","y",0,0]
["2022-12-06",0,4,0,0,0,0,0,0,0,0,0,0,0,0,0,0,0,0,0,0,0,0,0,0,0,0,0,0,0,0,0,"2022-12-06",0,4,0,0,0,0,0,0,0,0,0,0,0,0,0,0,0,0,0,0,0,0,0,0,0,0,0,0,0,0,0,"n","n","y",0,0]
["2022-12-06",0,5,0,0,0,0,0,0,0,0,0,0,0,0,0,0,0,0,0,0,0,0,0,0,0,0,0,0,0,0,0,"2022-12-06",0,5,0,0,0,0,0,0,0,0,0,0,0,0,0,0,0,0,0,0,0,0,0,0,0,0,0,0,0,0,0,"n","n","y",0,0]
["2022-12-06",0,6,0,0,0,0,0,0,0,0,0,0,0,0,0,0,0,0,0,0,0,0,0,0,0,0,0,0,0,0,0,"2022-12-06",0,6,0,0,0,0,0,0,0,0,0,0,0,0,0,0,0,0,0,0,0,0,0,0,0,0,0,0,0,0,0,"n","n","y",0,0]
["2022-12-06",0,7,0,0,0,0,0,0,0,0,0,0,0,0,0,0,0,0,0,0,0,0,0,0,0,0,0,0,0,0,0,"2022-12-06",0,7,0,0,0,0,0,0,0,0,0,0,0,0,0,0,0,0,0,0,0,0,0,0,0,0,0,0,0,0,0,"n","n","y",0,0]
["2022-12-06",0,8,0,0,0,0,0,0,0,0,0,0,0,0,0,0,0,0,0,0,0,0,0,0,0,0,0,0,0,0,0,"2022-12-06",0,8,0,0,0,0,0,0,0,0,0,0,0,0,0,0,0,0,0,0,0,0,0,0,0,0,0,0,0,0,0,"n","n","y",0,0]
["2022-12-06",0,9,0,0,0,0,0,0,0,0,0,0,0,0,0,0,0,0,0,0,0,0,0,0,0,0,0,0,0,0,0,"2022-12-06",0,9,0,0,0,0,0,0,0,0,0,0,0,0,0,0,0,0,0,0,0,0,0,0,0,0,0,0,0,0,0,"n","n","y",0,0]
["2022-12-06",0,10,0,0,0,0,0,0,0,0,0,0,0,0,0,0,0,0,0,0,0,0,0,0,0,0,0,0,0,0,0,"2022-12-06",0,10,0,0,0,0,0,0,0,0,0,0,0,0,0,0,0,0,0,0,0,0,0,0,0,0,0,0,0,0,0,"n","n","y",0,0]
["2022-12-13",0,1,0,0,0,0,0,0,0,0,0,0,0,0,0,0,0,0,0,0,0,0,0,0,0,0,0,0,0,0,0,"2022-12-13",0,1,0,0,0,0,0,0,0,0,0,0,0,0,0,0,0,0,0,0,0,0,0,0,0,0,0,0,0,0,0,"n","n","y",0,0]
["2022-12-13",0,2,0,0,0,0,0,0,0,0,0,0,0,0,0,0,0,0,0,0,0,0,0,0,0,0,0,0,0,0,0,"2022-12-13",0,2,0,0,0,0,0,0,0,0,0,0,0,0,0,0,0,0,0,0,0,0,0,0,0,0,0,0,0,0,0,"n","n","y",0,0]
["2022-12-13",0,3,0,0,0,0,0,0,0,0,0,0,0,0,0,0,0,0,0,0,0,0,0,0,0,0,0,0,0,0,0,"2022-12-13",0,3,0,0,0,0,0,0,0,0,0,0,0,0,0,0,0,0,0,0,0,0,0,0,0,0,0,0,0,0,0,"n","n","y",0,0]
["2022-12-13",0,4,0,0,0,0,0,0,0,0,0,0,0,0,0,0,0,0,0,0,0,0,0,0,0,0,0,0,0,0,0,"2022-12-13",0,4,0,0,0,0,0,0,0,0,0,0,0,0,0,0,0,0,0,0,0,0,0,0,0,0,0,0,0,0,0,"n","n","y",0,0]
["2022-12-13",0,5,0,0,0,0,0,0,0,0,0,0,0,0,0,0,0,0,0,0,0,0,0,0,0,0,0,0,0,0,0,"2022-12-13",0,5,0,0,0,0,0,0,0,0,0,0,0,0,0,0,0,0,0,0,0,0,0,0,0,0,0,0,0,0,0,"n","n","y",0,0]
["2022-12-13",0,6,0,0,0,0,0,0,0,0,0,0,0,0,0,0,0,0,0,0,0,0,0,0,0,0,0,0,0,0,0,{"$f":"A67","v":"2022-12-13"},{"$f":"B67","v":0},{"$f":"C67","v":6},{"$f":"D67","v":0},{"$f":"E67","v":0},{"$f":"F67","v":0},{"$f":"IF(H67=\"y\",1,0)","v":0},{"$f":"IF(I67=\"y\",1,0)","v":0},{"$f":"IF(J67=\"y\",1,0)","v":0},{"$f":"IF(K67=\"y\",1,0)","v":0},{"$f":"IF(L67=\"y\",1,0)","v":0},{"$f":"IF(M67=\"y\",1,0)","v":0},{"$f":"IF(N67=\"y\",1,0)","v":0},{"$f":"IF(O67=\"y\",1,0)","v":0},{"$f":"IF(P67=\"y\",1,0)","v":0},{"$f":"IF(Q67=\"y\",1,0)","v":0},{"$f":"IF(R67=\"y\",1,0)","v":0},{"$f":"IF(S67=\"y\",1,0)","v":0},{"$f":"IF(T67=\"y\",1,0)","v":0},{"$f":"IF(U67=\"y\",1,0)","v":0},{"$f":"IF(V67=\"y\",1,0)","v":0},{"$f":"IF(W67=\"y\",1,0)","v":0},{"$f":"IF(X67=\"y\",1,0)","v":0},{"$f":"IF(Y67=\"y\",1,0)","v":0},{"$f":"IF(Z67=\"y\",1,0)","v":0},{"$f":"IF(AA67=\"y\",1,0)","v":0},{"$f":"IF(AB67=\"y\",1,0)","v":0},{"$f":"IF(AC67=\"y\",1,0)","v":0},{"$f":"IF(AD67=\"y\",1,0)","v":0},{"$f":"IF(AE67=\"y\",1,0)","v":0},{"$f":"IF(AF67=\"y\",1,0)","v":0},{"$f":"IF(COUNTIF(D67:Z67,\"*\")>0,1,0)","v":0},{"$f":"IF(AO67=1, \"y\", \"n\")","v":"n"},{"$f":"IF(AW67=1,\"y\",\"n\")","v":"n"},{"$f":"IF(I67=\"n/a\",\"n\",\"y\")","v":"y"},{"$f":"IF(AND(BB67=1,BM67=\"y\"),1,0)","v":0},{"$f":"IF(AND(BB67=1,BN67=\"y\"),1,0)","v":0}]
["2022-12-13",0,7,0,0,0,0,0,0,0,0,0,0,0,0,0,0,0,0,0,0,0,0,0,0,0,0,0,0,0,0,0,"2022-12-13",0,7,0,0,0,0,0,0,0,0,0,0,0,0,0,0,0,0,0,0,0,0,0,0,0,0,0,0,0,0,0,"n","n","y",0,0]
["2022-12-13",0,8,0,0,0,0,0,0,0,0,0,0,0,0,0,0,0,0,0,0,0,0,0,0,0,0,0,0,0,0,0,"2022-12-13",0,8,0,0,0,0,0,0,0,0,0,0,0,0,0,0,0,0,0,0,0,0,0,0,0,0,0,0,0,0,0,"n","n","y",0,0]
["2022-12-13",0,9,0,0,0,0,0,0,0,0,0,0,0,0,0,0,0,0,0,0,0,0,0,0,0,0,0,0,0,0,0,"2022-12-13",0,9,0,0,0,0,0,0,0,0,0,0,0,0,0,0,0,0,0,0,0,0,0,0,0,0,0,0,0,0,0,"n","n","y",0,0]
["2022-12-13",0,10,0,0,0,0,0,0,0,0,0,0,0,0,0,0,0,0,0,0,0,0,0,0,0,0,0,0,0,0,0,"2022-12-13",0,10,0,0,0,0,0,0,0,0,0,0,0,0,0,0,0,0,0,0,0,0,0,0,0,0,0,0,0,0,0,"n","n","y",0,0]
["2022-12-20",0,1,0,0,0,0,0,0,0,0,0,0,0,0,0,0,0,0,0,0,0,0,0,0,0,0,0,0,0,0,0,"2022-12-20",0,1,0,0,0,0,0,0,0,0,0,0,0,0,0,0,0,0,0,0,0,0,0,0,0,0,0,0,0,0,0,"n","n","y",0,0]
["2022-12-20",0,2,0,0,0,0,0,0,0,0,0,0,0,0,0,0,0,0,0,0,0,0,0,0,0,0,0,0,0,0,0,"2022-12-20",0,2,0,0,0,0,0,0,0,0,0,0,0,0,0,0,0,0,0,0,0,0,0,0,0,0,0,0,0,0,0,"n","n","y",0,0]
["2022-12-20",0,3,0,0,0,0,0,0,0,0,0,0,0,0,0,0,0,0,0,0,0,0,0,0,0,0,0,0,0,0,0,"2022-12-20",0,3,0,0,0,0,0,0,0,0,0,0,0,0,0,0,0,0,0,0,0,0,0,0,0,0,0,0,0,0,0,"n","n","y",0,0]
["2022-12-20",0,4,0,0,0,0,0,0,0,0,0,0,0,0,0,0,0,0,0,0,0,0,0,0,0,0,0,0,0,0,0,"2022-12-20",0,4,0,0,0,0,0,0,0,0,0,0,0,0,0,0,0,0,0,0,0,0,0,0,0,0,0,0,0,0,0,"n","n","y",0,0]
["2022-12-20",0,5,0,0,0,0,0,0,0,0,0,0,0,0,0,0,0,0,0,0,0,0,0,0,0,0,0,0,0,0,0,"2022-12-20",0,5,0,0,0,0,0,0,0,0,0,0,0,0,0,0,0,0,0,0,0,0,0,0,0,0,0,0,0,0,0,"n","n","y",0,0]
["2022-12-20",0,6,0,0,0,0,0,0,0,0,0,0,0,0,0,0,0,0,0,0,0,0,0,0,0,0,0,0,0,0,0,"2022-12-20",0,6,0,0,0,0,0,0,0,0,0,0,0,0,0,0,0,0,0,0,0,0,0,0,0,0,0,0,0,0,0,"n","n","y",0,0]
["2022-12-20",0,7,0,0,0,0,0,0,0,0,0,0,0,0,0,0,0,0,0,0,0,0,0,0,0,0,0,0,0,0,0,"2022-12-20",0,7,0,0,0,0,0,0,0,0,0,0,0,0,0,0,0,0,0,0,0,0,0,0,0,0,0,0,0,0,0,"n","n","y",0,0]
["2022-12-20",0,8,0,0,0,0,0,0,0,0,0,0,0,0,0,0,0,0,0,0,0,0,0,0,0,0,0,0,0,0,0,"2022-12-20",0,8,0,0,0,0,0,0,0,0,0,0,0,0,0,0,0,0,0,0,0,0,0,0,0,0,0,0,0,0,0,"n","n","y",0,0]
["2022-12-20",0,9,0,0,0,0,0,0,0,0,0,0,0,0,0,0,0,0,0,0,0,0,0,0,0,0,0,0,0,0,0,"2022-12-20",0,9,0,0,0,0,0,0,0,0,0,0,0,0,0,0,0,0,0,0,0,0,0,0,0,0,0,0,0,0,0,"n","n","y",0,0]
["2022-12-20",0,10,0,0,0,0,0,0,0,0,0,0,0,0,0,0,0,0,0,0,0,0,0,0,0,0,0,0,0,0,0,"2022-12-20",0,10,0,0,0,0,0,0,0,0,0,0,0,0,0,0,0,0,0,0,0,0,0,0,0,0,0,0,0,0,0,"n","n","y",0,0]
["2022-12-27",0,1,0,0,0,0,0,0,0,0,0,0,0,0,0,0,0,0,0,0,0,0,0,0,0,0,0,0,0,0,0,"2022-12-27",0,1,0,0,0,0,0,0,0,0,0,0,0,0,0,0,0,0,0,0,0,0,0,0,0,0,0,0,0,0,0,"n","n","y",0,0]
["2022-12-27",0,2,0,0,0,0,0,0,0,0,0,0,0,0,0,0,0,0,0,0,0,0,0,0,0,0,0,0,0,0,0,"2022-12-27",0,2,0,0,0,0,0,0,0,0,0,0,0,0,0,0,0,0,0,0,0,0,0,0,0,0,0,0,0,0,0,"n","n","y",0,0]
["2022-12-27",0,3,0,0,0,0,0,0,0,0,0,0,0,0,0,0,0,0,0,0,0,0,0,0,0,0,0,0,0,0,0,"2022-12-27",0,3,0,0,0,0,0,0,0,0,0,0,0,0,0,0,0,0,0,0,0,0,0,0,0,0,0,0,0,0,0,"n","n","y",0,0]
["2022-12-27",0,4,0,0,0,0,0,0,0,0,0,0,0,0,0,0,0,0,0,0,0,0,0,0,0,0,0,0,0,0,0,"2022-12-27",0,4,0,0,0,0,0,0,0,0,0,0,0,0,0,0,0,0,0,0,0,0,0,0,0,0,0,0,0,0,0,"n","n","y",0,0]
["2022-12-27",0,5,0,0,0,0,0,0,0,0,0,0,0,0,0,0,0,0,0,0,0,0,0,0,0,0,0,0,0,0,0,"2022-12-27",0,5,0,0,0,0,0,0,0,0,0,0,0,0,0,0,0,0,0,0,0,0,0,0,0,0,0,0,0,0,0,"n","n","y",0,0]
["2022-12-27",0,6,0,0,0,0,0,0,0,0,0,0,0,0,0,0,0,0,0,0,0,0,0,0,0,0,0,0,0,0,0,"2022-12-27",0,6,0,0,0,0,0,0,0,0,0,0,0,0,0,0,0,0,0,0,0,0,0,0,0,0,0,0,0,0,0,"n","n","y",0,0]
["2022-12-27",0,7,0,0,0,0,0,0,0,0,0,0,0,0,0,0,0,0,0,0,0,0,0,0,0,0,0,0,0,0,0,"2022-12-27",0,7,0,0,0,0,0,0,0,0,0,0,0,0,0,0,0,0,0,0,0,0,0,0,0,0,0,0,0,0,0,"n","n","y",0,0]
["2022-12-27",0,8,0,0,0,0,0,0,0,0,0,0,0,0,0,0,0,0,0,0,0,0,0,0,0,0,0,0,0,0,0,"2022-12-27",0,8,0,0,0,0,0,0,0,0,0,0,0,0,0,0,0,0,0,0,0,0,0,0,0,0,0,0,0,0,0,"n","n","y",0,0]
["2022-12-27",0,9,0,0,0,0,0,0,0,0,0,0,0,0,0,0,0,0,0,0,0,0,0,0,0,0,0,0,0,0,0,"2022-12-27",0,9,0,0,0,0,0,0,0,0,0,0,0,0,0,0,0,0,0,0,0,0,0,0,0,0,0,0,0,0,0,"n","n","y",0,0]
["2022-12-27",0,10,0,0,0,0,0,0,0,0,0,0,0,0,0,0,0,0,0,0,0,0,0,0,0,0,0,0,0,0,0,"2022-12-27",0,10,0,0,0,0,0,0,0,0,0,0,0,0,0,0,0,0,0,0,0,0,0,0,0,0,0,0,0,0,0,"n","n","y",0,0]
["2023-01-03",0,1,0,0,0,0,0,0,0,0,0,0,0,0,0,0,0,0,0,0,0,0,0,0,0,0,0,0,0,0,0,"2023-01-03",0,1,0,0,0,0,0,0,0,0,0,0,0,0,0,0,0,0,0,0,0,0,0,0,0,0,0,0,0,0,0,"n","n","y",0,0]
["2023-01-03",0,2,0,0,0,0,0,0,0,0,0,0,0,0,0,0,0,0,0,0,0,0,0,0,0,0,0,0,0,0,0,"2023-01-03",0,2,0,0,0,0,0,0,0,0,0,0,0,0,0,0,0,0,0,0,0,0,0,0,0,0,0,0,0,0,0,"n","n","y",0,0]
["2023-01-03",0,3,0,0,0,0,0,0,0,0,0,0,0,0,0,0,0,0,0,0,0,0,0,0,0,0,0,0,0,0,0,"2023-01-03",0,3,0,0,0,0,0,0,0,0,0,0,0,0,0,0,0,0,0,0,0,0,0,0,0,0,0,0,0,0,0,"n","n","y",0,0]
["2023-01-03",0,4,0,0,0,0,0,0,0,0,0,0,0,0,0,0,0,0,0,0,0,0,0,0,0,0,0,0,0,0,0,"2023-01-03",0,4,0,0,0,0,0,0,0,0,0,0,0,0,0,0,0,0,0,0,0,0,0,0,0,0,0,0,0,0,0,"n","n","y",0,0]
["2023-01-03",0,5,0,0,0,0,0,0,0,0,0,0,0,0,0,0,0,0,0,0,0,0,0,0,0,0,0,0,0,0,0,"2023-01-03",0,5,0,0,0,0,0,0,0,0,0,0,0,0,0,0,0,0,0,0,0,0,0,0,0,0,0,0,0,0,0,"n","n","y",0,0]
["2023-01-03",0,6,0,0,0,0,0,0,0,0,0,0,0,0,0,0,0,0,0,0,0,0,0,0,0,0,0,0,0,0,0,"2023-01-03",0,6,0,0,0,0,0,0,0,0,0,0,0,0,0,0,0,0,0,0,0,0,0,0,0,0,0,0,0,0,0,"n","n","y",0,0]
["2023-01-03",0,7,0,0,0,0,0,0,0,0,0,0,0,0,0,0,0,0,0,0,0,0,0,0,0,0,0,0,0,0,0,"2023-01-03",0,7,0,0,0,0,0,0,0,0,0,0,0,0,0,0,0,0,0,0,0,0,0,0,0,0,0,0,0,0,0,"n","n","y",0,0]
["2023-01-03",0,8,0,0,0,0,0,0,0,0,0,0,0,0,0,0,0,0,0,0,0,0,0,0,0,0,0,0,0,0,0,"2023-01-03",0,8,0,0,0,0,0,0,0,0,0,0,0,0,0,0,0,0,0,0,0,0,0,0,0,0,0,0,0,0,0,"n","n","y",0,0]
["2023-01-03",0,9,0,0,0,0,0,0,0,0,0,0,0,0,0,0,0,0,0,0,0,0,0,0,0,0,0,0,0,0,0,"2023-01-03",0,9,0,0,0,0,0,0,0,0,0,0,0,0,0,0,0,0,0,0,0,0,0,0,0,0,0,0,0,0,0,"n","n","y",0,0]
["2023-01-03",0,10,0,0,0,0,0,0,0,0,0,0,0,0,0,0,0,0,0,0,0,0,0,0,0,0,0,0,0,0,0,"2023-01-03",0,10,0,0,0,0,0,0,0,0,0,0,0,0,0,0,0,0,0,0,0,0,0,0,0,0,0,0,0,0,0,"n","n","y",0,0]
["2023-01-10",0,1,0,0,0,0,0,0,0,0,0,0,0,0,0,0,0,0,0,0,0,0,0,0,0,0,0,0,0,0,0,"2023-01-10",0,1,0,0,0,0,0,0,0,0,0,0,0,0,0,0,0,0,0,0,0,0,0,0,0,0,0,0,0,0,0,"n","n","y",0,0]
["2023-01-10",0,2,0,0,0,0,0,0,0,0,0,0,0,0,0,0,0,0,0,0,0,0,0,0,0,0,0,0,0,0,0,"2023-01-10",0,2,0,0,0,0,0,0,0,0,0,0,0,0,0,0,0,0,0,0,0,0,0,0,0,0,0,0,0,0,0,"n","n","y",0,0]
["2023-01-10",0,3,0,0,0,0,0,0,0,0,0,0,0,0,0,0,0,0,0,0,0,0,0,0,0,0,0,0,0,0,0,"2023-01-10",0,3,0,0,0,0,0,0,0,0,0,0,0,0,0,0,0,0,0,0,0,0,0,0,0,0,0,0,0,0,0,"n","n","y",0,0]
["2023-01-10",0,4,0,0,0,0,0,0,0,0,0,0,0,0,0,0,0,0,0,0,0,0,0,0,0,0,0,0,0,0,0,"2023-01-10",0,4,0,0,0,0,0,0,0,0,0,0,0,0,0,0,0,0,0,0,0,0,0,0,0,0,0,0,0,0,0,"n","n","y",0,0]
["2023-01-10",0,5,0,0,0,0,0,0,0,0,0,0,0,0,0,0,0,0,0,0,0,0,0,0,0,0,0,0,0,0,0,"2023-01-10",0,5,0,0,0,0,0,0,0,0,0,0,0,0,0,0,0,0,0,0,0,0,0,0,0,0,0,0,0,0,0,"n","n","y",0,0]
["2023-01-10",0,6,0,0,0,0,0,0,0,0,0,0,0,0,0,0,0,0,0,0,0,0,0,0,0,0,0,0,0,0,0,"2023-01-10",0,6,0,0,0,0,0,0,0,0,0,0,0,0,0,0,0,0,0,0,0,0,0,0,0,0,0,0,0,0,0,"n","n","y",0,0]
["2023-01-10",0,7,0,0,0,0,0,0,0,0,0,0,0,0,0,0,0,0,0,0,0,0,0,0,0,0,0,0,0,0,0,"2023-01-10",0,7,0,0,0,0,0,0,0,0,0,0,0,0,0,0,0,0,0,0,0,0,0,0,0,0,0,0,0,0,0,"n","n","y",0,0]
["2023-01-10",0,8,0,0,0,0,0,0,0,0,0,0,0,0,0,0,0,0,0,0,0,0,0,0,0,0,0,0,0,0,0,"2023-01-10",0,8,0,0,0,0,0,0,0,0,0,0,0,0,0,0,0,0,0,0,0,0,0,0,0,0,0,0,0,0,0,"n","n","y",0,0]
["2023-01-10",0,9,0,0,0,0,0,0,0,0,0,0,0,0,0,0,0,0,0,0,0,0,0,0,0,0,0,0,0,0,0,"2023-01-10",0,9,0,0,0,0,0,0,0,0,0,0,0,0,0,0,0,0,0,0,0,0,0,0,0,0,0,0,0,0,0,"n","n","y",0,0]
["2023-01-10",0,10,0,0,0,0,0,0,0,0,0,0,0,0,0,0,0,0,0,0,0,0,0,0,0,0,0,0,0,0,0,"2023-01-10",0,10,0,0,0,0,0,0,0,0,0,0,0,0,0,0,0,0,0,0,0,0,0,0,0,0,0,0,0,0,0,"n","n","y",0,0]
["2023-01-17",0,1,0,0,0,0,0,0,0,0,0,0,0,0,0,0,0,0,0,0,0,0,0,0,0,0,0,0,0,0,0,"2023-01-17",0,1,0,0,0,0,0,0,0,0,0,0,0,0,0,0,0,0,0,0,0,0,0,0,0,0,0,0,0,0,0,"n","n","y",0,0]
["2023-01-17",0,2,0,0,0,0,0,0,0,0,0,0,0,0,0,0,0,0,0,0,0,0,0,0,0,0,0,0,0,0,0,"2023-01-17",0,2,0,0,0,0,0,0,0,0,0,0,0,0,0,0,0,0,0,0,0,0,0,0,0,0,0,0,0,0,0,"n","n","y",0,0]
["2023-01-17",0,3,0,0,0,0,0,0,0,0,0,0,0,0,0,0,0,0,0,0,0,0,0,0,0,0,0,0,0,0,0,"2023-01-17",0,3,0,0,0,0,0,0,0,0,0,0,0,0,0,0,0,0,0,0,0,0,0,0,0,0,0,0,0,0,0,"n","n","y",0,0]
["2023-01-17",0,4,0,0,0,0,0,0,0,0,0,0,0,0,0,0,0,0,0,0,0,0,0,0,0,0,0,0,0,0,0,"2023-01-17",0,4,0,0,0,0,0,0,0,0,0,0,0,0,0,0,0,0,0,0,0,0,0,0,0,0,0,0,0,0,0,"n","n","y",0,0]
["2023-01-17",0,5,0,0,0,0,0,0,0,0,0,0,0,0,0,0,0,0,0,0,0,0,0,0,0,0,0,0,0,0,0,"2023-01-17",0,5,0,0,0,0,0,0,0,0,0,0,0,0,0,0,0,0,0,0,0,0,0,0,0,0,0,0,0,0,0,"n","n","y",0,0]
["2023-01-17",0,6,0,0,0,0,0,0,0,0,0,0,0,0,0,0,0,0,0,0,0,0,0,0,0,0,0,0,0,0,0,"2023-01-17",0,6,0,0,0,0,0,0,0,0,0,0,0,0,0,0,0,0,0,0,0,0,0,0,0,0,0,0,0,0,0,"n","n","y",0,0]
["2023-01-17",0,7,0,0,0,0,0,0,0,0,0,0,0,0,0,0,0,0,0,0,0,0,0,0,0,0,0,0,0,0,0,"2023-01-17",0,7,0,0,0,0,0,0,0,0,0,0,0,0,0,0,0,0,0,0,0,0,0,0,0,0,0,0,0,0,0,"n","n","y",0,0]
["2023-01-17",0,8,0,0,0,0,0,0,0,0,0,0,0,0,0,0,0,0,0,0,0,0,0,0,0,0,0,0,0,0,0,"2023-01-17",0,8,0,0,0,0,0,0,0,0,0,0,0,0,0,0,0,0,0,0,0,0,0,0,0,0,0,0,0,0,0,"n","n","y",0,0]
["2023-01-17",0,9,0,0,0,0,0,0,0,0,0,0,0,0,0,0,0,0,0,0,0,0,0,0,0,0,0,0,0,0,0,"2023-01-17",0,9,0,0,0,0,0,0,0,0,0,0,0,0,0,0,0,0,0,0,0,0,0,0,0,0,0,0,0,0,0,"n","n","y",0,0]
["2023-01-17",0,10,0,0,0,0,0,0,0,0,0,0,0,0,0,0,0,0,0,0,0,0,0,0,0,0,0,0,0,0,0,"2023-01-17",0,10,0,0,0,0,0,0,0,0,0,0,0,0,0,0,0,0,0,0,0,0,0,0,0,0,0,0,0,0,0,"n","n","y",0,0]

{"sheet":"Template","index":9,"n_rows":36,"n_cols":123,"rows_kept":36,"cut":false,"hidden":true,"merged":[[3,113,3,122],[3,53,3,62],[3,3,3,12],[3,13,3,22],[3,23,3,32],[3,33,3,42],[3,43,3,52],[3,93,3,102],[3,103,3,112],[3,73,3,82],[3,83,3,92],[3,63,3,72]]}
[null,"National paediatric vital sign chart audit tool"]
[null,"Ward:"]
[]
[1,null,"Week starting",{"$f":"ControlPage!$B$5","v":"2022-11-01"},null,null,null,null,null,null,null,null,null,{"$f":"D4+7","v":"2022-11-08"},null,null,null,null,null,null,null,null,null,{"$f":"N4+7","v":"2022-11-15"},null,null,null,null,null,null,null,null,null,{"$f":"X4+7","v":"2022-11-22"},null,null,null,null,null,null,null,null,null,{"$f":"AH4+7","v":"2022-11-29"},null,null,null,null,null,null,null,null,null,{"$f":"AR4+7","v":"2022-12-06"},null,null,null,null,null,null,null,null,null,{"$f":"BB4+7","v":"2022-12-13"},null,null,null,null,null,null,null,null,null,{"$f":"BL4+7","v":"2022-12-20"},null,null,null,null,null,null,null,null,null,{"$f":"BV4+7","v":"2022-12-27"},null,null,null,null,null,null,null,null,null,{"$f":"CF4+7","v":"2023-01-03"},null,null,null,null,null,null,null,null,null,{"$f":"CP4+7","v":"2023-01-10"},null,null,null,null,null,null,null,null,null,{"$f":"CZ4+7","v":"2023-01-17"}]
[2,null,"Week",{"$f":"D4","v":"2022-11-01"},{"$f":"D5","v":"2022-11-01"},{"$f":"E5","v":"2022-11-01"},"2022-11-01","2022-11-01","2022-11-01","2022-11-01","2022-11-01","2022-11-01","2022-11-01",{"$f":"N4","v":"2022-11-08"},{"$f":"N5","v":"2022-11-08"},{"$f":"O5","v":"2022-11-08"},"2022-11-08","2022-11-08","2022-11-08","2022-11-08","2022-11-08","2022-11-08","2022-11-08",{"$f":"X4","v":"2022-11-15"},{"$f":"X5","v":"2022-11-15"},{"$f":"Y5","v":"2022-11-15"},"2022-11-15","2022-11-15","2022-11-15","2022-11-15","2022-11-15","2022-11-15","2022-11-15",{"$f":"AH4","v":"2022-11-22"},{"$f":"AH5","v":"2022-11-22"},"2022-11-22","2022-11-22","2022-11-22","2022-11-22","2022-11-22","2022-11-22","2022-11-22","2022-11-22",{"$f":"AR4","v":"2022-11-29"},{"$f":"AR5","v":"2022-11-29"},"2022-11-29","2022-11-29","2022-11-29","2022-11-29","2022-11-29","2022-11-29","2022-11-29","2022-11-29",{"$f":"BB4","v":"2022-12-06"},{"$f":"BB5","v":"2022-12-06"},{"$f":"BC5","v":"2022-12-06"},{"$f":"BD5","v":"2022-12-06"},{"$f":"BE5","v":"2022-12-06"},{"$f":"BF5","v":"2022-12-06"},{"$f":"BG5","v":"2022-12-06"},{"$f":"BH5","v":"2022-12-06"},{"$f":"BI5","v":"2022-12-06"},{"$f":"BJ5","v":"2022-12-06"},{"$f":"BL4","v":"2022-12-13"},{"$f":"BL5","v":"2022-12-13"},{"$f":"BM5","v":"2022-12-13"},{"$f":"BN5","v":"2022-12-13"},{"$f":"BO5","v":"2022-12-13"},{"$f":"BP5","v":"2022-12-13"},{"$f":"BQ5","v":"2022-12-13"},{"$f":"BR5","v":"2022-12-13"},{"$f":"BS5","v":"2022-12-13"},{"$f":"BT5","v":"2022-12-13"},{"$f":"BV4","v":"2022-12-20"},{"$f":"BV5","v":"2022-12-20"},{"$f":"BW5","v":"2022-12-20"},{"$f":"BX5","v":"2022-12-20"},{"$f":"BY5","v":"2022-12-20"},{"$f":"BZ5","v":"2022-12-20"},{"$f":"CA5","v":"2022-12-20"},{"$f":"CB5","v":"2022-12-20"},{"$f":"CC5","v":"2022-12-20"},{"$f":"CD5","v":"2022-12-20"},{"$f":"CF4","v":"2022-12-27"},{"$f":"CF5","v":"2022-12-27"},{"$f":"CG5","v":"2022-12-27"},{"$f":"CH5","v":"2022-12-27"},{"$f":"CI5","v":"2022-12-27"},{"$f":"CJ5","v":"2022-12-27"},{"$f":"CK5","v":"2022-12-27"},{"$f":"CL5","v":"2022-12-27"},{"$f":"CM5","v":"2022-12-27"},{"$f":"CN5","v":"2022-12-27"},{"$f":"CP4","v":"2023-01-03"},{"$f":"CP5","v":"2023-01-03"},{"$f":"CQ5","v":"2023-01-03"},{"$f":"CR5","v":"2023-01-03"},{"$f":"CS5","v":"2023-01-03"},{"$f":"CT5","v":"2023-01-03"},{"$f":"CU5","v":"2023-01-03"},{"$f":"CV5","v":"2023-01-03"},{"$f":"CW5","v":"2023-01-03"},{"$f":"CX5","v":"2023-01-03"},{"$f":"CZ4","v":"2023-01-10"},{"$f":"CZ5","v":"2023-01-10"},{"$f":"DA5","v":"2023-01-10"},{"$f":"DB5","v":"2023-01-10"},{"$f":"DC5","v":"2023-01-10"},{"$f":"DD5","v":"2023-01-10"},{"$f":"DE5","v":"2023-01-10"},{"$f":"DF5","v":"2023-01-10"},{"$f":"DG5","v":"2023-01-10"},{"$f":"DH5","v":"2023-01-10"},{"$f":"DJ4","v":"2023-01-17"},{"$f":"DJ5","v":"2023-01-17"},{"$f":"DK5","v":"2023-01-17"},{"$f":"DL5","v":"2023-01-17"},{"$f":"DM5","v":"2023-01-17"},{"$f":"DN5","v":"2023-01-17"},{"$f":"DO5","v":"2023-01-17"},{"$f":"DP5","v":"2023-01-17"},{"$f":"DQ5","v":"2023-01-17"},{"$f":"DR5","v":"2023-01-17"}]
[3,null,"Ward",{"$f":"$C$2","v":0},{"$f":"$C$2","v":0},0,0,0,0,0,0,0,0,0,0,0,0,0,0,0,0,0,0,0,0,0,0,0,0,0,0,0,0,0,0,0,0,0,0,0,0,0,0,0,0,0,0,0,0,0,0,0,0,0,0,0,0,0,0,0,0,0,0,0,0,0,0,0,{"$f":"$C$2","v":0},0,0,0,0,0,0,0,0,0,0,0,0,0,0,0,0,0,0,0,0,0,0,0,0,0,0,0,0,0,0,0,0,0,0,0,0,0,0,0,0,0,0,0,0,0,0,0,0,0,0,0,0,0,0]
[4,null,"Case number",1,2,3,4,5,6,7,8,9,10,1,2,3,4,5,6,7,8,9,10,1,2,3,4,5,6,7,8,9,10,1,2,3,4,5,6,7,8,9,10,1,2,3,4,5,6,7,8,9,10,1,2,3,4,5,6,7,8,9,10,1,2,3,4,5,6,7,8,9,10,1,2,3,4,5,6,7,8,9,10,1,2,3,4,5,6,7,8,9,10,1,2,3,4,5,6,7,8,9,10,1,2,3,4,5,6,7,8,9,10,1,2,3,4,5,6,7,8,9,10]
[5,null,"Ethnicity"]
[null,null,"Age\nInclude month (m) or year (y)) eg. 4m = 4 month"]
[null,null,"Type of chart\nUse this key: 1 = 0-11m, 2 = 1-4y, 3 = 5-11y, 4 = 12+y"]
[6,null,"Recognition"]
[7,1.1000000000000001,"Was the frequency of vital sign monitoring appropriate for the patient?"]
[null,1.2,"Was the use of partial sets of vital signs appropriate for the patient?"]
[8,2.1,"For the most recent set of vital signs, was the core vital sign set completed?\n(If yes, go to question 2.3;  If no, complete question 2.1a-g: mark present vital signs as 'y' and absent vital signs as 'n')"]
[null,"2.1a","Respiratory rate"]
[null,"2.1b","Respiratory distress"]
[null,"2.1c","Oxygen"]
[null,"2.1d","Oxygen saturation"]
[null,"2.1e","Heart rate"]
[null,"2.1f","Central capillary refill"]
[null,"2.1g","Systolic blood pressure"]
[null,2.2000000000000002,"For this most recent set of vital signs, was the paediatric early warning score (PEWS) total marked with asterisk sign?\n(If yes, complete question 2.2a; if no, go to 2.3)"]
[null,"2.2a","Was the reason for a partial recording documented in the patient’s clinical record?"]
[null,2.2999999999999998,"Was whānau and/or staff concern recorded for this patient?\n(If yes, complete question 2.3a; if no, go to 2.4)"]
[null,"2.3a","Was this concern acted on and documented in the clinical record?"]
[null,2.4,"Was the patient marked as ‘unresponsive’ in level of consciousness?"]
[9,3,"Was the PEWS total calculated correctly for the most recent set of vital signs?"]
[10,4,"Were any modifications made to the PEWS triggers? \n(if yes, complete questions 4a and 4b; if no, go to question 5)"]
[11,"4a","Was a rationale and duration for the modification documented? (clinical requirements)"]
[12,"4b","Did the person making the modification legibly date and sign it, and record contact details? (documentation requirements)"]
[13,null,"Escalation and response"]
[14,5,"Did the patient reach any of the defined triggers for escalation in, or up to, the 24-hour audit period?  (If yes, complete questions 5a-d; if no, audit is complete)"]
[15,"5a","Did escalation occur according to the pathway?"]
[16,"5b","Did the response occur according to the pathway?"]
[17,"5c","Did the responder complete documentation requirements (according to local policy)?"]
[null,"5d","Did the recogniser complete documentation requirements (according to local policy)?"]

{"sheet":"Audit results by week","index":10,"n_rows":32,"n_cols":27,"rows_kept":32,"cut":false,"hidden":false,"merged":[]}
[null,"Audit results by week and question"]
[]
[]
[]
[null,null,"Column Labels"]
[null,null,"2022-02-11","11/02/2022 Total","2022-02-18","18/02/2022 Total","2022-02-25","25/02/2022 Total","2022-03-04","4/03/2022 Total","2022-03-11","11/03/2022 Total","2022-03-18","18/03/2022 Total","2022-03-25","25/03/2022 Total","2022-04-01","1/04/2022 Total","2022-04-08","8/04/2022 Total","2022-04-15","15/04/2022 Total","2022-04-22","22/04/2022 Total","2022-02-04","4/02/2022 Total","Grand Total"]
[null,"Values",0,null,0,null,0,null,0,null,0,null,0,null,0,null,0,null,0,null,0,null,0,null,0]
[null,"Q1.1 Appropriate frequency of vital sign monitoring",0,0,0,0,0,0,0,0,0,0,0,0,0,0,0,0,0,0,0,0,0,0,0,0,0]
[null,"Q1.2 Appropriate use of partial vital signs sets",0,0,0,0,0,0,0,0,0,0,0,0,0,0,0,0,0,0,0,0,0,0,0,0,0]
[null,"Q2.1 Completed vital sign sets",0,0,0,0,0,0,0,0,0,0,0,0,0,0,0,0,0,0,0,0,0,0,0,0,0]
[null,"Q2.1a Respiratory rate",0,0,0,0,0,0,0,0,0,0,0,0,0,0,0,0,0,0,0,0,0,0,0,0,0]
[null,"Q2.1b Respiratory distress",0,0,0,0,0,0,0,0,0,0,0,0,0,0,0,0,0,0,0,0,0,0,0,0,0]
[null,"Q2.1c Oxygen",0,0,0,0,0,0,0,0,0,0,0,0,0,0,0,0,0,0,0,0,0,0,0,0,0]
[null,"Q2.1d Oxygen saturation",0,0,0,0,0,0,0,0,0,0,0,0,0,0,0,0,0,0,0,0,0,0,0,0,0]
[null,"Q2.1e Heart rate",0,0,0,0,0,0,0,0,0,0,0,0,0,0,0,0,0,0,0,0,0,0,0,0,0]
[null,"Q2.1f Central capillary refill",0,0,0,0,0,0,0,0,0,0,0,0,0,0,0,0,0,0,0,0,0,0,0,0,0]
[null,"Q2.1g Systolic blood pressure",0,0,0,0,0,0,0,0,0,0,0,0,0,0,0,0,0,0,0,0,0,0,0,0,0]
[null,"Q2.2 Partial PEWS marked with asterix",0,0,0,0,0,0,0,0,0,0,0,0,0,0,0,0,0,0,0,0,0,0,0,0,0]
[null,"Q2.2a Reason documented for partial PEWS ",0,0,0,0,0,0,0,0,0,0,0,0,0,0,0,0,0,0,0,0,0,0,0,0,0]
[null,"Q2.3 Whānau/ staff concern recorded",0,0,0,0,0,0,0,0,0,0,0,0,0,0,0,0,0,0,0,0,0,0,0,0,0]
[null,"Q2.3a Reason documented for whānau/staff concern",0,0,0,0,0,0,0,0,0,0,0,0,0,0,0,0,0,0,0,0,0,0,0,0,0]
[null,"Q2.4 Patient marked 'unresponsive'",0,0,0,0,0,0,0,0,0,0,0,0,0,0,0,0,0,0,0,0,0,0,0,0,0]
[null,"Q3 Correctly calculated PEWS total",0,0,0,0,0,0,0,0,0,0,0,0,0,0,0,0,0,0,0,0,0,0,0,0,0]
[null,"Q4 Modifications to PEWS triggers",0,0,0,0,0,0,0,0,0,0,0,0,0,0,0,0,0,0,0,0,0,0,0,0,0]
[null,"Q4a Modification clinical requirements met",0,0,0,0,0,0,0,0,0,0,0,0,0,0,0,0,0,0,0,0,0,0,0,0,0]
[null,"Q4b Modification documentation requirements met",0,0,0,0,0,0,0,0,0,0,0,0,0,0,0,0,0,0,0,0,0,0,0,0,0]
[null,"Q5 Triggered an escalation",0,0,0,0,0,0,0,0,0,0,0,0,0,0,0,0,0,0,0,0,0,0,0,0,0]
[null,"Q5a Escalation as per pathway",0,0,0,0,0,0,0,0,0,0,0,0,0,0,0,0,0,0,0,0,0,0,0,0,0]
[null,"Q5b Response as per pathway",0,0,0,0,0,0,0,0,0,0,0,0,0,0,0,0,0,0,0,0,0,0,0,0,0]
[null,"Q5c Responder documentation as per policy",0,0,0,0,0,0,0,0,0,0,0,0,0,0,0,0,0,0,0,0,0,0,0,0,0]
[null,"Q5d Recogniser documentation as per policy",0,0,0,0,0,0,0,0,0,0,0,0,0,0,0,0,0,0,0,0,0,0,0,0,0]
[null,"Total cases audited",0,0,0,0,0,0,0,0,0,0,0,0,0,0,0,0,0,0,0,0,0,0,1,1,1]

{"sheet":"Lists","index":11,"n_rows":51,"n_cols":3,"rows_kept":51,"cut":false,"hidden":true,"merged":[]}
["Ethnicity"]
["M","Māori"]
["P","Pacific"]
["A","Asian"]
["E","European"]
["O","Other"]
["R","Residual Categories"]
[]
["Yes/No"]
["y"]
["n"]
["n/a"]
[]
["Type of chart"]
[1]
[2]
[3]
[4]
[]
[]
["Age"]
[0,"m",{"$f":"_xlfn.CONCAT(A22,$B$22)","v":"0m"}]
[1,"y","1m"]
[2,null,"2m"]
[3,null,"3m"]
[4,null,"4m"]
[5,null,"5m"]
[6,null,"6m"]
[7,null,"7m"]
[8,null,"8m"]
[9,null,"9m"]
[10,null,"10m"]
[11,null,"11m"]
[12,null,{"$f":"_xlfn.CONCAT(A23,$B$23)","v":"1y"}]
[13,null,{"$f":"_xlfn.CONCAT(A24,$B$23)","v":"2y"}]
[14,null,"3y"]
[15,null,"4y"]
[16,null,"5y"]
[17,null,"6y"]
[18,null,"7y"]
[null,null,"8y"]
[null,null,"9y"]
[null,null,"10y"]
[null,null,"11y"]
[null,null,"12y"]
[null,null,"13y"]
[null,null,"14y"]
[null,null,"15y"]
[null,null,{"$f":"_xlfn.CONCAT(A38,$B$23)","v":"16y"}]
[null,null,"17y"]
[null,null,"18y"]